Body Name,Date Paid,Transaction Number,Amount,Supplier Name,Supplier Type,Expense Area,Cost Centre Description,Expense Type
Cambridgeshire County Council,25-Aug-20,51301409447,"-329,000.10",ACTION FOR CHILDREN SERVICES LTD,CARE ESTABLISHMENT,Disabled Services,AFC - Short Break,Joint Partnership Funding
Cambridgeshire County Council,10-Aug-20,51301406088,"-269,201.42",CAMBRIDGESHIRE COMMUNITY SERVICES NHS TRUST,TRUST (OTHER),SH STI - PH Sexual Health & Health Checks,SH STI  -  Community Sexual Health Services,Professional Fees and Hired Services
Cambridgeshire County Council,10-Aug-20,51301406276,"-269,201.42",CAMBRIDGESHIRE COMMUNITY SERVICES NHS TRUST,TRUST (OTHER),SH STI - PH Sexual Health & Health Checks,SH STI  -  Community Sexual Health Services,Professional Fees and Hired Services
Cambridgeshire County Council,10-Aug-20,51301406089,"-269,201.42",CAMBRIDGESHIRE COMMUNITY SERVICES NHS TRUST,TRUST (OTHER),SH STI - PH Sexual Health & Health Checks,SH STI  -  Community Sexual Health Services,Professional Fees and Hired Services
Cambridgeshire County Council,25-Aug-20,51301409445,"-188,000.10",ACTION FOR CHILDREN SERVICES LTD,CARE ESTABLISHMENT,Disabled Services,AFC - Short Break,Joint Partnership Funding
Cambridgeshire County Council,25-Aug-20,51301409446,"-187,999.80",ACTION FOR CHILDREN SERVICES LTD,CARE ESTABLISHMENT,Disabled Services,AFC - Short Break,Joint Partnership Funding
Cambridgeshire County Council,25-Aug-20,51301406305,"-68,694.75",KISIMUL SCHOOL,CARE ESTABLISHMENT,SEN Placements,Placements - Education,Independent School Placements
Cambridgeshire County Council,25-Aug-20,51301423450,"-46,233.33",CHARTWELL HOUSE,CARE ESTABLISHMENT,SEN Placements,Placements - Education,Independent School Placements
Cambridgeshire County Council,03-Aug-20,51301398178,"-30,776.78",OCS GROUP UK LTD,TRADE SUPPLIER,Parking Enforcement,Civil Parking Enforcement,Professional Fees and Hired Services
Cambridgeshire County Council,10-Aug-20,51301411003,"-19,924.22",KISIMUL SCHOOL,CARE ESTABLISHMENT,SEN Placements,Placements - Education,Independent School Placements
Cambridgeshire County Council,25-Aug-20,51301410924,"-19,924.22",KISIMUL SCHOOL,CARE ESTABLISHMENT,SEN Placements,Placements - Education,Independent School Placements
Cambridgeshire County Council,25-Aug-20,51301410923,"-19,924.22",KISIMUL SCHOOL,CARE ESTABLISHMENT,SEN Placements,Placements - Education,Independent School Placements
Cambridgeshire County Council,25-Aug-20,51301409448,"-12,000.00",ACTION FOR CHILDREN SERVICES LTD,CARE ESTABLISHMENT,Disabled Services,AFC Property Leases Contract,Joint Partnership Funding
Cambridgeshire County Council,25-Aug-20,51301409449,"-11,000.00",ACTION FOR CHILDREN SERVICES LTD,CARE ESTABLISHMENT,Disabled Services,AFC Property Leases Contract,Joint Partnership Funding
Cambridgeshire County Council,14-Aug-20,51301421558,"-9,135.54",VOYAGE,CARE ESTABLISHMENT,LD - South Locality - Cost of Care,LD - South Cambs - Care,Residential Care
Cambridgeshire County Council,06-Aug-20,51301415910,"-9,007.04",AURORA ORCHARD MANOR,CARE ESTABLISHMENT,LD - Young Adults Team,LD - Young Adults - Special Needs,Supported Living
Cambridgeshire County Council,11-Aug-20,51301419897,"-8,146.32",Keys PCE Ltd,CARE ESTABLISHMENT,LAC Placements,Placements - residential homes,Agency Placements - Out of  County
Cambridgeshire County Council,06-Aug-20,51301416284,"-6,706.80",Olive Healthcare Solutions Limited,CARE ESTABLISHMENT,OP - Hunts Locality - Cost of Care,Hunts OP Team - Care,Domiciliary Care
Cambridgeshire County Council,26-Aug-20,51301419481,"-6,167.92",CARMELCREST LIMITED,COMPANY,"School Condition, Maintenance & Suitability","School Condition, Maintenance & Suitability",Temporary Works
Cambridgeshire County Council,25-Aug-20,51301409450,"-5,500.00",ACTION FOR CHILDREN SERVICES LTD,CARE ESTABLISHMENT,Disabled Services,AFC Property Leases Contract,Joint Partnership Funding
Cambridgeshire County Council,11-Aug-20,51301420074,"-5,274.72",CARETECH COMMUNITY SERVICES,CARE ESTABLISHMENT,LAC Placements,Placements - supported accommodation,Agency Placements - In County
Cambridgeshire County Council,06-Aug-20,51301413262,"-5,092.86",FosteringUK Ltd,CARE ESTABLISHMENT,LAC Placements,Placements - independent fostering,Agency Placements - Out of  County
Cambridgeshire County Council,06-Aug-20,51301413265,"-4,928.57",FosteringUK Ltd,CARE ESTABLISHMENT,LAC Placements,Placements - independent fostering,Agency Placements - Out of  County
Cambridgeshire County Council,06-Aug-20,51301413259,"-4,928.57",FosteringUK Ltd,CARE ESTABLISHMENT,LAC Placements,Placements - independent fostering,Agency Placements - Out of  County
Cambridgeshire County Council,25-Aug-20,51301406304,"-3,764.10",KISIMUL SCHOOL,CARE ESTABLISHMENT,SEN Placements,Placements - Education,Independent School Placements
Cambridgeshire County Council,13-Aug-20,51301419498,"-3,753.53",HUNTINGDONSHIRE DISTRICT COUNCIL,OTHER PUBLIC BODIES,Corporate Offices,C3 closure costs,Business rates
Cambridgeshire County Council,21-Aug-20,51301424373,"-3,317.00",Beams Foster Care and Family Services Ltd,CARE ESTABLISHMENT,LAC Placements,Placements - independent fostering,Agency Placements - Out of  County
Cambridgeshire County Council,06-Aug-20,51301413968,"-3,250.00",BLACK SWAN CARE GROUP LTD,CARE ESTABLISHMENT,Strategic Management - Adults,Adults Assistant Director,Residential Care
Cambridgeshire County Council,06-Aug-20,51301413968,"-3,250.00",BLACK SWAN CARE GROUP LTD,CARE ESTABLISHMENT,Strategic Management - Adults,Adults Assistant Director,Residential Care
Cambridgeshire County Council,06-Aug-20,51301413968,"-3,250.00",BLACK SWAN CARE GROUP LTD,CARE ESTABLISHMENT,Strategic Management - Adults,Adults Assistant Director,Residential Care
Cambridgeshire County Council,06-Aug-20,51301413968,"-3,250.00",BLACK SWAN CARE GROUP LTD,CARE ESTABLISHMENT,Strategic Management - Adults,Adults Assistant Director,Residential Care
Cambridgeshire County Council,21-Aug-20,51301424375,"-3,210.00",Beams Foster Care and Family Services Ltd,CARE ESTABLISHMENT,LAC Placements,Placements - independent fostering,Agency Placements - Out of  County
Cambridgeshire County Council,06-Aug-20,51301419045,"-2,982.86",KEY2 FUTURES LTD,TRADE SUPPLIER,LAC Placements,Placements - supported accommodation,Agency Placements - In County
Cambridgeshire County Council,06-Aug-20,51301407119,"-2,960.00",CONSENSUS COMMUNITY SUPPORT LTD,CARE ESTABLISHMENT,LD - Young Adults Team,LD - Young Adults - Care,Residential Care
Cambridgeshire County Council,06-Aug-20,51301407119,"-2,960.00",CONSENSUS COMMUNITY SUPPORT LTD,CARE ESTABLISHMENT,LD - Young Adults Team,LD - Young Adults - Care,Residential Care
Cambridgeshire County Council,06-Aug-20,51301413968,"-2,785.71",BLACK SWAN CARE GROUP LTD,CARE ESTABLISHMENT,Strategic Management - Adults,Adults Assistant Director,Residential Care
Cambridgeshire County Council,06-Aug-20,51301413235,"-2,764.80",SEMI INDEPENDENT HOUSE,CARE ESTABLISHMENT,LAC Placements,Placements - supported accommodation,Agency Placements - In County
Cambridgeshire County Council,06-Aug-20,51301413232,"-2,764.80",SEMI INDEPENDENT HOUSE,CARE ESTABLISHMENT,Unaccompanied Asylum Seeking Children,Unaccompanied Asylum Seeking Children <18,Asylum Seekers
Cambridgeshire County Council,04-Aug-20,51301411246,"-2,682.00",Florinee Homes Ltd,CARE ESTABLISHMENT,LAC Placements,Placements - supported accommodation,Agency Placements - In County
Cambridgeshire County Council,06-Aug-20,51301416220,"-2,231.83",THE EDMUND TRUST,CARE ESTABLISHMENT,LD - South Locality - Cost of Care,LD - South Cambs - Care,Domiciliary Care
Cambridgeshire County Council,06-Aug-20,51301417797,"-2,222.33",MIHOMECARE LTD (THE CARE AGENCY),CARE ESTABLISHMENT,Autism and Adult Support - Cost of Care,Autism and Adult Support - Care,Domiciliary Care
Cambridgeshire County Council,20-Aug-20,51301424141,"-2,164.76",Redacted Personal Data,SERVICE USER,LD - Hunts Locality - Cost of Care,LD - Huntingdonshire - Special Needs,Direct Payments
Cambridgeshire County Council,20-Aug-20,51301424141,"-2,164.76",Redacted Personal Data,SERVICE USER,LD - Hunts Locality - Cost of Care,LD - Huntingdonshire - Special Needs,Direct Payments
Cambridgeshire County Council,20-Aug-20,51301424141,"-2,164.76",Redacted Personal Data,SERVICE USER,LD - Hunts Locality - Cost of Care,LD - Huntingdonshire - Special Needs,Direct Payments
Cambridgeshire County Council,20-Aug-20,51301424141,"-2,164.76",Redacted Personal Data,SERVICE USER,LD - Hunts Locality - Cost of Care,LD - Huntingdonshire - Special Needs,Direct Payments
Cambridgeshire County Council,20-Aug-20,51301424141,"-2,164.76",Redacted Personal Data,SERVICE USER,LD - Hunts Locality - Cost of Care,LD - Huntingdonshire - Special Needs,Direct Payments
Cambridgeshire County Council,20-Aug-20,51301424159,"-2,114.69",AFFINITY TRUST,CARE ESTABLISHMENT,LD - Fenland Locality - Cost of Care,LD - Fenland  - Care,Supported Living
Cambridgeshire County Council,20-Aug-20,51301424159,"-2,114.69",AFFINITY TRUST,CARE ESTABLISHMENT,LD - Fenland Locality - Cost of Care,LD - Fenland  - Care,Supported Living
Cambridgeshire County Council,20-Aug-20,51301424159,"-2,114.69",AFFINITY TRUST,CARE ESTABLISHMENT,LD - Fenland Locality - Cost of Care,LD - Fenland  - Care,Supported Living
Cambridgeshire County Council,20-Aug-20,51301424159,"-2,114.69",AFFINITY TRUST,CARE ESTABLISHMENT,LD - Fenland Locality - Cost of Care,LD - Fenland  - Care,Supported Living
Cambridgeshire County Council,07-Aug-20,51301410927,"-2,100.00",BIA - MONICA MOYNS,TRADE SUPPLIER,PSW - MCA,MCA/DoLS,Professional Fees and Hired Services
Cambridgeshire County Council,03-Aug-20,51301409733,"-1,963.67",NOTTINGHAM REHAB SUPPLIES LTD,TRADE SUPPLIER,Integrated Community Equipment Service,ICES - CCC Commissioning,Specialist Supplies and Materials
Cambridgeshire County Council,20-Aug-20,51301424159,"-1,812.59",AFFINITY TRUST,CARE ESTABLISHMENT,LD - Fenland Locality - Cost of Care,LD - Fenland  - Care,Supported Living
Cambridgeshire County Council,06-Aug-20,51301416159,"-1,755.00",HEADWAY CAMBRIDGESHIRE,CHARITY,Physical Disablity - Cost of Care,Countywide PD Service - Care,Day Care
Cambridgeshire County Council,20-Aug-20,51301424174,"-1,715.23",THE NATIONAL FOSTERING AGENCY,CARE ESTABLISHMENT,LAC Placements,Placements - independent fostering,Agency Placements - Out of  County
Cambridgeshire County Council,24-Aug-20,51301424700,"-1,555.20",LINCOLNSHIRE COUNTY COUNCIL,OTHER PUBLIC BODIES,LAC Transport,LAC Transport - Home to School,Social Care Transport
Cambridgeshire County Council,20-Aug-20,51301424141,"-1,546.26",Redacted Personal Data,SERVICE USER,LD - Hunts Locality - Cost of Care,LD - Huntingdonshire - Special Needs,Direct Payments
Cambridgeshire County Council,06-Aug-20,51301417711,"-1,400.00",WOODLANDS CARE CENTRE,CARE ESTABLISHMENT,Strategic Management - Adults,Adults Assistant Director,Nursing Care
Cambridgeshire County Council,06-Aug-20,51301417711,"-1,400.00",WOODLANDS CARE CENTRE,CARE ESTABLISHMENT,Strategic Management - Adults,Adults Assistant Director,Nursing Care
Cambridgeshire County Council,06-Aug-20,51301417711,"-1,400.00",WOODLANDS CARE CENTRE,CARE ESTABLISHMENT,Strategic Management - Adults,Adults Assistant Director,Nursing Care
Cambridgeshire County Council,06-Aug-20,51301417711,"-1,400.00",WOODLANDS CARE CENTRE,CARE ESTABLISHMENT,Strategic Management - Adults,Adults Assistant Director,Nursing Care
Cambridgeshire County Council,06-Aug-20,51301417711,"-1,400.00",WOODLANDS CARE CENTRE,CARE ESTABLISHMENT,Strategic Management - Adults,Adults Assistant Director,Nursing Care
Cambridgeshire County Council,06-Aug-20,51301417711,"-1,400.00",WOODLANDS CARE CENTRE,CARE ESTABLISHMENT,Strategic Management - Adults,Adults Assistant Director,Nursing Care
Cambridgeshire County Council,06-Aug-20,51301417711,"-1,400.00",WOODLANDS CARE CENTRE,CARE ESTABLISHMENT,Strategic Management - Adults,Adults Assistant Director,Nursing Care
Cambridgeshire County Council,06-Aug-20,51301417711,"-1,400.00",WOODLANDS CARE CENTRE,CARE ESTABLISHMENT,Strategic Management - Adults,Adults Assistant Director,Nursing Care
Cambridgeshire County Council,06-Aug-20,51301417711,"-1,400.00",WOODLANDS CARE CENTRE,CARE ESTABLISHMENT,Strategic Management - Adults,Adults Assistant Director,Nursing Care
Cambridgeshire County Council,06-Aug-20,51301417711,"-1,400.00",WOODLANDS CARE CENTRE,CARE ESTABLISHMENT,Strategic Management - Adults,Adults Assistant Director,Nursing Care
Cambridgeshire County Council,06-Aug-20,51301417711,"-1,400.00",WOODLANDS CARE CENTRE,CARE ESTABLISHMENT,Strategic Management - Adults,Adults Assistant Director,Nursing Care
Cambridgeshire County Council,06-Aug-20,51301417711,"-1,400.00",WOODLANDS CARE CENTRE,CARE ESTABLISHMENT,Strategic Management - Adults,Adults Assistant Director,Nursing Care
Cambridgeshire County Council,06-Aug-20,51301417711,"-1,400.00",WOODLANDS CARE CENTRE,CARE ESTABLISHMENT,Strategic Management - Adults,Adults Assistant Director,Nursing Care
Cambridgeshire County Council,14-Aug-20,51301421451,"-1,400.00",OAKLANDS CARE HOME,CARE ESTABLISHMENT,Strategic Management - Adults,Adults Assistant Director,Nursing Care
Cambridgeshire County Council,14-Aug-20,51301421451,"-1,400.00",OAKLANDS CARE HOME,CARE ESTABLISHMENT,Strategic Management - Adults,Adults Assistant Director,Nursing Care
Cambridgeshire County Council,14-Aug-20,51301421451,"-1,400.00",OAKLANDS CARE HOME,CARE ESTABLISHMENT,Strategic Management - Adults,Adults Assistant Director,Nursing Care
Cambridgeshire County Council,14-Aug-20,51301421451,"-1,400.00",OAKLANDS CARE HOME,CARE ESTABLISHMENT,Strategic Management - Adults,Adults Assistant Director,Nursing Care
Cambridgeshire County Council,14-Aug-20,51301421451,"-1,400.00",OAKLANDS CARE HOME,CARE ESTABLISHMENT,Strategic Management - Adults,Adults Assistant Director,Nursing Care
Cambridgeshire County Council,14-Aug-20,51301421451,"-1,400.00",OAKLANDS CARE HOME,CARE ESTABLISHMENT,Strategic Management - Adults,Adults Assistant Director,Nursing Care
Cambridgeshire County Council,14-Aug-20,51301421451,"-1,400.00",OAKLANDS CARE HOME,CARE ESTABLISHMENT,Strategic Management - Adults,Adults Assistant Director,Nursing Care
Cambridgeshire County Council,14-Aug-20,51301421451,"-1,400.00",OAKLANDS CARE HOME,CARE ESTABLISHMENT,Strategic Management - Adults,Adults Assistant Director,Nursing Care
Cambridgeshire County Council,14-Aug-20,51301421451,"-1,400.00",OAKLANDS CARE HOME,CARE ESTABLISHMENT,Strategic Management - Adults,Adults Assistant Director,Nursing Care
Cambridgeshire County Council,14-Aug-20,51301421451,"-1,400.00",OAKLANDS CARE HOME,CARE ESTABLISHMENT,Strategic Management - Adults,Adults Assistant Director,Nursing Care
Cambridgeshire County Council,06-Aug-20,51301407122,"-1,349.70",THE MARBROOK CENTRE,CARE ESTABLISHMENT,OPMH - Under 65,Older People Mental Health - Under 65's,Nursing Care
Cambridgeshire County Council,06-Aug-20,51301407122,"-1,349.70",THE MARBROOK CENTRE,CARE ESTABLISHMENT,OPMH - Under 65,Older People Mental Health - Under 65's,Nursing Care
Cambridgeshire County Council,06-Aug-20,51301418326,"-1,343.23",VOYAGE,CARE ESTABLISHMENT,LD - Fenland Locality - Cost of Care,LD - Fenland  - Care,Domiciliary Care
Cambridgeshire County Council,06-Aug-20,51301418326,"-1,343.23",VOYAGE,CARE ESTABLISHMENT,LD - Fenland Locality - Cost of Care,LD - Fenland  - Care,Domiciliary Care
Cambridgeshire County Council,06-Aug-20,51301418326,"-1,343.23",VOYAGE,CARE ESTABLISHMENT,LD - Fenland Locality - Cost of Care,LD - Fenland  - Care,Domiciliary Care
Cambridgeshire County Council,06-Aug-20,51301418326,"-1,343.23",VOYAGE,CARE ESTABLISHMENT,LD - Fenland Locality - Cost of Care,LD - Fenland  - Care,Domiciliary Care
Cambridgeshire County Council,06-Aug-20,51301415667,"-1,323.70",ETHELDRED HOUSE,CARE ESTABLISHMENT,OP - East Cambs Locality - Cost of Care,East Cambs - O P Team - Care,Nursing Care
Cambridgeshire County Council,06-Aug-20,51301415667,"-1,323.70",ETHELDRED HOUSE,CARE ESTABLISHMENT,OP - East Cambs Locality - Cost of Care,East Cambs - O P Team - Care,Nursing Care
Cambridgeshire County Council,06-Aug-20,51301415667,"-1,323.70",ETHELDRED HOUSE,CARE ESTABLISHMENT,OP - East Cambs Locality - Cost of Care,East Cambs - O P Team - Care,Nursing Care
Cambridgeshire County Council,06-Aug-20,51301415667,"-1,323.70",ETHELDRED HOUSE,CARE ESTABLISHMENT,OP - East Cambs Locality - Cost of Care,East Cambs - O P Team - Care,Nursing Care
Cambridgeshire County Council,06-Aug-20,51301415667,"-1,323.70",ETHELDRED HOUSE,CARE ESTABLISHMENT,OP - East Cambs Locality - Cost of Care,East Cambs - O P Team - Care,Nursing Care
Cambridgeshire County Council,06-Aug-20,51301415667,"-1,323.70",ETHELDRED HOUSE,CARE ESTABLISHMENT,OP - East Cambs Locality - Cost of Care,East Cambs - O P Team - Care,Nursing Care
Cambridgeshire County Council,06-Aug-20,51301415667,"-1,323.70",ETHELDRED HOUSE,CARE ESTABLISHMENT,OP - East Cambs Locality - Cost of Care,East Cambs - O P Team - Care,Nursing Care
Cambridgeshire County Council,06-Aug-20,51301415667,"-1,323.70",ETHELDRED HOUSE,CARE ESTABLISHMENT,OP - East Cambs Locality - Cost of Care,East Cambs - O P Team - Care,Nursing Care
Cambridgeshire County Council,06-Aug-20,51301415667,"-1,323.70",ETHELDRED HOUSE,CARE ESTABLISHMENT,OP - East Cambs Locality - Cost of Care,East Cambs - O P Team - Care,Nursing Care
Cambridgeshire County Council,06-Aug-20,51301415667,"-1,323.70",ETHELDRED HOUSE,CARE ESTABLISHMENT,OP - East Cambs Locality - Cost of Care,East Cambs - O P Team - Care,Nursing Care
Cambridgeshire County Council,06-Aug-20,51301415667,"-1,323.70",ETHELDRED HOUSE,CARE ESTABLISHMENT,OP - East Cambs Locality - Cost of Care,East Cambs - O P Team - Care,Nursing Care
Cambridgeshire County Council,06-Aug-20,51301415667,"-1,323.70",ETHELDRED HOUSE,CARE ESTABLISHMENT,OP - East Cambs Locality - Cost of Care,East Cambs - O P Team - Care,Nursing Care
Cambridgeshire County Council,06-Aug-20,51301415667,"-1,323.70",ETHELDRED HOUSE,CARE ESTABLISHMENT,OP - East Cambs Locality - Cost of Care,East Cambs - O P Team - Care,Nursing Care
Cambridgeshire County Council,06-Aug-20,51301415667,"-1,323.70",ETHELDRED HOUSE,CARE ESTABLISHMENT,OP - East Cambs Locality - Cost of Care,East Cambs - O P Team - Care,Nursing Care
Cambridgeshire County Council,06-Aug-20,51301415667,"-1,323.70",ETHELDRED HOUSE,CARE ESTABLISHMENT,OP - East Cambs Locality - Cost of Care,East Cambs - O P Team - Care,Nursing Care
Cambridgeshire County Council,06-Aug-20,51301415667,"-1,323.70",ETHELDRED HOUSE,CARE ESTABLISHMENT,OP - East Cambs Locality - Cost of Care,East Cambs - O P Team - Care,Nursing Care
Cambridgeshire County Council,06-Aug-20,51301415667,"-1,323.70",ETHELDRED HOUSE,CARE ESTABLISHMENT,OP - East Cambs Locality - Cost of Care,East Cambs - O P Team - Care,Nursing Care
Cambridgeshire County Council,06-Aug-20,51301415667,"-1,323.70",ETHELDRED HOUSE,CARE ESTABLISHMENT,OP - East Cambs Locality - Cost of Care,East Cambs - O P Team - Care,Nursing Care
Cambridgeshire County Council,06-Aug-20,51301415667,"-1,323.70",ETHELDRED HOUSE,CARE ESTABLISHMENT,OP - East Cambs Locality - Cost of Care,East Cambs - O P Team - Care,Nursing Care
Cambridgeshire County Council,06-Aug-20,51301415667,"-1,323.70",ETHELDRED HOUSE,CARE ESTABLISHMENT,OP - East Cambs Locality - Cost of Care,East Cambs - O P Team - Care,Nursing Care
Cambridgeshire County Council,06-Aug-20,51301415667,"-1,323.70",ETHELDRED HOUSE,CARE ESTABLISHMENT,OP - East Cambs Locality - Cost of Care,East Cambs - O P Team - Care,Nursing Care
Cambridgeshire County Council,06-Aug-20,51301415667,"-1,323.70",ETHELDRED HOUSE,CARE ESTABLISHMENT,OP - East Cambs Locality - Cost of Care,East Cambs - O P Team - Care,Nursing Care
Cambridgeshire County Council,06-Aug-20,51301415667,"-1,323.70",ETHELDRED HOUSE,CARE ESTABLISHMENT,OP - East Cambs Locality - Cost of Care,East Cambs - O P Team - Care,Nursing Care
Cambridgeshire County Council,06-Aug-20,51301415667,"-1,323.70",ETHELDRED HOUSE,CARE ESTABLISHMENT,OP - East Cambs Locality - Cost of Care,East Cambs - O P Team - Care,Nursing Care
Cambridgeshire County Council,06-Aug-20,51301415667,"-1,323.70",ETHELDRED HOUSE,CARE ESTABLISHMENT,OP - East Cambs Locality - Cost of Care,East Cambs - O P Team - Care,Nursing Care
Cambridgeshire County Council,06-Aug-20,51301415667,"-1,323.70",ETHELDRED HOUSE,CARE ESTABLISHMENT,OP - East Cambs Locality - Cost of Care,East Cambs - O P Team - Care,Nursing Care
Cambridgeshire County Council,06-Aug-20,51301415667,"-1,323.70",ETHELDRED HOUSE,CARE ESTABLISHMENT,OP - East Cambs Locality - Cost of Care,East Cambs - O P Team - Care,Nursing Care
Cambridgeshire County Council,06-Aug-20,51301415667,"-1,323.70",ETHELDRED HOUSE,CARE ESTABLISHMENT,OP - East Cambs Locality - Cost of Care,East Cambs - O P Team - Care,Nursing Care
Cambridgeshire County Council,06-Aug-20,51301415667,"-1,323.70",ETHELDRED HOUSE,CARE ESTABLISHMENT,OP - East Cambs Locality - Cost of Care,East Cambs - O P Team - Care,Nursing Care
Cambridgeshire County Council,06-Aug-20,51301415667,"-1,323.70",ETHELDRED HOUSE,CARE ESTABLISHMENT,OP - East Cambs Locality - Cost of Care,East Cambs - O P Team - Care,Nursing Care
Cambridgeshire County Council,06-Aug-20,51301415667,"-1,323.70",ETHELDRED HOUSE,CARE ESTABLISHMENT,OP - East Cambs Locality - Cost of Care,East Cambs - O P Team - Care,Nursing Care
Cambridgeshire County Council,06-Aug-20,51301415667,"-1,323.70",ETHELDRED HOUSE,CARE ESTABLISHMENT,OP - East Cambs Locality - Cost of Care,East Cambs - O P Team - Care,Nursing Care
Cambridgeshire County Council,06-Aug-20,51301415667,"-1,323.70",ETHELDRED HOUSE,CARE ESTABLISHMENT,OP - East Cambs Locality - Cost of Care,East Cambs - O P Team - Care,Nursing Care
Cambridgeshire County Council,06-Aug-20,51301415667,"-1,323.70",ETHELDRED HOUSE,CARE ESTABLISHMENT,OP - East Cambs Locality - Cost of Care,East Cambs - O P Team - Care,Nursing Care
Cambridgeshire County Council,06-Aug-20,51301415667,"-1,323.70",ETHELDRED HOUSE,CARE ESTABLISHMENT,OP - East Cambs Locality - Cost of Care,East Cambs - O P Team - Care,Nursing Care
Cambridgeshire County Council,06-Aug-20,51301415667,"-1,323.70",ETHELDRED HOUSE,CARE ESTABLISHMENT,OP - East Cambs Locality - Cost of Care,East Cambs - O P Team - Care,Nursing Care
Cambridgeshire County Council,06-Aug-20,51301415667,"-1,323.70",ETHELDRED HOUSE,CARE ESTABLISHMENT,OP - East Cambs Locality - Cost of Care,East Cambs - O P Team - Care,Nursing Care
Cambridgeshire County Council,06-Aug-20,51301415667,"-1,323.70",ETHELDRED HOUSE,CARE ESTABLISHMENT,OP - East Cambs Locality - Cost of Care,East Cambs - O P Team - Care,Nursing Care
Cambridgeshire County Council,06-Aug-20,51301415667,"-1,323.70",ETHELDRED HOUSE,CARE ESTABLISHMENT,OP - East Cambs Locality - Cost of Care,East Cambs - O P Team - Care,Nursing Care
Cambridgeshire County Council,06-Aug-20,51301415667,"-1,323.70",ETHELDRED HOUSE,CARE ESTABLISHMENT,OP - East Cambs Locality - Cost of Care,East Cambs - O P Team - Care,Nursing Care
Cambridgeshire County Council,06-Aug-20,51301415667,"-1,323.70",ETHELDRED HOUSE,CARE ESTABLISHMENT,OP - East Cambs Locality - Cost of Care,East Cambs - O P Team - Care,Nursing Care
Cambridgeshire County Council,06-Aug-20,51301415667,"-1,323.70",ETHELDRED HOUSE,CARE ESTABLISHMENT,OP - East Cambs Locality - Cost of Care,East Cambs - O P Team - Care,Nursing Care
Cambridgeshire County Council,06-Aug-20,51301415667,"-1,323.70",ETHELDRED HOUSE,CARE ESTABLISHMENT,OP - East Cambs Locality - Cost of Care,East Cambs - O P Team - Care,Nursing Care
Cambridgeshire County Council,06-Aug-20,51301415667,"-1,323.70",ETHELDRED HOUSE,CARE ESTABLISHMENT,OP - East Cambs Locality - Cost of Care,East Cambs - O P Team - Care,Nursing Care
Cambridgeshire County Council,06-Aug-20,51301407119,"-1,268.57",CONSENSUS COMMUNITY SUPPORT LTD,CARE ESTABLISHMENT,LD - Young Adults Team,LD - Young Adults - Care,Residential Care
Cambridgeshire County Council,14-Aug-20,51301421517,"-1,224.00",THERA EAST ANGLIA,CARE ESTABLISHMENT,LD - Fenland Locality - Cost of Care,LD - Fenland  - Special Needs,Supported Living
Cambridgeshire County Council,14-Aug-20,51301421517,"-1,224.00",THERA EAST ANGLIA,CARE ESTABLISHMENT,LD - Fenland Locality - Cost of Care,LD - Fenland  - Special Needs,Supported Living
Cambridgeshire County Council,14-Aug-20,51301421517,"-1,224.00",THERA EAST ANGLIA,CARE ESTABLISHMENT,LD - Fenland Locality - Cost of Care,LD - Fenland  - Special Needs,Supported Living
Cambridgeshire County Council,14-Aug-20,51301421517,"-1,224.00",THERA EAST ANGLIA,CARE ESTABLISHMENT,LD - Fenland Locality - Cost of Care,LD - Fenland  - Special Needs,Supported Living
Cambridgeshire County Council,14-Aug-20,51301421517,"-1,224.00",THERA EAST ANGLIA,CARE ESTABLISHMENT,LD - Fenland Locality - Cost of Care,LD - Fenland  - Special Needs,Supported Living
Cambridgeshire County Council,14-Aug-20,51301421517,"-1,224.00",THERA EAST ANGLIA,CARE ESTABLISHMENT,LD - Fenland Locality - Cost of Care,LD - Fenland  - Special Needs,Supported Living
Cambridgeshire County Council,14-Aug-20,51301421517,"-1,224.00",THERA EAST ANGLIA,CARE ESTABLISHMENT,LD - Fenland Locality - Cost of Care,LD - Fenland  - Special Needs,Supported Living
Cambridgeshire County Council,14-Aug-20,51301421517,"-1,224.00",THERA EAST ANGLIA,CARE ESTABLISHMENT,LD - Fenland Locality - Cost of Care,LD - Fenland  - Special Needs,Supported Living
Cambridgeshire County Council,14-Aug-20,51301421517,"-1,224.00",THERA EAST ANGLIA,CARE ESTABLISHMENT,LD - Fenland Locality - Cost of Care,LD - Fenland  - Special Needs,Supported Living
Cambridgeshire County Council,14-Aug-20,51301421517,"-1,224.00",THERA EAST ANGLIA,CARE ESTABLISHMENT,LD - Fenland Locality - Cost of Care,LD - Fenland  - Special Needs,Supported Living
Cambridgeshire County Council,14-Aug-20,51301421517,"-1,224.00",THERA EAST ANGLIA,CARE ESTABLISHMENT,LD - Fenland Locality - Cost of Care,LD - Fenland  - Special Needs,Supported Living
Cambridgeshire County Council,14-Aug-20,51301421517,"-1,224.00",THERA EAST ANGLIA,CARE ESTABLISHMENT,LD - Fenland Locality - Cost of Care,LD - Fenland  - Special Needs,Supported Living
Cambridgeshire County Council,14-Aug-20,51301421517,"-1,224.00",THERA EAST ANGLIA,CARE ESTABLISHMENT,LD - Fenland Locality - Cost of Care,LD - Fenland  - Special Needs,Supported Living
Cambridgeshire County Council,14-Aug-20,51301421517,"-1,224.00",THERA EAST ANGLIA,CARE ESTABLISHMENT,LD - Fenland Locality - Cost of Care,LD - Fenland  - Special Needs,Supported Living
Cambridgeshire County Council,14-Aug-20,51301421517,"-1,224.00",THERA EAST ANGLIA,CARE ESTABLISHMENT,LD - Fenland Locality - Cost of Care,LD - Fenland  - Special Needs,Supported Living
Cambridgeshire County Council,14-Aug-20,51301421517,"-1,224.00",THERA EAST ANGLIA,CARE ESTABLISHMENT,LD - Fenland Locality - Cost of Care,LD - Fenland  - Special Needs,Supported Living
Cambridgeshire County Council,14-Aug-20,51301421517,"-1,224.00",THERA EAST ANGLIA,CARE ESTABLISHMENT,LD - Fenland Locality - Cost of Care,LD - Fenland  - Special Needs,Supported Living
Cambridgeshire County Council,14-Aug-20,51301421517,"-1,224.00",THERA EAST ANGLIA,CARE ESTABLISHMENT,LD - Fenland Locality - Cost of Care,LD - Fenland  - Special Needs,Supported Living
Cambridgeshire County Council,14-Aug-20,51301421517,"-1,224.00",THERA EAST ANGLIA,CARE ESTABLISHMENT,LD - Fenland Locality - Cost of Care,LD - Fenland  - Special Needs,Supported Living
Cambridgeshire County Council,14-Aug-20,51301421517,"-1,224.00",THERA EAST ANGLIA,CARE ESTABLISHMENT,LD - Fenland Locality - Cost of Care,LD - Fenland  - Special Needs,Supported Living
Cambridgeshire County Council,14-Aug-20,51301421517,"-1,224.00",THERA EAST ANGLIA,CARE ESTABLISHMENT,LD - Fenland Locality - Cost of Care,LD - Fenland  - Special Needs,Supported Living
Cambridgeshire County Council,14-Aug-20,51301421517,"-1,224.00",THERA EAST ANGLIA,CARE ESTABLISHMENT,LD - Fenland Locality - Cost of Care,LD - Fenland  - Special Needs,Supported Living
Cambridgeshire County Council,14-Aug-20,51301421517,"-1,224.00",THERA EAST ANGLIA,CARE ESTABLISHMENT,LD - Fenland Locality - Cost of Care,LD - Fenland  - Special Needs,Supported Living
Cambridgeshire County Council,14-Aug-20,51301421517,"-1,224.00",THERA EAST ANGLIA,CARE ESTABLISHMENT,LD - Fenland Locality - Cost of Care,LD - Fenland  - Special Needs,Supported Living
Cambridgeshire County Council,14-Aug-20,51301421517,"-1,224.00",THERA EAST ANGLIA,CARE ESTABLISHMENT,LD - Fenland Locality - Cost of Care,LD - Fenland  - Special Needs,Supported Living
Cambridgeshire County Council,14-Aug-20,51301421517,"-1,224.00",THERA EAST ANGLIA,CARE ESTABLISHMENT,LD - Fenland Locality - Cost of Care,LD - Fenland  - Special Needs,Supported Living
Cambridgeshire County Council,14-Aug-20,51301421517,"-1,224.00",THERA EAST ANGLIA,CARE ESTABLISHMENT,LD - Fenland Locality - Cost of Care,LD - Fenland  - Special Needs,Supported Living
Cambridgeshire County Council,14-Aug-20,51301421517,"-1,224.00",THERA EAST ANGLIA,CARE ESTABLISHMENT,LD - Fenland Locality - Cost of Care,LD - Fenland  - Special Needs,Supported Living
Cambridgeshire County Council,14-Aug-20,51301421554,"-1,160.92",CARETECH COMMUNITY SERVICES,CARE ESTABLISHMENT,LD - Hunts Locality - Cost of Care,LD - Huntingdonshire - Care,Residential Care
Cambridgeshire County Council,14-Aug-20,51301421554,"-1,160.92",CARETECH COMMUNITY SERVICES,CARE ESTABLISHMENT,LD - Hunts Locality - Cost of Care,LD - Huntingdonshire - Care,Residential Care
Cambridgeshire County Council,14-Aug-20,51301421554,"-1,160.92",CARETECH COMMUNITY SERVICES,CARE ESTABLISHMENT,LD - Hunts Locality - Cost of Care,LD - Huntingdonshire - Care,Residential Care
Cambridgeshire County Council,14-Aug-20,51301421554,"-1,160.92",CARETECH COMMUNITY SERVICES,CARE ESTABLISHMENT,LD - Hunts Locality - Cost of Care,LD - Huntingdonshire - Care,Residential Care
Cambridgeshire County Council,06-Aug-20,51301407122,"-1,156.89",THE MARBROOK CENTRE,CARE ESTABLISHMENT,OPMH - Under 65,Older People Mental Health - Under 65's,Nursing Care
Cambridgeshire County Council,14-Aug-20,51301421530,"-1,148.81",73 HIGH ROAD,CARE ESTABLISHMENT,LD - South Locality - Cost of Care,LD - South Cambs - Care,Supported Living
Cambridgeshire County Council,14-Aug-20,51301421530,"-1,148.81",73 HIGH ROAD,CARE ESTABLISHMENT,LD - South Locality - Cost of Care,LD - South Cambs - Care,Supported Living
Cambridgeshire County Council,14-Aug-20,51301421530,"-1,148.81",73 HIGH ROAD,CARE ESTABLISHMENT,LD - South Locality - Cost of Care,LD - South Cambs - Care,Supported Living
Cambridgeshire County Council,14-Aug-20,51301421530,"-1,148.81",73 HIGH ROAD,CARE ESTABLISHMENT,LD - South Locality - Cost of Care,LD - South Cambs - Care,Supported Living
Cambridgeshire County Council,14-Aug-20,51301421530,"-1,148.81",73 HIGH ROAD,CARE ESTABLISHMENT,LD - South Locality - Cost of Care,LD - South Cambs - Care,Supported Living
Cambridgeshire County Council,14-Aug-20,51301421530,"-1,148.81",73 HIGH ROAD,CARE ESTABLISHMENT,LD - South Locality - Cost of Care,LD - South Cambs - Care,Supported Living
Cambridgeshire County Council,14-Aug-20,51301421530,"-1,148.81",73 HIGH ROAD,CARE ESTABLISHMENT,LD - South Locality - Cost of Care,LD - South Cambs - Care,Supported Living
Cambridgeshire County Council,14-Aug-20,51301421530,"-1,148.81",73 HIGH ROAD,CARE ESTABLISHMENT,LD - South Locality - Cost of Care,LD - South Cambs - Care,Supported Living
Cambridgeshire County Council,14-Aug-20,51301421530,"-1,148.81",73 HIGH ROAD,CARE ESTABLISHMENT,LD - South Locality - Cost of Care,LD - South Cambs - Care,Supported Living
Cambridgeshire County Council,14-Aug-20,51301421530,"-1,148.81",73 HIGH ROAD,CARE ESTABLISHMENT,LD - South Locality - Cost of Care,LD - South Cambs - Care,Supported Living
Cambridgeshire County Council,14-Aug-20,51301421530,"-1,148.81",73 HIGH ROAD,CARE ESTABLISHMENT,LD - South Locality - Cost of Care,LD - South Cambs - Care,Supported Living
Cambridgeshire County Council,14-Aug-20,51301421530,"-1,148.81",73 HIGH ROAD,CARE ESTABLISHMENT,LD - South Locality - Cost of Care,LD - South Cambs - Care,Supported Living
Cambridgeshire County Council,14-Aug-20,51301421530,"-1,148.81",73 HIGH ROAD,CARE ESTABLISHMENT,LD - South Locality - Cost of Care,LD - South Cambs - Care,Supported Living
Cambridgeshire County Council,14-Aug-20,51301421530,"-1,148.81",73 HIGH ROAD,CARE ESTABLISHMENT,LD - South Locality - Cost of Care,LD - South Cambs - Care,Supported Living
Cambridgeshire County Council,14-Aug-20,51301421530,"-1,148.81",73 HIGH ROAD,CARE ESTABLISHMENT,LD - South Locality - Cost of Care,LD - South Cambs - Care,Supported Living
Cambridgeshire County Council,14-Aug-20,51301421530,"-1,148.81",73 HIGH ROAD,CARE ESTABLISHMENT,LD - South Locality - Cost of Care,LD - South Cambs - Care,Supported Living
Cambridgeshire County Council,14-Aug-20,51301421530,"-1,148.81",73 HIGH ROAD,CARE ESTABLISHMENT,LD - South Locality - Cost of Care,LD - South Cambs - Care,Supported Living
Cambridgeshire County Council,14-Aug-20,51301421530,"-1,148.81",73 HIGH ROAD,CARE ESTABLISHMENT,LD - South Locality - Cost of Care,LD - South Cambs - Care,Supported Living
Cambridgeshire County Council,14-Aug-20,51301421530,"-1,148.81",73 HIGH ROAD,CARE ESTABLISHMENT,LD - South Locality - Cost of Care,LD - South Cambs - Care,Supported Living
Cambridgeshire County Council,06-Aug-20,51301410040,"-1,114.29",CAMBRIDGE MANOR CARE HOME (TLC),CARE ESTABLISHMENT,OP - City & South Locality - Cost of Care,Older People - City & South - Care,Nursing Care
Cambridgeshire County Council,06-Aug-20,51301415518,"-1,096.94",ELTISLEY MANOR (PSYCARE LTD),CARE ESTABLISHMENT,Physical Disablity - Cost of Care,Countywide PD Service - Care,Nursing Care
Cambridgeshire County Council,06-Aug-20,51301415518,"-1,096.94",ELTISLEY MANOR (PSYCARE LTD),CARE ESTABLISHMENT,Physical Disablity - Cost of Care,Countywide PD Service - Care,Nursing Care
Cambridgeshire County Council,06-Aug-20,51301415518,"-1,096.94",ELTISLEY MANOR (PSYCARE LTD),CARE ESTABLISHMENT,Physical Disablity - Cost of Care,Countywide PD Service - Care,Nursing Care
Cambridgeshire County Council,06-Aug-20,51301415518,"-1,096.94",ELTISLEY MANOR (PSYCARE LTD),CARE ESTABLISHMENT,Physical Disablity - Cost of Care,Countywide PD Service - Care,Nursing Care
Cambridgeshire County Council,06-Aug-20,51301413340,"-1,080.00",24/7 Support UK Limited,CARE ESTABLISHMENT,Unaccompanied Asylum Seeking Children,Unaccompanied Asylum Seeking Children <18,Asylum Seekers
Cambridgeshire County Council,06-Aug-20,51301413352,"-1,080.00",24/7 Support UK Limited,CARE ESTABLISHMENT,Unaccompanied Asylum Seeking Children,Unaccompanied Asylum Seeking Children <18,Asylum Seekers
Cambridgeshire County Council,06-Aug-20,51301413346,"-1,080.00",24/7 Support UK Limited,CARE ESTABLISHMENT,Unaccompanied Asylum Seeking Children,Unaccompanied Asylum Seeking Children <18,Asylum Seekers
Cambridgeshire County Council,07-Aug-20,51301419251,"-1,078.70",INTERSERVE HEALTHCARE GROUP,CARE ESTABLISHMENT,OPMH - Hunts & Fens,Older People Mental Health Fenland,Domiciliary Care
Cambridgeshire County Council,07-Aug-20,51301419251,"-1,078.70",INTERSERVE HEALTHCARE GROUP,CARE ESTABLISHMENT,OPMH - Hunts & Fens,Older People Mental Health Fenland,Domiciliary Care
Cambridgeshire County Council,07-Aug-20,51301419251,"-1,078.70",INTERSERVE HEALTHCARE GROUP,CARE ESTABLISHMENT,OPMH - Hunts & Fens,Older People Mental Health Fenland,Domiciliary Care
Cambridgeshire County Council,07-Aug-20,51301419251,"-1,078.70",INTERSERVE HEALTHCARE GROUP,CARE ESTABLISHMENT,OPMH - Hunts & Fens,Older People Mental Health Fenland,Domiciliary Care
Cambridgeshire County Council,07-Aug-20,51301419251,"-1,078.70",INTERSERVE HEALTHCARE GROUP,CARE ESTABLISHMENT,OPMH - Hunts & Fens,Older People Mental Health Fenland,Domiciliary Care
Cambridgeshire County Council,06-Aug-20,51301418749,"-1,059.38",DIMENSIONS (UK) LTD,CARE ESTABLISHMENT,LD - South Locality - Cost of Care,LD - South Cambs - Care,Supported Living
Cambridgeshire County Council,06-Aug-20,51301418749,"-1,059.38",DIMENSIONS (UK) LTD,CARE ESTABLISHMENT,LD - South Locality - Cost of Care,LD - South Cambs - Care,Supported Living
Cambridgeshire County Council,06-Aug-20,51301418749,"-1,059.38",DIMENSIONS (UK) LTD,CARE ESTABLISHMENT,LD - South Locality - Cost of Care,LD - South Cambs - Care,Supported Living
Cambridgeshire County Council,06-Aug-20,51301418749,"-1,059.38",DIMENSIONS (UK) LTD,CARE ESTABLISHMENT,LD - South Locality - Cost of Care,LD - South Cambs - Care,Supported Living
Cambridgeshire County Council,06-Aug-20,51301418749,"-1,059.38",DIMENSIONS (UK) LTD,CARE ESTABLISHMENT,LD - South Locality - Cost of Care,LD - South Cambs - Care,Supported Living
Cambridgeshire County Council,06-Aug-20,51301418749,"-1,059.38",DIMENSIONS (UK) LTD,CARE ESTABLISHMENT,LD - South Locality - Cost of Care,LD - South Cambs - Care,Supported Living
Cambridgeshire County Council,06-Aug-20,51301418749,"-1,059.38",DIMENSIONS (UK) LTD,CARE ESTABLISHMENT,LD - South Locality - Cost of Care,LD - South Cambs - Care,Supported Living
Cambridgeshire County Council,06-Aug-20,51301418749,"-1,059.38",DIMENSIONS (UK) LTD,CARE ESTABLISHMENT,LD - South Locality - Cost of Care,LD - South Cambs - Care,Supported Living
Cambridgeshire County Council,06-Aug-20,51301418749,"-1,059.38",DIMENSIONS (UK) LTD,CARE ESTABLISHMENT,LD - South Locality - Cost of Care,LD - South Cambs - Care,Supported Living
Cambridgeshire County Council,06-Aug-20,51301418749,"-1,059.38",DIMENSIONS (UK) LTD,CARE ESTABLISHMENT,LD - South Locality - Cost of Care,LD - South Cambs - Care,Supported Living
Cambridgeshire County Council,06-Aug-20,51301418749,"-1,059.38",DIMENSIONS (UK) LTD,CARE ESTABLISHMENT,LD - South Locality - Cost of Care,LD - South Cambs - Care,Supported Living
Cambridgeshire County Council,06-Aug-20,51301418749,"-1,059.38",DIMENSIONS (UK) LTD,CARE ESTABLISHMENT,LD - South Locality - Cost of Care,LD - South Cambs - Care,Supported Living
Cambridgeshire County Council,06-Aug-20,51301418749,"-1,059.38",DIMENSIONS (UK) LTD,CARE ESTABLISHMENT,LD - South Locality - Cost of Care,LD - South Cambs - Care,Supported Living
Cambridgeshire County Council,06-Aug-20,51301418749,"-1,059.38",DIMENSIONS (UK) LTD,CARE ESTABLISHMENT,LD - South Locality - Cost of Care,LD - South Cambs - Care,Supported Living
Cambridgeshire County Council,06-Aug-20,51301418749,"-1,059.38",DIMENSIONS (UK) LTD,CARE ESTABLISHMENT,LD - South Locality - Cost of Care,LD - South Cambs - Care,Supported Living
Cambridgeshire County Council,06-Aug-20,51301418749,"-1,059.38",DIMENSIONS (UK) LTD,CARE ESTABLISHMENT,LD - South Locality - Cost of Care,LD - South Cambs - Care,Supported Living
Cambridgeshire County Council,06-Aug-20,51301418749,"-1,059.38",DIMENSIONS (UK) LTD,CARE ESTABLISHMENT,LD - South Locality - Cost of Care,LD - South Cambs - Care,Supported Living
Cambridgeshire County Council,06-Aug-20,51301418749,"-1,059.38",DIMENSIONS (UK) LTD,CARE ESTABLISHMENT,LD - South Locality - Cost of Care,LD - South Cambs - Care,Supported Living
Cambridgeshire County Council,06-Aug-20,51301415491,"-1,034.44",LONGUEVILLE COURT,CARE ESTABLISHMENT,OP - Hunts Locality - Cost of Care,Hunts OP Team - Care,Nursing Care
Cambridgeshire County Council,06-Aug-20,51301415491,"-1,034.44",LONGUEVILLE COURT,CARE ESTABLISHMENT,OP - Hunts Locality - Cost of Care,Hunts OP Team - Care,Nursing Care
Cambridgeshire County Council,06-Aug-20,51301415491,"-1,034.44",LONGUEVILLE COURT,CARE ESTABLISHMENT,OP - Hunts Locality - Cost of Care,Hunts OP Team - Care,Nursing Care
Cambridgeshire County Council,06-Aug-20,51301415491,"-1,034.44",LONGUEVILLE COURT,CARE ESTABLISHMENT,OP - Hunts Locality - Cost of Care,Hunts OP Team - Care,Nursing Care
Cambridgeshire County Council,06-Aug-20,51301415491,"-1,034.44",LONGUEVILLE COURT,CARE ESTABLISHMENT,OP - Hunts Locality - Cost of Care,Hunts OP Team - Care,Nursing Care
Cambridgeshire County Council,21-Aug-20,51301424402,"-1,007.00",GREENSLEEVES HOMES  TRUST - ROSE COTTACE,CARE ESTABLISHMENT,OP - Hunts Locality - Cost of Care,Hunts OP Team - Care,Residential Care
Cambridgeshire County Council,21-Aug-20,51301424402,"-1,007.00",GREENSLEEVES HOMES  TRUST - ROSE COTTACE,CARE ESTABLISHMENT,OP - Hunts Locality - Cost of Care,Hunts OP Team - Care,Residential Care
Cambridgeshire County Council,21-Aug-20,51301424402,"-1,007.00",GREENSLEEVES HOMES  TRUST - ROSE COTTACE,CARE ESTABLISHMENT,OP - Hunts Locality - Cost of Care,Hunts OP Team - Care,Residential Care
Cambridgeshire County Council,21-Aug-20,51301424402,"-1,007.00",GREENSLEEVES HOMES  TRUST - ROSE COTTACE,CARE ESTABLISHMENT,OP - Hunts Locality - Cost of Care,Hunts OP Team - Care,Residential Care
Cambridgeshire County Council,21-Aug-20,51301424402,"-1,007.00",GREENSLEEVES HOMES  TRUST - ROSE COTTACE,CARE ESTABLISHMENT,OP - Hunts Locality - Cost of Care,Hunts OP Team - Care,Residential Care
Cambridgeshire County Council,21-Aug-20,51301424402,"-1,007.00",GREENSLEEVES HOMES  TRUST - ROSE COTTACE,CARE ESTABLISHMENT,OP - Hunts Locality - Cost of Care,Hunts OP Team - Care,Residential Care
Cambridgeshire County Council,21-Aug-20,51301424402,"-1,007.00",GREENSLEEVES HOMES  TRUST - ROSE COTTACE,CARE ESTABLISHMENT,OP - Hunts Locality - Cost of Care,Hunts OP Team - Care,Residential Care
Cambridgeshire County Council,21-Aug-20,51301424402,"-1,007.00",GREENSLEEVES HOMES  TRUST - ROSE COTTACE,CARE ESTABLISHMENT,OP - Hunts Locality - Cost of Care,Hunts OP Team - Care,Residential Care
Cambridgeshire County Council,21-Aug-20,51301424402,"-1,007.00",GREENSLEEVES HOMES  TRUST - ROSE COTTACE,CARE ESTABLISHMENT,OP - Hunts Locality - Cost of Care,Hunts OP Team - Care,Residential Care
Cambridgeshire County Council,21-Aug-20,51301424402,"-1,007.00",GREENSLEEVES HOMES  TRUST - ROSE COTTACE,CARE ESTABLISHMENT,OP - Hunts Locality - Cost of Care,Hunts OP Team - Care,Residential Care
Cambridgeshire County Council,21-Aug-20,51301424402,"-1,007.00",GREENSLEEVES HOMES  TRUST - ROSE COTTACE,CARE ESTABLISHMENT,OP - Hunts Locality - Cost of Care,Hunts OP Team - Care,Residential Care
Cambridgeshire County Council,21-Aug-20,51301424402,"-1,007.00",GREENSLEEVES HOMES  TRUST - ROSE COTTACE,CARE ESTABLISHMENT,OP - Hunts Locality - Cost of Care,Hunts OP Team - Care,Residential Care
Cambridgeshire County Council,21-Aug-20,51301424402,"-1,007.00",GREENSLEEVES HOMES  TRUST - ROSE COTTACE,CARE ESTABLISHMENT,OP - Hunts Locality - Cost of Care,Hunts OP Team - Care,Residential Care
Cambridgeshire County Council,21-Aug-20,51301424402,"-1,007.00",GREENSLEEVES HOMES  TRUST - ROSE COTTACE,CARE ESTABLISHMENT,OP - Hunts Locality - Cost of Care,Hunts OP Team - Care,Residential Care
Cambridgeshire County Council,21-Aug-20,51301424402,"-1,007.00",GREENSLEEVES HOMES  TRUST - ROSE COTTACE,CARE ESTABLISHMENT,OP - Hunts Locality - Cost of Care,Hunts OP Team - Care,Residential Care
Cambridgeshire County Council,21-Aug-20,51301424402,"-1,007.00",GREENSLEEVES HOMES  TRUST - ROSE COTTACE,CARE ESTABLISHMENT,OP - Hunts Locality - Cost of Care,Hunts OP Team - Care,Residential Care
Cambridgeshire County Council,21-Aug-20,51301424402,"-1,007.00",GREENSLEEVES HOMES  TRUST - ROSE COTTACE,CARE ESTABLISHMENT,OP - Hunts Locality - Cost of Care,Hunts OP Team - Care,Residential Care
Cambridgeshire County Council,21-Aug-20,51301424402,"-1,007.00",GREENSLEEVES HOMES  TRUST - ROSE COTTACE,CARE ESTABLISHMENT,OP - Hunts Locality - Cost of Care,Hunts OP Team - Care,Residential Care
Cambridgeshire County Council,21-Aug-20,51301424402,"-1,007.00",GREENSLEEVES HOMES  TRUST - ROSE COTTACE,CARE ESTABLISHMENT,OP - Hunts Locality - Cost of Care,Hunts OP Team - Care,Residential Care
Cambridgeshire County Council,14-Aug-20,51301421452,"-1,000.00",OAKLANDS CARE HOME,CARE ESTABLISHMENT,Strategic Management - Adults,Adults Assistant Director,Nursing Care
Cambridgeshire County Council,14-Aug-20,51301421452,"-1,000.00",OAKLANDS CARE HOME,CARE ESTABLISHMENT,Strategic Management - Adults,Adults Assistant Director,Nursing Care
Cambridgeshire County Council,14-Aug-20,51301421452,"-1,000.00",OAKLANDS CARE HOME,CARE ESTABLISHMENT,Strategic Management - Adults,Adults Assistant Director,Nursing Care
Cambridgeshire County Council,14-Aug-20,51301421452,"-1,000.00",OAKLANDS CARE HOME,CARE ESTABLISHMENT,Strategic Management - Adults,Adults Assistant Director,Nursing Care
Cambridgeshire County Council,14-Aug-20,51301421452,"-1,000.00",OAKLANDS CARE HOME,CARE ESTABLISHMENT,Strategic Management - Adults,Adults Assistant Director,Nursing Care
Cambridgeshire County Council,14-Aug-20,51301421452,"-1,000.00",OAKLANDS CARE HOME,CARE ESTABLISHMENT,Strategic Management - Adults,Adults Assistant Director,Nursing Care
Cambridgeshire County Council,14-Aug-20,51301421452,"-1,000.00",OAKLANDS CARE HOME,CARE ESTABLISHMENT,Strategic Management - Adults,Adults Assistant Director,Nursing Care
Cambridgeshire County Council,14-Aug-20,51301421452,"-1,000.00",OAKLANDS CARE HOME,CARE ESTABLISHMENT,Strategic Management - Adults,Adults Assistant Director,Nursing Care
Cambridgeshire County Council,14-Aug-20,51301421452,"-1,000.00",OAKLANDS CARE HOME,CARE ESTABLISHMENT,Strategic Management - Adults,Adults Assistant Director,Nursing Care
Cambridgeshire County Council,14-Aug-20,51301421452,"-1,000.00",OAKLANDS CARE HOME,CARE ESTABLISHMENT,Strategic Management - Adults,Adults Assistant Director,Nursing Care
Cambridgeshire County Council,06-Aug-20,51301414535,-984.44,THE GABLES SPECIALIST NURSING HOME,CARE ESTABLISHMENT,OPMH - City & South,Older People Mental Health City & South,Nursing Care
Cambridgeshire County Council,06-Aug-20,51301414535,-984.44,THE GABLES SPECIALIST NURSING HOME,CARE ESTABLISHMENT,OPMH - City & South,Older People Mental Health City & South,Nursing Care
Cambridgeshire County Council,06-Aug-20,51301414535,-984.44,THE GABLES SPECIALIST NURSING HOME,CARE ESTABLISHMENT,OPMH - City & South,Older People Mental Health City & South,Nursing Care
Cambridgeshire County Council,06-Aug-20,51301414535,-984.44,THE GABLES SPECIALIST NURSING HOME,CARE ESTABLISHMENT,OPMH - City & South,Older People Mental Health City & South,Nursing Care
Cambridgeshire County Council,06-Aug-20,51301414535,-984.44,THE GABLES SPECIALIST NURSING HOME,CARE ESTABLISHMENT,OPMH - City & South,Older People Mental Health City & South,Nursing Care
Cambridgeshire County Council,06-Aug-20,51301414535,-984.44,THE GABLES SPECIALIST NURSING HOME,CARE ESTABLISHMENT,OPMH - City & South,Older People Mental Health City & South,Nursing Care
Cambridgeshire County Council,06-Aug-20,51301414535,-984.44,THE GABLES SPECIALIST NURSING HOME,CARE ESTABLISHMENT,OPMH - City & South,Older People Mental Health City & South,Nursing Care
Cambridgeshire County Council,06-Aug-20,51301414535,-984.44,THE GABLES SPECIALIST NURSING HOME,CARE ESTABLISHMENT,OPMH - City & South,Older People Mental Health City & South,Nursing Care
Cambridgeshire County Council,06-Aug-20,51301414535,-984.44,THE GABLES SPECIALIST NURSING HOME,CARE ESTABLISHMENT,OPMH - City & South,Older People Mental Health City & South,Nursing Care
Cambridgeshire County Council,06-Aug-20,51301415798,-948.00,ORCHARD HOUSE (SAWSTON),CARE ESTABLISHMENT,OP - City & South Locality - Cost of Care,Older People - City & South - Care,Residential Care
Cambridgeshire County Council,06-Aug-20,51301415798,-948.00,ORCHARD HOUSE (SAWSTON),CARE ESTABLISHMENT,OP - City & South Locality - Cost of Care,Older People - City & South - Care,Residential Care
Cambridgeshire County Council,06-Aug-20,51301417470,-944.95,CHERRY HINTON NURSING HOME,CARE ESTABLISHMENT,OP - City & South Locality - Cost of Care,Older People - City & South - Care,Nursing Care
Cambridgeshire County Council,06-Aug-20,51301417470,-944.95,CHERRY HINTON NURSING HOME,CARE ESTABLISHMENT,OP - City & South Locality - Cost of Care,Older People - City & South - Care,Nursing Care
Cambridgeshire County Council,06-Aug-20,51301417470,-944.95,CHERRY HINTON NURSING HOME,CARE ESTABLISHMENT,OP - City & South Locality - Cost of Care,Older People - City & South - Care,Nursing Care
Cambridgeshire County Council,06-Aug-20,51301417470,-944.95,CHERRY HINTON NURSING HOME,CARE ESTABLISHMENT,OP - City & South Locality - Cost of Care,Older People - City & South - Care,Nursing Care
Cambridgeshire County Council,06-Aug-20,51301417470,-944.95,CHERRY HINTON NURSING HOME,CARE ESTABLISHMENT,OP - City & South Locality - Cost of Care,Older People - City & South - Care,Nursing Care
Cambridgeshire County Council,06-Aug-20,51301417470,-944.95,CHERRY HINTON NURSING HOME,CARE ESTABLISHMENT,OP - City & South Locality - Cost of Care,Older People - City & South - Care,Nursing Care
Cambridgeshire County Council,06-Aug-20,51301417470,-944.95,CHERRY HINTON NURSING HOME,CARE ESTABLISHMENT,OP - City & South Locality - Cost of Care,Older People - City & South - Care,Nursing Care
Cambridgeshire County Council,06-Aug-20,51301417097,-944.00,H Plus Care Ltd,CARE ESTABLISHMENT,OPMH - City & South,Older People Mental Health City & South,Nursing Care
Cambridgeshire County Council,06-Aug-20,51301417097,-944.00,H Plus Care Ltd,CARE ESTABLISHMENT,OPMH - City & South,Older People Mental Health City & South,Nursing Care
Cambridgeshire County Council,06-Aug-20,51301417097,-944.00,H Plus Care Ltd,CARE ESTABLISHMENT,OPMH - City & South,Older People Mental Health City & South,Nursing Care
Cambridgeshire County Council,06-Aug-20,51301417097,-944.00,H Plus Care Ltd,CARE ESTABLISHMENT,OPMH - City & South,Older People Mental Health City & South,Nursing Care
Cambridgeshire County Council,06-Aug-20,51301417097,-944.00,H Plus Care Ltd,CARE ESTABLISHMENT,OPMH - City & South,Older People Mental Health City & South,Nursing Care
Cambridgeshire County Council,06-Aug-20,51301417097,-944.00,H Plus Care Ltd,CARE ESTABLISHMENT,OPMH - City & South,Older People Mental Health City & South,Nursing Care
Cambridgeshire County Council,06-Aug-20,51301417097,-944.00,H Plus Care Ltd,CARE ESTABLISHMENT,OPMH - City & South,Older People Mental Health City & South,Nursing Care
Cambridgeshire County Council,06-Aug-20,51301417097,-944.00,H Plus Care Ltd,CARE ESTABLISHMENT,OPMH - City & South,Older People Mental Health City & South,Nursing Care
Cambridgeshire County Council,06-Aug-20,51301417097,-944.00,H Plus Care Ltd,CARE ESTABLISHMENT,OPMH - City & South,Older People Mental Health City & South,Nursing Care
Cambridgeshire County Council,06-Aug-20,51301417097,-944.00,H Plus Care Ltd,CARE ESTABLISHMENT,OPMH - City & South,Older People Mental Health City & South,Nursing Care
Cambridgeshire County Council,06-Aug-20,51301417097,-944.00,H Plus Care Ltd,CARE ESTABLISHMENT,OPMH - City & South,Older People Mental Health City & South,Nursing Care
Cambridgeshire County Council,06-Aug-20,51301417097,-944.00,H Plus Care Ltd,CARE ESTABLISHMENT,OPMH - City & South,Older People Mental Health City & South,Nursing Care
Cambridgeshire County Council,06-Aug-20,51301417097,-944.00,H Plus Care Ltd,CARE ESTABLISHMENT,OPMH - City & South,Older People Mental Health City & South,Nursing Care
Cambridgeshire County Council,06-Aug-20,51301417097,-944.00,H Plus Care Ltd,CARE ESTABLISHMENT,OPMH - City & South,Older People Mental Health City & South,Nursing Care
Cambridgeshire County Council,06-Aug-20,51301417097,-944.00,H Plus Care Ltd,CARE ESTABLISHMENT,OPMH - City & South,Older People Mental Health City & South,Nursing Care
Cambridgeshire County Council,06-Aug-20,51301415518,-940.23,ELTISLEY MANOR (PSYCARE LTD),CARE ESTABLISHMENT,Physical Disablity - Cost of Care,Countywide PD Service - Care,Nursing Care
Cambridgeshire County Council,12-Aug-20,51301420676,-935.55,Redacted Personal Data,INDIVIDUAL,OP - City & South Locality - Cost of Care,Older People - City & South - Care,Direct Payments
Cambridgeshire County Council,12-Aug-20,51301420676,-935.55,Redacted Personal Data,INDIVIDUAL,OP - City & South Locality - Cost of Care,Older People - City & South - Care,Direct Payments
Cambridgeshire County Council,12-Aug-20,51301420676,-935.55,Redacted Personal Data,INDIVIDUAL,OP - City & South Locality - Cost of Care,Older People - City & South - Care,Direct Payments
Cambridgeshire County Council,14-Aug-20,51301421558,-930.90,VOYAGE,CARE ESTABLISHMENT,LD - South Locality - Cost of Care,LD - South Cambs - Care,Residential Care
Cambridgeshire County Council,14-Aug-20,51301421558,-930.90,VOYAGE,CARE ESTABLISHMENT,LD - South Locality - Cost of Care,LD - South Cambs - Care,Residential Care
Cambridgeshire County Council,14-Aug-20,51301421558,-930.90,VOYAGE,CARE ESTABLISHMENT,LD - South Locality - Cost of Care,LD - South Cambs - Care,Residential Care
Cambridgeshire County Council,14-Aug-20,51301421558,-930.90,VOYAGE,CARE ESTABLISHMENT,LD - South Locality - Cost of Care,LD - South Cambs - Care,Residential Care
Cambridgeshire County Council,14-Aug-20,51301421558,-930.90,VOYAGE,CARE ESTABLISHMENT,LD - South Locality - Cost of Care,LD - South Cambs - Care,Residential Care
Cambridgeshire County Council,14-Aug-20,51301421558,-930.90,VOYAGE,CARE ESTABLISHMENT,LD - South Locality - Cost of Care,LD - South Cambs - Care,Residential Care
Cambridgeshire County Council,14-Aug-20,51301421558,-930.90,VOYAGE,CARE ESTABLISHMENT,LD - South Locality - Cost of Care,LD - South Cambs - Care,Residential Care
Cambridgeshire County Council,14-Aug-20,51301421558,-930.90,VOYAGE,CARE ESTABLISHMENT,LD - South Locality - Cost of Care,LD - South Cambs - Care,Residential Care
Cambridgeshire County Council,14-Aug-20,51301421558,-930.90,VOYAGE,CARE ESTABLISHMENT,LD - South Locality - Cost of Care,LD - South Cambs - Care,Residential Care
Cambridgeshire County Council,14-Aug-20,51301421558,-930.90,VOYAGE,CARE ESTABLISHMENT,LD - South Locality - Cost of Care,LD - South Cambs - Care,Residential Care
Cambridgeshire County Council,14-Aug-20,51301421558,-930.90,VOYAGE,CARE ESTABLISHMENT,LD - South Locality - Cost of Care,LD - South Cambs - Care,Residential Care
Cambridgeshire County Council,14-Aug-20,51301421558,-930.90,VOYAGE,CARE ESTABLISHMENT,LD - South Locality - Cost of Care,LD - South Cambs - Care,Residential Care
Cambridgeshire County Council,14-Aug-20,51301421558,-930.90,VOYAGE,CARE ESTABLISHMENT,LD - South Locality - Cost of Care,LD - South Cambs - Care,Residential Care
Cambridgeshire County Council,14-Aug-20,51301421558,-930.90,VOYAGE,CARE ESTABLISHMENT,LD - South Locality - Cost of Care,LD - South Cambs - Care,Residential Care
Cambridgeshire County Council,14-Aug-20,51301421558,-930.90,VOYAGE,CARE ESTABLISHMENT,LD - South Locality - Cost of Care,LD - South Cambs - Care,Residential Care
Cambridgeshire County Council,14-Aug-20,51301421558,-930.90,VOYAGE,CARE ESTABLISHMENT,LD - South Locality - Cost of Care,LD - South Cambs - Care,Residential Care
Cambridgeshire County Council,14-Aug-20,51301421558,-930.90,VOYAGE,CARE ESTABLISHMENT,LD - South Locality - Cost of Care,LD - South Cambs - Care,Residential Care
Cambridgeshire County Council,14-Aug-20,51301421558,-930.90,VOYAGE,CARE ESTABLISHMENT,LD - South Locality - Cost of Care,LD - South Cambs - Care,Residential Care
Cambridgeshire County Council,14-Aug-20,51301421558,-930.90,VOYAGE,CARE ESTABLISHMENT,LD - South Locality - Cost of Care,LD - South Cambs - Care,Residential Care
Cambridgeshire County Council,14-Aug-20,51301421558,-930.90,VOYAGE,CARE ESTABLISHMENT,LD - South Locality - Cost of Care,LD - South Cambs - Care,Residential Care
Cambridgeshire County Council,14-Aug-20,51301421558,-930.90,VOYAGE,CARE ESTABLISHMENT,LD - South Locality - Cost of Care,LD - South Cambs - Care,Residential Care
Cambridgeshire County Council,14-Aug-20,51301421558,-930.90,VOYAGE,CARE ESTABLISHMENT,LD - South Locality - Cost of Care,LD - South Cambs - Care,Residential Care
Cambridgeshire County Council,14-Aug-20,51301421558,-930.90,VOYAGE,CARE ESTABLISHMENT,LD - South Locality - Cost of Care,LD - South Cambs - Care,Residential Care
Cambridgeshire County Council,14-Aug-20,51301421558,-930.90,VOYAGE,CARE ESTABLISHMENT,LD - South Locality - Cost of Care,LD - South Cambs - Care,Residential Care
Cambridgeshire County Council,14-Aug-20,51301421558,-930.90,VOYAGE,CARE ESTABLISHMENT,LD - South Locality - Cost of Care,LD - South Cambs - Care,Residential Care
Cambridgeshire County Council,14-Aug-20,51301421558,-930.90,VOYAGE,CARE ESTABLISHMENT,LD - South Locality - Cost of Care,LD - South Cambs - Care,Residential Care
Cambridgeshire County Council,14-Aug-20,51301421558,-930.90,VOYAGE,CARE ESTABLISHMENT,LD - South Locality - Cost of Care,LD - South Cambs - Care,Residential Care
Cambridgeshire County Council,14-Aug-20,51301421558,-930.90,VOYAGE,CARE ESTABLISHMENT,LD - South Locality - Cost of Care,LD - South Cambs - Care,Residential Care
Cambridgeshire County Council,14-Aug-20,51301421558,-930.90,VOYAGE,CARE ESTABLISHMENT,LD - South Locality - Cost of Care,LD - South Cambs - Care,Residential Care
Cambridgeshire County Council,14-Aug-20,51301421558,-930.90,VOYAGE,CARE ESTABLISHMENT,LD - South Locality - Cost of Care,LD - South Cambs - Care,Residential Care
Cambridgeshire County Council,14-Aug-20,51301421558,-930.90,VOYAGE,CARE ESTABLISHMENT,LD - South Locality - Cost of Care,LD - South Cambs - Care,Residential Care
Cambridgeshire County Council,14-Aug-20,51301421558,-930.90,VOYAGE,CARE ESTABLISHMENT,LD - South Locality - Cost of Care,LD - South Cambs - Care,Residential Care
Cambridgeshire County Council,14-Aug-20,51301421558,-930.90,VOYAGE,CARE ESTABLISHMENT,LD - South Locality - Cost of Care,LD - South Cambs - Care,Residential Care
Cambridgeshire County Council,14-Aug-20,51301421558,-930.90,VOYAGE,CARE ESTABLISHMENT,LD - South Locality - Cost of Care,LD - South Cambs - Care,Residential Care
Cambridgeshire County Council,14-Aug-20,51301421558,-930.90,VOYAGE,CARE ESTABLISHMENT,LD - South Locality - Cost of Care,LD - South Cambs - Care,Residential Care
Cambridgeshire County Council,14-Aug-20,51301421558,-930.90,VOYAGE,CARE ESTABLISHMENT,LD - South Locality - Cost of Care,LD - South Cambs - Care,Residential Care
Cambridgeshire County Council,14-Aug-20,51301421558,-930.90,VOYAGE,CARE ESTABLISHMENT,LD - South Locality - Cost of Care,LD - South Cambs - Care,Residential Care
Cambridgeshire County Council,14-Aug-20,51301421558,-930.90,VOYAGE,CARE ESTABLISHMENT,LD - South Locality - Cost of Care,LD - South Cambs - Care,Residential Care
Cambridgeshire County Council,14-Aug-20,51301421558,-930.90,VOYAGE,CARE ESTABLISHMENT,LD - South Locality - Cost of Care,LD - South Cambs - Care,Residential Care
Cambridgeshire County Council,14-Aug-20,51301421558,-930.90,VOYAGE,CARE ESTABLISHMENT,LD - South Locality - Cost of Care,LD - South Cambs - Care,Residential Care
Cambridgeshire County Council,14-Aug-20,51301421558,-930.90,VOYAGE,CARE ESTABLISHMENT,LD - South Locality - Cost of Care,LD - South Cambs - Care,Residential Care
Cambridgeshire County Council,07-Aug-20,51301419251,-924.60,INTERSERVE HEALTHCARE GROUP,CARE ESTABLISHMENT,OPMH - Hunts & Fens,Older People Mental Health Fenland,Domiciliary Care
Cambridgeshire County Council,06-Aug-20,51301409923,-917.42,BROWN'S FIELD HOUSE (ABBEYFIELD SOCIETY),CARE ESTABLISHMENT,OPMH - Under 65,Older People Mental Health - Under 65's,Residential Care
Cambridgeshire County Council,06-Aug-20,51301409923,-917.42,BROWN'S FIELD HOUSE (ABBEYFIELD SOCIETY),CARE ESTABLISHMENT,OPMH - Under 65,Older People Mental Health - Under 65's,Residential Care
Cambridgeshire County Council,06-Aug-20,51301409923,-917.42,BROWN'S FIELD HOUSE (ABBEYFIELD SOCIETY),CARE ESTABLISHMENT,OPMH - Under 65,Older People Mental Health - Under 65's,Residential Care
Cambridgeshire County Council,06-Aug-20,51301409923,-917.42,BROWN'S FIELD HOUSE (ABBEYFIELD SOCIETY),CARE ESTABLISHMENT,OPMH - Under 65,Older People Mental Health - Under 65's,Residential Care
Cambridgeshire County Council,06-Aug-20,51301409923,-917.42,BROWN'S FIELD HOUSE (ABBEYFIELD SOCIETY),CARE ESTABLISHMENT,OPMH - Under 65,Older People Mental Health - Under 65's,Residential Care
Cambridgeshire County Council,06-Aug-20,51301409923,-917.42,BROWN'S FIELD HOUSE (ABBEYFIELD SOCIETY),CARE ESTABLISHMENT,OPMH - Under 65,Older People Mental Health - Under 65's,Residential Care
Cambridgeshire County Council,06-Aug-20,51301415413,-915.06,PAULINE BURNETT HOUSE,CARE ESTABLISHMENT,LD - South Locality - Cost of Care,LD - South Cambs - Care,Residential Care
Cambridgeshire County Council,06-Aug-20,51301415413,-915.06,PAULINE BURNETT HOUSE,CARE ESTABLISHMENT,LD - South Locality - Cost of Care,LD - South Cambs - Care,Residential Care
Cambridgeshire County Council,06-Aug-20,51301415413,-915.06,PAULINE BURNETT HOUSE,CARE ESTABLISHMENT,LD - South Locality - Cost of Care,LD - South Cambs - Care,Residential Care
Cambridgeshire County Council,06-Aug-20,51301415413,-915.06,PAULINE BURNETT HOUSE,CARE ESTABLISHMENT,LD - South Locality - Cost of Care,LD - South Cambs - Care,Residential Care
Cambridgeshire County Council,06-Aug-20,51301418749,-908.04,DIMENSIONS (UK) LTD,CARE ESTABLISHMENT,LD - South Locality - Cost of Care,LD - South Cambs - Care,Supported Living
Cambridgeshire County Council,06-Aug-20,51301407120,-900.11,THE MARBROOK CENTRE,CARE ESTABLISHMENT,OPMH - Under 65,Older People Mental Health - Under 65's,Nursing Care
Cambridgeshire County Council,06-Aug-20,51301407120,-900.11,THE MARBROOK CENTRE,CARE ESTABLISHMENT,OPMH - Under 65,Older People Mental Health - Under 65's,Nursing Care
Cambridgeshire County Council,06-Aug-20,51301415554,-900.00,BROWN'S FIELD HOUSE (ABBEYFIELD SOCIETY),CARE ESTABLISHMENT,OP - City & South Locality - Cost of Care,Older People - City & South - Care,Residential Care
Cambridgeshire County Council,06-Aug-20,51301415554,-900.00,BROWN'S FIELD HOUSE (ABBEYFIELD SOCIETY),CARE ESTABLISHMENT,OP - City & South Locality - Cost of Care,Older People - City & South - Care,Residential Care
Cambridgeshire County Council,06-Aug-20,51301415554,-900.00,BROWN'S FIELD HOUSE (ABBEYFIELD SOCIETY),CARE ESTABLISHMENT,OP - City & South Locality - Cost of Care,Older People - City & South - Care,Residential Care
Cambridgeshire County Council,06-Aug-20,51301415554,-900.00,BROWN'S FIELD HOUSE (ABBEYFIELD SOCIETY),CARE ESTABLISHMENT,OP - City & South Locality - Cost of Care,Older People - City & South - Care,Residential Care
Cambridgeshire County Council,06-Aug-20,51301415554,-900.00,BROWN'S FIELD HOUSE (ABBEYFIELD SOCIETY),CARE ESTABLISHMENT,OP - City & South Locality - Cost of Care,Older People - City & South - Care,Residential Care
Cambridgeshire County Council,06-Aug-20,51301415554,-900.00,BROWN'S FIELD HOUSE (ABBEYFIELD SOCIETY),CARE ESTABLISHMENT,OP - City & South Locality - Cost of Care,Older People - City & South - Care,Residential Care
Cambridgeshire County Council,06-Aug-20,51301417011,-900.00,Compassionate Heart Ltd,COMPANY,OP - City & South Locality - Cost of Care,Older People - City & South - Care,Homecare
Cambridgeshire County Council,06-Aug-20,51301416251,-865.80,MEADOWS HOMECARE SERVICES,CARE ESTABLISHMENT,OP - City & South Locality - Cost of Care,Older People - City & South - Care,Homecare
Cambridgeshire County Council,06-Aug-20,51301416251,-865.80,MEADOWS HOMECARE SERVICES,CARE ESTABLISHMENT,OP - City & South Locality - Cost of Care,Older People - City & South - Care,Homecare
Cambridgeshire County Council,06-Aug-20,51301416313,-856.80,MEADOWS HOMECARE SERVICES,CARE ESTABLISHMENT,OP - City & South Locality - Cost of Care,Older People - City & South - Care,Domiciliary Care
Cambridgeshire County Council,06-Aug-20,51301414383,-850.00,ST GEORGE'S COURT,CARE ESTABLISHMENT,OP - East Cambs Locality - Cost of Care,East Cambs - O P Team - Care,Residential Care
Cambridgeshire County Council,06-Aug-20,51301417720,-850.00,ABBEY HEALTHCARE (HUNTINGDON) LTD,CARE ESTABLISHMENT,OP - Hunts Locality - Cost of Care,Hunts OP Team - Care,Nursing Care
Cambridgeshire County Council,06-Aug-20,51301417720,-850.00,ABBEY HEALTHCARE (HUNTINGDON) LTD,CARE ESTABLISHMENT,OP - Hunts Locality - Cost of Care,Hunts OP Team - Care,Nursing Care
Cambridgeshire County Council,06-Aug-20,51301417720,-850.00,ABBEY HEALTHCARE (HUNTINGDON) LTD,CARE ESTABLISHMENT,OP - Hunts Locality - Cost of Care,Hunts OP Team - Care,Nursing Care
Cambridgeshire County Council,06-Aug-20,51301417720,-850.00,ABBEY HEALTHCARE (HUNTINGDON) LTD,CARE ESTABLISHMENT,OP - Hunts Locality - Cost of Care,Hunts OP Team - Care,Nursing Care
Cambridgeshire County Council,06-Aug-20,51301417720,-850.00,ABBEY HEALTHCARE (HUNTINGDON) LTD,CARE ESTABLISHMENT,OP - Hunts Locality - Cost of Care,Hunts OP Team - Care,Nursing Care
Cambridgeshire County Council,06-Aug-20,51301417720,-850.00,ABBEY HEALTHCARE (HUNTINGDON) LTD,CARE ESTABLISHMENT,OP - Hunts Locality - Cost of Care,Hunts OP Team - Care,Nursing Care
Cambridgeshire County Council,06-Aug-20,51301417720,-850.00,ABBEY HEALTHCARE (HUNTINGDON) LTD,CARE ESTABLISHMENT,OP - Hunts Locality - Cost of Care,Hunts OP Team - Care,Nursing Care
Cambridgeshire County Council,06-Aug-20,51301417720,-850.00,ABBEY HEALTHCARE (HUNTINGDON) LTD,CARE ESTABLISHMENT,OP - Hunts Locality - Cost of Care,Hunts OP Team - Care,Nursing Care
Cambridgeshire County Council,06-Aug-20,51301417720,-850.00,ABBEY HEALTHCARE (HUNTINGDON) LTD,CARE ESTABLISHMENT,OP - Hunts Locality - Cost of Care,Hunts OP Team - Care,Nursing Care
Cambridgeshire County Council,06-Aug-20,51301417720,-850.00,ABBEY HEALTHCARE (HUNTINGDON) LTD,CARE ESTABLISHMENT,OP - Hunts Locality - Cost of Care,Hunts OP Team - Care,Nursing Care
Cambridgeshire County Council,06-Aug-20,51301417720,-850.00,ABBEY HEALTHCARE (HUNTINGDON) LTD,CARE ESTABLISHMENT,OP - Hunts Locality - Cost of Care,Hunts OP Team - Care,Nursing Care
Cambridgeshire County Council,06-Aug-20,51301417720,-850.00,ABBEY HEALTHCARE (HUNTINGDON) LTD,CARE ESTABLISHMENT,OP - Hunts Locality - Cost of Care,Hunts OP Team - Care,Nursing Care
Cambridgeshire County Council,06-Aug-20,51301417465,-844.95,BARCHESTER HEALTHCARE HOMES LTD,CARE ESTABLISHMENT,OP - City & South Locality - Cost of Care,Older People - City & South - Care,Nursing Care
Cambridgeshire County Council,06-Aug-20,51301417465,-844.95,BARCHESTER HEALTHCARE HOMES LTD,CARE ESTABLISHMENT,OP - City & South Locality - Cost of Care,Older People - City & South - Care,Nursing Care
Cambridgeshire County Council,06-Aug-20,51301417465,-844.95,BARCHESTER HEALTHCARE HOMES LTD,CARE ESTABLISHMENT,OP - City & South Locality - Cost of Care,Older People - City & South - Care,Nursing Care
Cambridgeshire County Council,06-Aug-20,51301417465,-844.95,BARCHESTER HEALTHCARE HOMES LTD,CARE ESTABLISHMENT,OP - City & South Locality - Cost of Care,Older People - City & South - Care,Nursing Care
Cambridgeshire County Council,06-Aug-20,51301417465,-844.95,BARCHESTER HEALTHCARE HOMES LTD,CARE ESTABLISHMENT,OP - City & South Locality - Cost of Care,Older People - City & South - Care,Nursing Care
Cambridgeshire County Council,06-Aug-20,51301417465,-844.95,BARCHESTER HEALTHCARE HOMES LTD,CARE ESTABLISHMENT,OP - City & South Locality - Cost of Care,Older People - City & South - Care,Nursing Care
Cambridgeshire County Council,06-Aug-20,51301415763,-840.00,ARIA COURT,CARE ESTABLISHMENT,OP - Fenland Locality - Cost of Care,Older People - Fenland - Care,Nursing Care
Cambridgeshire County Council,06-Aug-20,51301415763,-840.00,ARIA COURT,CARE ESTABLISHMENT,OP - Fenland Locality - Cost of Care,Older People - Fenland - Care,Nursing Care
Cambridgeshire County Council,06-Aug-20,51301415763,-840.00,ARIA COURT,CARE ESTABLISHMENT,OP - Fenland Locality - Cost of Care,Older People - Fenland - Care,Nursing Care
Cambridgeshire County Council,06-Aug-20,51301415763,-840.00,ARIA COURT,CARE ESTABLISHMENT,OP - Fenland Locality - Cost of Care,Older People - Fenland - Care,Nursing Care
Cambridgeshire County Council,06-Aug-20,51301415763,-840.00,ARIA COURT,CARE ESTABLISHMENT,OP - Fenland Locality - Cost of Care,Older People - Fenland - Care,Nursing Care
Cambridgeshire County Council,06-Aug-20,51301415763,-840.00,ARIA COURT,CARE ESTABLISHMENT,OP - Fenland Locality - Cost of Care,Older People - Fenland - Care,Nursing Care
Cambridgeshire County Council,06-Aug-20,51301415763,-840.00,ARIA COURT,CARE ESTABLISHMENT,OP - Fenland Locality - Cost of Care,Older People - Fenland - Care,Nursing Care
Cambridgeshire County Council,06-Aug-20,51301415763,-840.00,ARIA COURT,CARE ESTABLISHMENT,OP - Fenland Locality - Cost of Care,Older People - Fenland - Care,Nursing Care
Cambridgeshire County Council,06-Aug-20,51301415763,-840.00,ARIA COURT,CARE ESTABLISHMENT,OP - Fenland Locality - Cost of Care,Older People - Fenland - Care,Nursing Care
Cambridgeshire County Council,06-Aug-20,51301415763,-840.00,ARIA COURT,CARE ESTABLISHMENT,OP - Fenland Locality - Cost of Care,Older People - Fenland - Care,Nursing Care
Cambridgeshire County Council,06-Aug-20,51301415763,-840.00,ARIA COURT,CARE ESTABLISHMENT,OP - Fenland Locality - Cost of Care,Older People - Fenland - Care,Nursing Care
Cambridgeshire County Council,06-Aug-20,51301415763,-840.00,ARIA COURT,CARE ESTABLISHMENT,OP - Fenland Locality - Cost of Care,Older People - Fenland - Care,Nursing Care
Cambridgeshire County Council,06-Aug-20,51301415763,-840.00,ARIA COURT,CARE ESTABLISHMENT,OP - Fenland Locality - Cost of Care,Older People - Fenland - Care,Nursing Care
Cambridgeshire County Council,06-Aug-20,51301415763,-840.00,ARIA COURT,CARE ESTABLISHMENT,OP - Fenland Locality - Cost of Care,Older People - Fenland - Care,Nursing Care
Cambridgeshire County Council,06-Aug-20,51301415763,-840.00,ARIA COURT,CARE ESTABLISHMENT,OP - Fenland Locality - Cost of Care,Older People - Fenland - Care,Nursing Care
Cambridgeshire County Council,06-Aug-20,51301415763,-840.00,ARIA COURT,CARE ESTABLISHMENT,OP - Fenland Locality - Cost of Care,Older People - Fenland - Care,Nursing Care
Cambridgeshire County Council,06-Aug-20,51301415763,-840.00,ARIA COURT,CARE ESTABLISHMENT,OP - Fenland Locality - Cost of Care,Older People - Fenland - Care,Nursing Care
Cambridgeshire County Council,06-Aug-20,51301415763,-840.00,ARIA COURT,CARE ESTABLISHMENT,OP - Fenland Locality - Cost of Care,Older People - Fenland - Care,Nursing Care
Cambridgeshire County Council,06-Aug-20,51301415763,-840.00,ARIA COURT,CARE ESTABLISHMENT,OP - Fenland Locality - Cost of Care,Older People - Fenland - Care,Nursing Care
Cambridgeshire County Council,06-Aug-20,51301415763,-840.00,ARIA COURT,CARE ESTABLISHMENT,OP - Fenland Locality - Cost of Care,Older People - Fenland - Care,Nursing Care
Cambridgeshire County Council,06-Aug-20,51301415763,-840.00,ARIA COURT,CARE ESTABLISHMENT,OP - Fenland Locality - Cost of Care,Older People - Fenland - Care,Nursing Care
Cambridgeshire County Council,06-Aug-20,51301415763,-840.00,ARIA COURT,CARE ESTABLISHMENT,OP - Fenland Locality - Cost of Care,Older People - Fenland - Care,Nursing Care
Cambridgeshire County Council,06-Aug-20,51301415763,-840.00,ARIA COURT,CARE ESTABLISHMENT,OP - Fenland Locality - Cost of Care,Older People - Fenland - Care,Nursing Care
Cambridgeshire County Council,06-Aug-20,51301415763,-840.00,ARIA COURT,CARE ESTABLISHMENT,OP - Fenland Locality - Cost of Care,Older People - Fenland - Care,Nursing Care
Cambridgeshire County Council,06-Aug-20,51301415763,-840.00,ARIA COURT,CARE ESTABLISHMENT,OP - Fenland Locality - Cost of Care,Older People - Fenland - Care,Nursing Care
Cambridgeshire County Council,06-Aug-20,51301414506,-834.44,HOME CLOSE LTD,CARE ESTABLISHMENT,Physical Disablity - Cost of Care,Countywide PD Service - Care,Nursing Care
Cambridgeshire County Council,06-Aug-20,51301414506,-834.44,HOME CLOSE LTD,CARE ESTABLISHMENT,Physical Disablity - Cost of Care,Countywide PD Service - Care,Nursing Care
Cambridgeshire County Council,14-Aug-20,51301421554,-829.23,CARETECH COMMUNITY SERVICES,CARE ESTABLISHMENT,LD - Hunts Locality - Cost of Care,LD - Huntingdonshire - Care,Residential Care
Cambridgeshire County Council,06-Aug-20,51301417443,-795.28,ROSE LODGE,CARE ESTABLISHMENT,OPMH - Hunts & Fens,Older People Mental Health Fenland,Nursing Care
Cambridgeshire County Council,06-Aug-20,51301417443,-795.28,ROSE LODGE,CARE ESTABLISHMENT,OPMH - Hunts & Fens,Older People Mental Health Fenland,Nursing Care
Cambridgeshire County Council,06-Aug-20,51301417443,-795.28,ROSE LODGE,CARE ESTABLISHMENT,OPMH - Hunts & Fens,Older People Mental Health Fenland,Nursing Care
Cambridgeshire County Council,06-Aug-20,51301417443,-795.28,ROSE LODGE,CARE ESTABLISHMENT,OPMH - Hunts & Fens,Older People Mental Health Fenland,Nursing Care
Cambridgeshire County Council,06-Aug-20,51301417443,-795.28,ROSE LODGE,CARE ESTABLISHMENT,OPMH - Hunts & Fens,Older People Mental Health Fenland,Nursing Care
Cambridgeshire County Council,06-Aug-20,51301417443,-795.28,ROSE LODGE,CARE ESTABLISHMENT,OPMH - Hunts & Fens,Older People Mental Health Fenland,Nursing Care
Cambridgeshire County Council,06-Aug-20,51301417443,-795.28,ROSE LODGE,CARE ESTABLISHMENT,OPMH - Hunts & Fens,Older People Mental Health Fenland,Nursing Care
Cambridgeshire County Council,06-Aug-20,51301409923,-786.36,BROWN'S FIELD HOUSE (ABBEYFIELD SOCIETY),CARE ESTABLISHMENT,OPMH - Under 65,Older People Mental Health - Under 65's,Residential Care
Cambridgeshire County Council,25-Aug-20,51301423481,-779.17,LCC SUPPORT SERVICES,TRADE SUPPLIER,Corporate Offices,County Offices General,Building Cleaning
Cambridgeshire County Council,06-Aug-20,51301407120,-771.52,THE MARBROOK CENTRE,CARE ESTABLISHMENT,OPMH - Under 65,Older People Mental Health - Under 65's,Nursing Care
Cambridgeshire County Council,07-Aug-20,51301419257,-771.42,BETTER HEALTHCARE SERVICES LTD,CARE ESTABLISHMENT,OP - Fenland Locality - Cost of Care,Older People - Fenland - Care,Domiciliary Care
Cambridgeshire County Council,07-Aug-20,51301419257,-771.42,BETTER HEALTHCARE SERVICES LTD,CARE ESTABLISHMENT,OP - Fenland Locality - Cost of Care,Older People - Fenland - Care,Domiciliary Care
Cambridgeshire County Council,07-Aug-20,51301419257,-771.42,BETTER HEALTHCARE SERVICES LTD,CARE ESTABLISHMENT,OP - Fenland Locality - Cost of Care,Older People - Fenland - Care,Domiciliary Care
Cambridgeshire County Council,06-Aug-20,51301414898,-771.13,THE AVENUES TRUST LTD,TRUST (OTHER),LD - South Locality - Cost of Care,LD - South Cambs - Care,Domiciliary Care
Cambridgeshire County Council,06-Aug-20,51301414898,-771.13,THE AVENUES TRUST LTD,TRUST (OTHER),LD - South Locality - Cost of Care,LD - South Cambs - Care,Domiciliary Care
Cambridgeshire County Council,06-Aug-20,51301414898,-771.13,THE AVENUES TRUST LTD,TRUST (OTHER),LD - South Locality - Cost of Care,LD - South Cambs - Care,Domiciliary Care
Cambridgeshire County Council,06-Aug-20,51301414898,-771.13,THE AVENUES TRUST LTD,TRUST (OTHER),LD - South Locality - Cost of Care,LD - South Cambs - Care,Domiciliary Care
Cambridgeshire County Council,06-Aug-20,51301414898,-771.13,THE AVENUES TRUST LTD,TRUST (OTHER),LD - South Locality - Cost of Care,LD - South Cambs - Care,Domiciliary Care
Cambridgeshire County Council,06-Aug-20,51301418165,-770.38,THE EDMUND TRUST,CARE ESTABLISHMENT,LD - South Locality - Cost of Care,LD - South Cambs - Care,Supported Living
Cambridgeshire County Council,06-Aug-20,51301418165,-770.38,THE EDMUND TRUST,CARE ESTABLISHMENT,LD - South Locality - Cost of Care,LD - South Cambs - Care,Supported Living
Cambridgeshire County Council,06-Aug-20,51301418165,-770.38,THE EDMUND TRUST,CARE ESTABLISHMENT,LD - South Locality - Cost of Care,LD - South Cambs - Care,Supported Living
Cambridgeshire County Council,06-Aug-20,51301418165,-770.38,THE EDMUND TRUST,CARE ESTABLISHMENT,LD - South Locality - Cost of Care,LD - South Cambs - Care,Supported Living
Cambridgeshire County Council,06-Aug-20,51301418165,-770.38,THE EDMUND TRUST,CARE ESTABLISHMENT,LD - South Locality - Cost of Care,LD - South Cambs - Care,Supported Living
Cambridgeshire County Council,06-Aug-20,51301418165,-770.38,THE EDMUND TRUST,CARE ESTABLISHMENT,LD - South Locality - Cost of Care,LD - South Cambs - Care,Supported Living
Cambridgeshire County Council,06-Aug-20,51301418165,-770.38,THE EDMUND TRUST,CARE ESTABLISHMENT,LD - South Locality - Cost of Care,LD - South Cambs - Care,Supported Living
Cambridgeshire County Council,06-Aug-20,51301418165,-770.38,THE EDMUND TRUST,CARE ESTABLISHMENT,LD - South Locality - Cost of Care,LD - South Cambs - Care,Supported Living
Cambridgeshire County Council,06-Aug-20,51301418165,-770.38,THE EDMUND TRUST,CARE ESTABLISHMENT,LD - South Locality - Cost of Care,LD - South Cambs - Care,Supported Living
Cambridgeshire County Council,06-Aug-20,51301418165,-770.38,THE EDMUND TRUST,CARE ESTABLISHMENT,LD - South Locality - Cost of Care,LD - South Cambs - Care,Supported Living
Cambridgeshire County Council,06-Aug-20,51301418165,-770.38,THE EDMUND TRUST,CARE ESTABLISHMENT,LD - South Locality - Cost of Care,LD - South Cambs - Care,Supported Living
Cambridgeshire County Council,06-Aug-20,51301418165,-770.38,THE EDMUND TRUST,CARE ESTABLISHMENT,LD - South Locality - Cost of Care,LD - South Cambs - Care,Supported Living
Cambridgeshire County Council,06-Aug-20,51301418165,-770.38,THE EDMUND TRUST,CARE ESTABLISHMENT,LD - South Locality - Cost of Care,LD - South Cambs - Care,Supported Living
Cambridgeshire County Council,06-Aug-20,51301418165,-770.38,THE EDMUND TRUST,CARE ESTABLISHMENT,LD - South Locality - Cost of Care,LD - South Cambs - Care,Supported Living
Cambridgeshire County Council,06-Aug-20,51301418165,-770.38,THE EDMUND TRUST,CARE ESTABLISHMENT,LD - South Locality - Cost of Care,LD - South Cambs - Care,Supported Living
Cambridgeshire County Council,06-Aug-20,51301418165,-770.38,THE EDMUND TRUST,CARE ESTABLISHMENT,LD - South Locality - Cost of Care,LD - South Cambs - Care,Supported Living
Cambridgeshire County Council,26-Aug-20,51301424433,-764.44,YMCA Trinity Group,COMPANY,Unaccompanied Asylum Seeking Children,Unaccompanied Asylum Seeking Children >18 Leaving Care,Living Spport Grants - Financial Assistance 18+
Cambridgeshire County Council,06-Aug-20,51301413416,-753.92,YMCA Trinity Group,COMPANY,Unaccompanied Asylum Seeking Children,Unaccompanied Asylum Seeking Children >18 Leaving Care,Living Spport Grants - Financial Assistance 18+
Cambridgeshire County Council,14-Aug-20,51301402189,-753.47,HILTON PARK CARE CENTRE,CARE ESTABLISHMENT,LD - South Locality - Cost of Care,LD - South Cambs - Care,Nursing Care
Cambridgeshire County Council,14-Aug-20,51301402189,-753.47,HILTON PARK CARE CENTRE,CARE ESTABLISHMENT,LD - South Locality - Cost of Care,LD - South Cambs - Care,Nursing Care
Cambridgeshire County Council,14-Aug-20,51301402189,-753.47,HILTON PARK CARE CENTRE,CARE ESTABLISHMENT,LD - South Locality - Cost of Care,LD - South Cambs - Care,Nursing Care
Cambridgeshire County Council,14-Aug-20,51301402189,-753.47,HILTON PARK CARE CENTRE,CARE ESTABLISHMENT,LD - South Locality - Cost of Care,LD - South Cambs - Care,Nursing Care
Cambridgeshire County Council,14-Aug-20,51301402189,-753.47,HILTON PARK CARE CENTRE,CARE ESTABLISHMENT,LD - South Locality - Cost of Care,LD - South Cambs - Care,Nursing Care
Cambridgeshire County Council,14-Aug-20,51301402189,-753.47,HILTON PARK CARE CENTRE,CARE ESTABLISHMENT,LD - South Locality - Cost of Care,LD - South Cambs - Care,Nursing Care
Cambridgeshire County Council,14-Aug-20,51301402189,-753.47,HILTON PARK CARE CENTRE,CARE ESTABLISHMENT,LD - South Locality - Cost of Care,LD - South Cambs - Care,Nursing Care
Cambridgeshire County Council,14-Aug-20,51301402189,-753.47,HILTON PARK CARE CENTRE,CARE ESTABLISHMENT,LD - South Locality - Cost of Care,LD - South Cambs - Care,Nursing Care
Cambridgeshire County Council,14-Aug-20,51301402189,-753.47,HILTON PARK CARE CENTRE,CARE ESTABLISHMENT,LD - South Locality - Cost of Care,LD - South Cambs - Care,Nursing Care
Cambridgeshire County Council,14-Aug-20,51301402189,-753.47,HILTON PARK CARE CENTRE,CARE ESTABLISHMENT,LD - South Locality - Cost of Care,LD - South Cambs - Care,Nursing Care
Cambridgeshire County Council,06-Aug-20,51301418429,-750.00,Redacted Personal Data,SERVICE USER,Physical Disablity - Cost of Care,Countywide PD Service - Care,Direct Payments
Cambridgeshire County Council,06-Aug-20,51301418429,-750.00,Redacted Personal Data,SERVICE USER,Physical Disablity - Cost of Care,Countywide PD Service - Care,Direct Payments
Cambridgeshire County Council,06-Aug-20,51301418429,-750.00,Redacted Personal Data,SERVICE USER,Physical Disablity - Cost of Care,Countywide PD Service - Care,Direct Payments
Cambridgeshire County Council,06-Aug-20,51301418429,-750.00,Redacted Personal Data,SERVICE USER,Physical Disablity - Cost of Care,Countywide PD Service - Care,Direct Payments
Cambridgeshire County Council,06-Aug-20,51301418429,-750.00,Redacted Personal Data,SERVICE USER,Physical Disablity - Cost of Care,Countywide PD Service - Care,Direct Payments
Cambridgeshire County Council,06-Aug-20,51301418429,-750.00,Redacted Personal Data,SERVICE USER,Physical Disablity - Cost of Care,Countywide PD Service - Care,Direct Payments
Cambridgeshire County Council,06-Aug-20,51301414658,-750.00,Redacted Personal Data,SERVICE USER,Physical Disablity - Cost of Care,Countywide PD Service - Care,Direct Payments
Cambridgeshire County Council,06-Aug-20,51301414658,-750.00,Redacted Personal Data,SERVICE USER,Physical Disablity - Cost of Care,Countywide PD Service - Care,Direct Payments
Cambridgeshire County Council,06-Aug-20,51301414658,-750.00,Redacted Personal Data,SERVICE USER,Physical Disablity - Cost of Care,Countywide PD Service - Care,Direct Payments
Cambridgeshire County Council,06-Aug-20,51301418429,-750.00,Redacted Personal Data,SERVICE USER,Physical Disablity - Cost of Care,Countywide PD Service - Care,Direct Payments
Cambridgeshire County Council,06-Aug-20,51301414658,-750.00,Redacted Personal Data,SERVICE USER,Physical Disablity - Cost of Care,Countywide PD Service - Care,Direct Payments
Cambridgeshire County Council,06-Aug-20,51301414658,-750.00,Redacted Personal Data,SERVICE USER,Physical Disablity - Cost of Care,Countywide PD Service - Care,Direct Payments
Cambridgeshire County Council,06-Aug-20,51301414658,-750.00,Redacted Personal Data,SERVICE USER,Physical Disablity - Cost of Care,Countywide PD Service - Care,Direct Payments
Cambridgeshire County Council,06-Aug-20,51301414658,-750.00,Redacted Personal Data,SERVICE USER,Physical Disablity - Cost of Care,Countywide PD Service - Care,Direct Payments
Cambridgeshire County Council,06-Aug-20,51301418463,-750.00,Redacted Personal Data,SERVICE USER,Physical Disablity - Cost of Care,Countywide PD Service - Care,Direct Payments
Cambridgeshire County Council,06-Aug-20,51301418463,-750.00,Redacted Personal Data,SERVICE USER,Physical Disablity - Cost of Care,Countywide PD Service - Care,Direct Payments
Cambridgeshire County Council,06-Aug-20,51301418463,-750.00,Redacted Personal Data,SERVICE USER,Physical Disablity - Cost of Care,Countywide PD Service - Care,Direct Payments
Cambridgeshire County Council,06-Aug-20,51301418463,-750.00,Redacted Personal Data,SERVICE USER,Physical Disablity - Cost of Care,Countywide PD Service - Care,Direct Payments
Cambridgeshire County Council,06-Aug-20,51301418463,-750.00,Redacted Personal Data,SERVICE USER,Physical Disablity - Cost of Care,Countywide PD Service - Care,Direct Payments
Cambridgeshire County Council,06-Aug-20,51301418463,-750.00,Redacted Personal Data,SERVICE USER,Physical Disablity - Cost of Care,Countywide PD Service - Care,Direct Payments
Cambridgeshire County Council,06-Aug-20,51301418463,-750.00,Redacted Personal Data,SERVICE USER,Physical Disablity - Cost of Care,Countywide PD Service - Care,Direct Payments
Cambridgeshire County Council,14-Aug-20,51301421559,-750.00,THE CAMBRIDGE HOUSING SOCIETY LTD,CARE ESTABLISHMENT,OP - City & South Locality - Cost of Care,Older People - City & South - Care,Residential Care
Cambridgeshire County Council,14-Aug-20,51301421559,-750.00,THE CAMBRIDGE HOUSING SOCIETY LTD,CARE ESTABLISHMENT,OP - City & South Locality - Cost of Care,Older People - City & South - Care,Residential Care
Cambridgeshire County Council,14-Aug-20,51301421559,-750.00,THE CAMBRIDGE HOUSING SOCIETY LTD,CARE ESTABLISHMENT,OP - City & South Locality - Cost of Care,Older People - City & South - Care,Residential Care
Cambridgeshire County Council,14-Aug-20,51301421559,-750.00,THE CAMBRIDGE HOUSING SOCIETY LTD,CARE ESTABLISHMENT,OP - City & South Locality - Cost of Care,Older People - City & South - Care,Residential Care
Cambridgeshire County Council,14-Aug-20,51301421559,-750.00,THE CAMBRIDGE HOUSING SOCIETY LTD,CARE ESTABLISHMENT,OP - City & South Locality - Cost of Care,Older People - City & South - Care,Residential Care
Cambridgeshire County Council,14-Aug-20,51301421559,-750.00,THE CAMBRIDGE HOUSING SOCIETY LTD,CARE ESTABLISHMENT,OP - City & South Locality - Cost of Care,Older People - City & South - Care,Residential Care
Cambridgeshire County Council,14-Aug-20,51301421559,-750.00,THE CAMBRIDGE HOUSING SOCIETY LTD,CARE ESTABLISHMENT,OP - City & South Locality - Cost of Care,Older People - City & South - Care,Residential Care
Cambridgeshire County Council,14-Aug-20,51301421559,-750.00,THE CAMBRIDGE HOUSING SOCIETY LTD,CARE ESTABLISHMENT,OP - City & South Locality - Cost of Care,Older People - City & South - Care,Residential Care
Cambridgeshire County Council,14-Aug-20,51301421559,-750.00,THE CAMBRIDGE HOUSING SOCIETY LTD,CARE ESTABLISHMENT,OP - City & South Locality - Cost of Care,Older People - City & South - Care,Residential Care
Cambridgeshire County Council,14-Aug-20,51301421559,-750.00,THE CAMBRIDGE HOUSING SOCIETY LTD,CARE ESTABLISHMENT,OP - City & South Locality - Cost of Care,Older People - City & South - Care,Residential Care
Cambridgeshire County Council,14-Aug-20,51301421559,-750.00,THE CAMBRIDGE HOUSING SOCIETY LTD,CARE ESTABLISHMENT,OP - City & South Locality - Cost of Care,Older People - City & South - Care,Residential Care
Cambridgeshire County Council,14-Aug-20,51301421559,-750.00,THE CAMBRIDGE HOUSING SOCIETY LTD,CARE ESTABLISHMENT,OP - City & South Locality - Cost of Care,Older People - City & South - Care,Residential Care
Cambridgeshire County Council,14-Aug-20,51301421559,-750.00,THE CAMBRIDGE HOUSING SOCIETY LTD,CARE ESTABLISHMENT,OP - City & South Locality - Cost of Care,Older People - City & South - Care,Residential Care
Cambridgeshire County Council,14-Aug-20,51301421559,-750.00,THE CAMBRIDGE HOUSING SOCIETY LTD,CARE ESTABLISHMENT,OP - City & South Locality - Cost of Care,Older People - City & South - Care,Residential Care
Cambridgeshire County Council,14-Aug-20,51301421559,-750.00,THE CAMBRIDGE HOUSING SOCIETY LTD,CARE ESTABLISHMENT,OP - City & South Locality - Cost of Care,Older People - City & South - Care,Residential Care
Cambridgeshire County Council,14-Aug-20,51301421559,-750.00,THE CAMBRIDGE HOUSING SOCIETY LTD,CARE ESTABLISHMENT,OP - City & South Locality - Cost of Care,Older People - City & South - Care,Residential Care
Cambridgeshire County Council,14-Aug-20,51301421559,-750.00,THE CAMBRIDGE HOUSING SOCIETY LTD,CARE ESTABLISHMENT,OP - City & South Locality - Cost of Care,Older People - City & South - Care,Residential Care
Cambridgeshire County Council,14-Aug-20,51301421559,-750.00,THE CAMBRIDGE HOUSING SOCIETY LTD,CARE ESTABLISHMENT,OP - City & South Locality - Cost of Care,Older People - City & South - Care,Residential Care
Cambridgeshire County Council,14-Aug-20,51301421559,-750.00,THE CAMBRIDGE HOUSING SOCIETY LTD,CARE ESTABLISHMENT,OP - City & South Locality - Cost of Care,Older People - City & South - Care,Residential Care
Cambridgeshire County Council,14-Aug-20,51301421559,-750.00,THE CAMBRIDGE HOUSING SOCIETY LTD,CARE ESTABLISHMENT,OP - City & South Locality - Cost of Care,Older People - City & South - Care,Residential Care
Cambridgeshire County Council,14-Aug-20,51301421559,-750.00,THE CAMBRIDGE HOUSING SOCIETY LTD,CARE ESTABLISHMENT,OP - City & South Locality - Cost of Care,Older People - City & South - Care,Residential Care
Cambridgeshire County Council,14-Aug-20,51301421559,-750.00,THE CAMBRIDGE HOUSING SOCIETY LTD,CARE ESTABLISHMENT,OP - City & South Locality - Cost of Care,Older People - City & South - Care,Residential Care
Cambridgeshire County Council,14-Aug-20,51301421559,-750.00,THE CAMBRIDGE HOUSING SOCIETY LTD,CARE ESTABLISHMENT,OP - City & South Locality - Cost of Care,Older People - City & South - Care,Residential Care
Cambridgeshire County Council,26-Aug-20,51301425178,-748.03,YMCA Trinity Group,COMPANY,Unaccompanied Asylum Seeking Children,Unaccompanied Asylum Seeking Children >18 Leaving Care,Living Spport Grants - Financial Assistance 18+
Cambridgeshire County Council,26-Aug-20,51301425208,-748.03,YMCA Trinity Group,COMPANY,Unaccompanied Asylum Seeking Children,Unaccompanied Asylum Seeking Children >18 Leaving Care,Living Spport Grants - Financial Assistance 18+
Cambridgeshire County Council,26-Aug-20,51301425198,-748.03,YMCA Trinity Group,COMPANY,Unaccompanied Asylum Seeking Children,Unaccompanied Asylum Seeking Children >18 Leaving Care,Living Spport Grants - Financial Assistance 18+
Cambridgeshire County Council,06-Aug-20,51301414881,-747.99,THE AVENUES TRUST LTD,TRUST (OTHER),LD - South Locality - Cost of Care,LD - South Cambs - Care,Domiciliary Care
Cambridgeshire County Council,06-Aug-20,51301414881,-747.99,THE AVENUES TRUST LTD,TRUST (OTHER),LD - South Locality - Cost of Care,LD - South Cambs - Care,Domiciliary Care
Cambridgeshire County Council,06-Aug-20,51301414881,-747.99,THE AVENUES TRUST LTD,TRUST (OTHER),LD - South Locality - Cost of Care,LD - South Cambs - Care,Domiciliary Care
Cambridgeshire County Council,06-Aug-20,51301414881,-747.99,THE AVENUES TRUST LTD,TRUST (OTHER),LD - South Locality - Cost of Care,LD - South Cambs - Care,Domiciliary Care
Cambridgeshire County Council,06-Aug-20,51301414881,-747.99,THE AVENUES TRUST LTD,TRUST (OTHER),LD - South Locality - Cost of Care,LD - South Cambs - Care,Domiciliary Care
Cambridgeshire County Council,04-Aug-20,51301411244,-745.00,Florinee Homes Ltd,CARE ESTABLISHMENT,LAC Placements,Placements - supported accommodation,Agency Placements - In County
Cambridgeshire County Council,06-Aug-20,51301416251,-742.11,MEADOWS HOMECARE SERVICES,CARE ESTABLISHMENT,OP - City & South Locality - Cost of Care,Older People - City & South - Care,Homecare
Cambridgeshire County Council,26-Aug-20,51301425218,-740.59,YMCA Trinity Group,COMPANY,Unaccompanied Asylum Seeking Children,Unaccompanied Asylum Seeking Children >18 Leaving Care,Living Spport Grants - Financial Assistance 18+
Cambridgeshire County Council,06-Aug-20,51301415689,-734.81,ETHELDRED HOUSE,CARE ESTABLISHMENT,OPMH - City & South,Older People Mental Health City & South,Nursing Care
Cambridgeshire County Council,06-Aug-20,51301415689,-734.81,ETHELDRED HOUSE,CARE ESTABLISHMENT,OPMH - City & South,Older People Mental Health City & South,Nursing Care
Cambridgeshire County Council,06-Aug-20,51301415689,-734.81,ETHELDRED HOUSE,CARE ESTABLISHMENT,OPMH - City & South,Older People Mental Health City & South,Nursing Care
Cambridgeshire County Council,06-Aug-20,51301415689,-734.81,ETHELDRED HOUSE,CARE ESTABLISHMENT,OPMH - City & South,Older People Mental Health City & South,Nursing Care
Cambridgeshire County Council,06-Aug-20,51301415689,-734.81,ETHELDRED HOUSE,CARE ESTABLISHMENT,OPMH - City & South,Older People Mental Health City & South,Nursing Care
Cambridgeshire County Council,06-Aug-20,51301415689,-734.81,ETHELDRED HOUSE,CARE ESTABLISHMENT,OPMH - City & South,Older People Mental Health City & South,Nursing Care
Cambridgeshire County Council,06-Aug-20,51301415689,-734.81,ETHELDRED HOUSE,CARE ESTABLISHMENT,OPMH - City & South,Older People Mental Health City & South,Nursing Care
Cambridgeshire County Council,06-Aug-20,51301415689,-734.81,ETHELDRED HOUSE,CARE ESTABLISHMENT,OPMH - City & South,Older People Mental Health City & South,Nursing Care
Cambridgeshire County Council,06-Aug-20,51301415689,-734.81,ETHELDRED HOUSE,CARE ESTABLISHMENT,OPMH - City & South,Older People Mental Health City & South,Nursing Care
Cambridgeshire County Council,06-Aug-20,51301415689,-734.81,ETHELDRED HOUSE,CARE ESTABLISHMENT,OPMH - City & South,Older People Mental Health City & South,Nursing Care
Cambridgeshire County Council,06-Aug-20,51301415689,-734.81,ETHELDRED HOUSE,CARE ESTABLISHMENT,OPMH - City & South,Older People Mental Health City & South,Nursing Care
Cambridgeshire County Council,06-Aug-20,51301415689,-734.81,ETHELDRED HOUSE,CARE ESTABLISHMENT,OPMH - City & South,Older People Mental Health City & South,Nursing Care
Cambridgeshire County Council,06-Aug-20,51301415689,-734.81,ETHELDRED HOUSE,CARE ESTABLISHMENT,OPMH - City & South,Older People Mental Health City & South,Nursing Care
Cambridgeshire County Council,06-Aug-20,51301415689,-734.81,ETHELDRED HOUSE,CARE ESTABLISHMENT,OPMH - City & South,Older People Mental Health City & South,Nursing Care
Cambridgeshire County Council,06-Aug-20,51301415689,-734.81,ETHELDRED HOUSE,CARE ESTABLISHMENT,OPMH - City & South,Older People Mental Health City & South,Nursing Care
Cambridgeshire County Council,06-Aug-20,51301415689,-734.81,ETHELDRED HOUSE,CARE ESTABLISHMENT,OPMH - City & South,Older People Mental Health City & South,Nursing Care
Cambridgeshire County Council,06-Aug-20,51301415689,-734.81,ETHELDRED HOUSE,CARE ESTABLISHMENT,OPMH - City & South,Older People Mental Health City & South,Nursing Care
Cambridgeshire County Council,06-Aug-20,51301415689,-734.81,ETHELDRED HOUSE,CARE ESTABLISHMENT,OPMH - City & South,Older People Mental Health City & South,Nursing Care
Cambridgeshire County Council,06-Aug-20,51301415689,-734.81,ETHELDRED HOUSE,CARE ESTABLISHMENT,OPMH - City & South,Older People Mental Health City & South,Nursing Care
Cambridgeshire County Council,06-Aug-20,51301415689,-734.81,ETHELDRED HOUSE,CARE ESTABLISHMENT,OPMH - City & South,Older People Mental Health City & South,Nursing Care
Cambridgeshire County Council,06-Aug-20,51301415689,-734.81,ETHELDRED HOUSE,CARE ESTABLISHMENT,OPMH - City & South,Older People Mental Health City & South,Nursing Care
Cambridgeshire County Council,06-Aug-20,51301415689,-734.81,ETHELDRED HOUSE,CARE ESTABLISHMENT,OPMH - City & South,Older People Mental Health City & South,Nursing Care
Cambridgeshire County Council,06-Aug-20,51301415689,-734.81,ETHELDRED HOUSE,CARE ESTABLISHMENT,OPMH - City & South,Older People Mental Health City & South,Nursing Care
Cambridgeshire County Council,06-Aug-20,51301415689,-734.81,ETHELDRED HOUSE,CARE ESTABLISHMENT,OPMH - City & South,Older People Mental Health City & South,Nursing Care
Cambridgeshire County Council,06-Aug-20,51301415689,-734.81,ETHELDRED HOUSE,CARE ESTABLISHMENT,OPMH - City & South,Older People Mental Health City & South,Nursing Care
Cambridgeshire County Council,06-Aug-20,51301415689,-734.81,ETHELDRED HOUSE,CARE ESTABLISHMENT,OPMH - City & South,Older People Mental Health City & South,Nursing Care
Cambridgeshire County Council,06-Aug-20,51301415689,-734.81,ETHELDRED HOUSE,CARE ESTABLISHMENT,OPMH - City & South,Older People Mental Health City & South,Nursing Care
Cambridgeshire County Council,06-Aug-20,51301415689,-734.81,ETHELDRED HOUSE,CARE ESTABLISHMENT,OPMH - City & South,Older People Mental Health City & South,Nursing Care
Cambridgeshire County Council,06-Aug-20,51301415689,-734.81,ETHELDRED HOUSE,CARE ESTABLISHMENT,OPMH - City & South,Older People Mental Health City & South,Nursing Care
Cambridgeshire County Council,06-Aug-20,51301415689,-734.81,ETHELDRED HOUSE,CARE ESTABLISHMENT,OPMH - City & South,Older People Mental Health City & South,Nursing Care
Cambridgeshire County Council,06-Aug-20,51301415689,-734.81,ETHELDRED HOUSE,CARE ESTABLISHMENT,OPMH - City & South,Older People Mental Health City & South,Nursing Care
Cambridgeshire County Council,06-Aug-20,51301415689,-734.81,ETHELDRED HOUSE,CARE ESTABLISHMENT,OPMH - City & South,Older People Mental Health City & South,Nursing Care
Cambridgeshire County Council,06-Aug-20,51301415689,-734.81,ETHELDRED HOUSE,CARE ESTABLISHMENT,OPMH - City & South,Older People Mental Health City & South,Nursing Care
Cambridgeshire County Council,06-Aug-20,51301415689,-734.81,ETHELDRED HOUSE,CARE ESTABLISHMENT,OPMH - City & South,Older People Mental Health City & South,Nursing Care
Cambridgeshire County Council,06-Aug-20,51301415689,-734.81,ETHELDRED HOUSE,CARE ESTABLISHMENT,OPMH - City & South,Older People Mental Health City & South,Nursing Care
Cambridgeshire County Council,06-Aug-20,51301415689,-734.81,ETHELDRED HOUSE,CARE ESTABLISHMENT,OPMH - City & South,Older People Mental Health City & South,Nursing Care
Cambridgeshire County Council,06-Aug-20,51301415689,-734.81,ETHELDRED HOUSE,CARE ESTABLISHMENT,OPMH - City & South,Older People Mental Health City & South,Nursing Care
Cambridgeshire County Council,06-Aug-20,51301415689,-734.81,ETHELDRED HOUSE,CARE ESTABLISHMENT,OPMH - City & South,Older People Mental Health City & South,Nursing Care
Cambridgeshire County Council,06-Aug-20,51301415689,-734.81,ETHELDRED HOUSE,CARE ESTABLISHMENT,OPMH - City & South,Older People Mental Health City & South,Nursing Care
Cambridgeshire County Council,06-Aug-20,51301415689,-734.81,ETHELDRED HOUSE,CARE ESTABLISHMENT,OPMH - City & South,Older People Mental Health City & South,Nursing Care
Cambridgeshire County Council,06-Aug-20,51301415689,-734.81,ETHELDRED HOUSE,CARE ESTABLISHMENT,OPMH - City & South,Older People Mental Health City & South,Nursing Care
Cambridgeshire County Council,06-Aug-20,51301415689,-734.81,ETHELDRED HOUSE,CARE ESTABLISHMENT,OPMH - City & South,Older People Mental Health City & South,Nursing Care
Cambridgeshire County Council,06-Aug-20,51301415689,-734.81,ETHELDRED HOUSE,CARE ESTABLISHMENT,OPMH - City & South,Older People Mental Health City & South,Nursing Care
Cambridgeshire County Council,06-Aug-20,51301415689,-734.81,ETHELDRED HOUSE,CARE ESTABLISHMENT,OPMH - City & South,Older People Mental Health City & South,Nursing Care
Cambridgeshire County Council,06-Aug-20,51301415689,-734.81,ETHELDRED HOUSE,CARE ESTABLISHMENT,OPMH - City & South,Older People Mental Health City & South,Nursing Care
Cambridgeshire County Council,06-Aug-20,51301414486,-734.44,SYMONDS HOUSE NURSING HOME,CARE ESTABLISHMENT,OP - City & South Locality - Cost of Care,Older People - City & South - Care,Nursing Care
Cambridgeshire County Council,06-Aug-20,51301414486,-734.44,SYMONDS HOUSE NURSING HOME,CARE ESTABLISHMENT,OP - City & South Locality - Cost of Care,Older People - City & South - Care,Nursing Care
Cambridgeshire County Council,06-Aug-20,51301414486,-734.44,SYMONDS HOUSE NURSING HOME,CARE ESTABLISHMENT,OP - City & South Locality - Cost of Care,Older People - City & South - Care,Nursing Care
Cambridgeshire County Council,06-Aug-20,51301414486,-734.44,SYMONDS HOUSE NURSING HOME,CARE ESTABLISHMENT,OP - City & South Locality - Cost of Care,Older People - City & South - Care,Nursing Care
Cambridgeshire County Council,06-Aug-20,51301414486,-734.44,SYMONDS HOUSE NURSING HOME,CARE ESTABLISHMENT,OP - City & South Locality - Cost of Care,Older People - City & South - Care,Nursing Care
Cambridgeshire County Council,06-Aug-20,51301414486,-734.44,SYMONDS HOUSE NURSING HOME,CARE ESTABLISHMENT,OP - City & South Locality - Cost of Care,Older People - City & South - Care,Nursing Care
Cambridgeshire County Council,06-Aug-20,51301414486,-734.44,SYMONDS HOUSE NURSING HOME,CARE ESTABLISHMENT,OP - City & South Locality - Cost of Care,Older People - City & South - Care,Nursing Care
Cambridgeshire County Council,06-Aug-20,51301414486,-734.44,SYMONDS HOUSE NURSING HOME,CARE ESTABLISHMENT,OP - City & South Locality - Cost of Care,Older People - City & South - Care,Nursing Care
Cambridgeshire County Council,06-Aug-20,51301414486,-734.44,SYMONDS HOUSE NURSING HOME,CARE ESTABLISHMENT,OP - City & South Locality - Cost of Care,Older People - City & South - Care,Nursing Care
Cambridgeshire County Council,06-Aug-20,51301414486,-734.44,SYMONDS HOUSE NURSING HOME,CARE ESTABLISHMENT,OP - City & South Locality - Cost of Care,Older People - City & South - Care,Nursing Care
Cambridgeshire County Council,06-Aug-20,51301414486,-734.44,SYMONDS HOUSE NURSING HOME,CARE ESTABLISHMENT,OP - City & South Locality - Cost of Care,Older People - City & South - Care,Nursing Care
Cambridgeshire County Council,06-Aug-20,51301414486,-734.44,SYMONDS HOUSE NURSING HOME,CARE ESTABLISHMENT,OP - City & South Locality - Cost of Care,Older People - City & South - Care,Nursing Care
Cambridgeshire County Council,06-Aug-20,51301414486,-734.44,SYMONDS HOUSE NURSING HOME,CARE ESTABLISHMENT,OP - City & South Locality - Cost of Care,Older People - City & South - Care,Nursing Care
Cambridgeshire County Council,06-Aug-20,51301414486,-734.44,SYMONDS HOUSE NURSING HOME,CARE ESTABLISHMENT,OP - City & South Locality - Cost of Care,Older People - City & South - Care,Nursing Care
Cambridgeshire County Council,06-Aug-20,51301414486,-734.44,SYMONDS HOUSE NURSING HOME,CARE ESTABLISHMENT,OP - City & South Locality - Cost of Care,Older People - City & South - Care,Nursing Care
Cambridgeshire County Council,06-Aug-20,51301414486,-734.44,SYMONDS HOUSE NURSING HOME,CARE ESTABLISHMENT,OP - City & South Locality - Cost of Care,Older People - City & South - Care,Nursing Care
Cambridgeshire County Council,06-Aug-20,51301414486,-734.44,SYMONDS HOUSE NURSING HOME,CARE ESTABLISHMENT,OP - City & South Locality - Cost of Care,Older People - City & South - Care,Nursing Care
Cambridgeshire County Council,06-Aug-20,51301414486,-734.44,SYMONDS HOUSE NURSING HOME,CARE ESTABLISHMENT,OP - City & South Locality - Cost of Care,Older People - City & South - Care,Nursing Care
Cambridgeshire County Council,06-Aug-20,51301414486,-734.44,SYMONDS HOUSE NURSING HOME,CARE ESTABLISHMENT,OP - City & South Locality - Cost of Care,Older People - City & South - Care,Nursing Care
Cambridgeshire County Council,06-Aug-20,51301414486,-734.44,SYMONDS HOUSE NURSING HOME,CARE ESTABLISHMENT,OP - City & South Locality - Cost of Care,Older People - City & South - Care,Nursing Care
Cambridgeshire County Council,06-Aug-20,51301414486,-734.44,SYMONDS HOUSE NURSING HOME,CARE ESTABLISHMENT,OP - City & South Locality - Cost of Care,Older People - City & South - Care,Nursing Care
Cambridgeshire County Council,06-Aug-20,51301414486,-734.44,SYMONDS HOUSE NURSING HOME,CARE ESTABLISHMENT,OP - City & South Locality - Cost of Care,Older People - City & South - Care,Nursing Care
Cambridgeshire County Council,06-Aug-20,51301414486,-734.44,SYMONDS HOUSE NURSING HOME,CARE ESTABLISHMENT,OP - City & South Locality - Cost of Care,Older People - City & South - Care,Nursing Care
Cambridgeshire County Council,06-Aug-20,51301413418,-729.60,YMCA Trinity Group,COMPANY,Unaccompanied Asylum Seeking Children,Unaccompanied Asylum Seeking Children >18 Leaving Care,Living Spport Grants - Financial Assistance 18+
Cambridgeshire County Council,06-Aug-20,51301417720,-728.57,ABBEY HEALTHCARE (HUNTINGDON) LTD,CARE ESTABLISHMENT,OP - Hunts Locality - Cost of Care,Hunts OP Team - Care,Nursing Care
Cambridgeshire County Council,26-Aug-20,51301425181,-723.90,YMCA Trinity Group,COMPANY,Unaccompanied Asylum Seeking Children,Unaccompanied Asylum Seeking Children >18 Leaving Care,Living Spport Grants - Financial Assistance 18+
Cambridgeshire County Council,26-Aug-20,51301425201,-723.90,YMCA Trinity Group,COMPANY,Unaccompanied Asylum Seeking Children,Unaccompanied Asylum Seeking Children >18 Leaving Care,Living Spport Grants - Financial Assistance 18+
Cambridgeshire County Council,26-Aug-20,51301425211,-723.90,YMCA Trinity Group,COMPANY,Unaccompanied Asylum Seeking Children,Unaccompanied Asylum Seeking Children >18 Leaving Care,Living Spport Grants - Financial Assistance 18+
Cambridgeshire County Council,26-Aug-20,51301425221,-716.70,YMCA Trinity Group,COMPANY,Unaccompanied Asylum Seeking Children,Unaccompanied Asylum Seeking Children >18 Leaving Care,Living Spport Grants - Financial Assistance 18+
Cambridgeshire County Council,26-Aug-20,51301425227,-716.57,YMCA Trinity Group,COMPANY,Unaccompanied Asylum Seeking Children,Unaccompanied Asylum Seeking Children >18 Leaving Care,Living Spport Grants - Financial Assistance 18+
Cambridgeshire County Council,07-Aug-20,51301419228,-714.14,GLENNFIELD CARE CENTRE (OP),CARE ESTABLISHMENT,OP - East Cambs Locality - Cost of Care,East Cambs - O P Team - Care,Nursing Care
Cambridgeshire County Council,07-Aug-20,51301419228,-714.14,GLENNFIELD CARE CENTRE (OP),CARE ESTABLISHMENT,OP - East Cambs Locality - Cost of Care,East Cambs - O P Team - Care,Nursing Care
Cambridgeshire County Council,07-Aug-20,51301419228,-714.14,GLENNFIELD CARE CENTRE (OP),CARE ESTABLISHMENT,OP - East Cambs Locality - Cost of Care,East Cambs - O P Team - Care,Nursing Care
Cambridgeshire County Council,07-Aug-20,51301419228,-714.14,GLENNFIELD CARE CENTRE (OP),CARE ESTABLISHMENT,OP - East Cambs Locality - Cost of Care,East Cambs - O P Team - Care,Nursing Care
Cambridgeshire County Council,07-Aug-20,51301419228,-714.14,GLENNFIELD CARE CENTRE (OP),CARE ESTABLISHMENT,OP - East Cambs Locality - Cost of Care,East Cambs - O P Team - Care,Nursing Care
Cambridgeshire County Council,07-Aug-20,51301419228,-714.14,GLENNFIELD CARE CENTRE (OP),CARE ESTABLISHMENT,OP - East Cambs Locality - Cost of Care,East Cambs - O P Team - Care,Nursing Care
Cambridgeshire County Council,07-Aug-20,51301419228,-714.14,GLENNFIELD CARE CENTRE (OP),CARE ESTABLISHMENT,OP - East Cambs Locality - Cost of Care,East Cambs - O P Team - Care,Nursing Care
Cambridgeshire County Council,07-Aug-20,51301419228,-714.14,GLENNFIELD CARE CENTRE (OP),CARE ESTABLISHMENT,OP - East Cambs Locality - Cost of Care,East Cambs - O P Team - Care,Nursing Care
Cambridgeshire County Council,14-Aug-20,51301421512,-712.53,VOYAGE,CARE ESTABLISHMENT,LD - South Locality - Cost of Care,LD - South Cambs - Care,Domiciliary Care
Cambridgeshire County Council,14-Aug-20,51301421512,-712.53,VOYAGE,CARE ESTABLISHMENT,LD - South Locality - Cost of Care,LD - South Cambs - Care,Domiciliary Care
Cambridgeshire County Council,14-Aug-20,51301421512,-712.53,VOYAGE,CARE ESTABLISHMENT,LD - South Locality - Cost of Care,LD - South Cambs - Care,Domiciliary Care
Cambridgeshire County Council,14-Aug-20,51301421512,-712.53,VOYAGE,CARE ESTABLISHMENT,LD - South Locality - Cost of Care,LD - South Cambs - Care,Domiciliary Care
Cambridgeshire County Council,14-Aug-20,51301421512,-712.53,VOYAGE,CARE ESTABLISHMENT,LD - South Locality - Cost of Care,LD - South Cambs - Care,Domiciliary Care
Cambridgeshire County Council,14-Aug-20,51301421512,-712.53,VOYAGE,CARE ESTABLISHMENT,LD - South Locality - Cost of Care,LD - South Cambs - Care,Domiciliary Care
Cambridgeshire County Council,14-Aug-20,51301421512,-712.53,VOYAGE,CARE ESTABLISHMENT,LD - South Locality - Cost of Care,LD - South Cambs - Care,Domiciliary Care
Cambridgeshire County Council,14-Aug-20,51301421512,-712.53,VOYAGE,CARE ESTABLISHMENT,LD - South Locality - Cost of Care,LD - South Cambs - Care,Domiciliary Care
Cambridgeshire County Council,14-Aug-20,51301421512,-712.53,VOYAGE,CARE ESTABLISHMENT,LD - South Locality - Cost of Care,LD - South Cambs - Care,Domiciliary Care
Cambridgeshire County Council,14-Aug-20,51301421512,-712.53,VOYAGE,CARE ESTABLISHMENT,LD - South Locality - Cost of Care,LD - South Cambs - Care,Domiciliary Care
Cambridgeshire County Council,14-Aug-20,51301421512,-712.53,VOYAGE,CARE ESTABLISHMENT,LD - South Locality - Cost of Care,LD - South Cambs - Care,Domiciliary Care
Cambridgeshire County Council,14-Aug-20,51301421512,-712.53,VOYAGE,CARE ESTABLISHMENT,LD - South Locality - Cost of Care,LD - South Cambs - Care,Domiciliary Care
Cambridgeshire County Council,14-Aug-20,51301421512,-712.53,VOYAGE,CARE ESTABLISHMENT,LD - South Locality - Cost of Care,LD - South Cambs - Care,Domiciliary Care
Cambridgeshire County Council,14-Aug-20,51301421512,-712.53,VOYAGE,CARE ESTABLISHMENT,LD - South Locality - Cost of Care,LD - South Cambs - Care,Domiciliary Care
Cambridgeshire County Council,14-Aug-20,51301421512,-712.53,VOYAGE,CARE ESTABLISHMENT,LD - South Locality - Cost of Care,LD - South Cambs - Care,Domiciliary Care
Cambridgeshire County Council,14-Aug-20,51301421512,-712.53,VOYAGE,CARE ESTABLISHMENT,LD - South Locality - Cost of Care,LD - South Cambs - Care,Domiciliary Care
Cambridgeshire County Council,14-Aug-20,51301421512,-712.53,VOYAGE,CARE ESTABLISHMENT,LD - South Locality - Cost of Care,LD - South Cambs - Care,Domiciliary Care
Cambridgeshire County Council,14-Aug-20,51301421512,-712.53,VOYAGE,CARE ESTABLISHMENT,LD - South Locality - Cost of Care,LD - South Cambs - Care,Domiciliary Care
Cambridgeshire County Council,14-Aug-20,51301421512,-712.53,VOYAGE,CARE ESTABLISHMENT,LD - South Locality - Cost of Care,LD - South Cambs - Care,Domiciliary Care
Cambridgeshire County Council,14-Aug-20,51301421512,-712.53,VOYAGE,CARE ESTABLISHMENT,LD - South Locality - Cost of Care,LD - South Cambs - Care,Domiciliary Care
Cambridgeshire County Council,14-Aug-20,51301421512,-712.53,VOYAGE,CARE ESTABLISHMENT,LD - South Locality - Cost of Care,LD - South Cambs - Care,Domiciliary Care
Cambridgeshire County Council,14-Aug-20,51301421512,-712.53,VOYAGE,CARE ESTABLISHMENT,LD - South Locality - Cost of Care,LD - South Cambs - Care,Domiciliary Care
Cambridgeshire County Council,14-Aug-20,51301421512,-712.53,VOYAGE,CARE ESTABLISHMENT,LD - South Locality - Cost of Care,LD - South Cambs - Care,Domiciliary Care
Cambridgeshire County Council,14-Aug-20,51301421512,-712.53,VOYAGE,CARE ESTABLISHMENT,LD - South Locality - Cost of Care,LD - South Cambs - Care,Domiciliary Care
Cambridgeshire County Council,14-Aug-20,51301421512,-712.53,VOYAGE,CARE ESTABLISHMENT,LD - South Locality - Cost of Care,LD - South Cambs - Care,Domiciliary Care
Cambridgeshire County Council,14-Aug-20,51301421512,-712.53,VOYAGE,CARE ESTABLISHMENT,LD - South Locality - Cost of Care,LD - South Cambs - Care,Domiciliary Care
Cambridgeshire County Council,14-Aug-20,51301421512,-712.53,VOYAGE,CARE ESTABLISHMENT,LD - South Locality - Cost of Care,LD - South Cambs - Care,Domiciliary Care
Cambridgeshire County Council,14-Aug-20,51301421512,-712.53,VOYAGE,CARE ESTABLISHMENT,LD - South Locality - Cost of Care,LD - South Cambs - Care,Domiciliary Care
Cambridgeshire County Council,14-Aug-20,51301421512,-712.53,VOYAGE,CARE ESTABLISHMENT,LD - South Locality - Cost of Care,LD - South Cambs - Care,Domiciliary Care
Cambridgeshire County Council,14-Aug-20,51301421512,-712.53,VOYAGE,CARE ESTABLISHMENT,LD - South Locality - Cost of Care,LD - South Cambs - Care,Domiciliary Care
Cambridgeshire County Council,14-Aug-20,51301421512,-712.53,VOYAGE,CARE ESTABLISHMENT,LD - South Locality - Cost of Care,LD - South Cambs - Care,Domiciliary Care
Cambridgeshire County Council,14-Aug-20,51301421512,-712.53,VOYAGE,CARE ESTABLISHMENT,LD - South Locality - Cost of Care,LD - South Cambs - Care,Domiciliary Care
Cambridgeshire County Council,14-Aug-20,51301421512,-712.53,VOYAGE,CARE ESTABLISHMENT,LD - South Locality - Cost of Care,LD - South Cambs - Care,Domiciliary Care
Cambridgeshire County Council,14-Aug-20,51301421512,-712.53,VOYAGE,CARE ESTABLISHMENT,LD - South Locality - Cost of Care,LD - South Cambs - Care,Domiciliary Care
Cambridgeshire County Council,14-Aug-20,51301421512,-712.53,VOYAGE,CARE ESTABLISHMENT,LD - South Locality - Cost of Care,LD - South Cambs - Care,Domiciliary Care
Cambridgeshire County Council,14-Aug-20,51301421512,-712.53,VOYAGE,CARE ESTABLISHMENT,LD - South Locality - Cost of Care,LD - South Cambs - Care,Domiciliary Care
Cambridgeshire County Council,14-Aug-20,51301421512,-712.53,VOYAGE,CARE ESTABLISHMENT,LD - South Locality - Cost of Care,LD - South Cambs - Care,Domiciliary Care
Cambridgeshire County Council,06-Aug-20,51301415163,-705.70,CAERUS CARE LTD,CARE ESTABLISHMENT,LD - Fenland Locality - Cost of Care,LD - Fenland  - Care,Supported Living
Cambridgeshire County Council,11-Aug-20,51301419740,-694.42,CARETECH COMMUNITY SERVICES,CARE ESTABLISHMENT,LAC Placements,Placements - supported accommodation,Agency Placements - In County
Cambridgeshire County Council,06-Aug-20,51301414533,-690.00,NELSON LODGE,CARE ESTABLISHMENT,OP - City & South Locality - Cost of Care,Older People - City & South - Care,Residential Care
Cambridgeshire County Council,06-Aug-20,51301414533,-690.00,NELSON LODGE,CARE ESTABLISHMENT,OP - City & South Locality - Cost of Care,Older People - City & South - Care,Residential Care
Cambridgeshire County Council,06-Aug-20,51301414533,-690.00,NELSON LODGE,CARE ESTABLISHMENT,OP - City & South Locality - Cost of Care,Older People - City & South - Care,Residential Care
Cambridgeshire County Council,14-Aug-20,51301421558,-674.10,VOYAGE,CARE ESTABLISHMENT,LD - South Locality - Cost of Care,LD - South Cambs - Care,Residential Care
Cambridgeshire County Council,14-Aug-20,51301421558,-674.10,VOYAGE,CARE ESTABLISHMENT,LD - South Locality - Cost of Care,LD - South Cambs - Care,Residential Care
Cambridgeshire County Council,14-Aug-20,51301421558,-674.10,VOYAGE,CARE ESTABLISHMENT,LD - South Locality - Cost of Care,LD - South Cambs - Care,Residential Care
Cambridgeshire County Council,14-Aug-20,51301421558,-674.10,VOYAGE,CARE ESTABLISHMENT,LD - South Locality - Cost of Care,LD - South Cambs - Care,Residential Care
Cambridgeshire County Council,14-Aug-20,51301421558,-674.10,VOYAGE,CARE ESTABLISHMENT,LD - South Locality - Cost of Care,LD - South Cambs - Care,Residential Care
Cambridgeshire County Council,14-Aug-20,51301421558,-674.10,VOYAGE,CARE ESTABLISHMENT,LD - South Locality - Cost of Care,LD - South Cambs - Care,Residential Care
Cambridgeshire County Council,14-Aug-20,51301421558,-674.10,VOYAGE,CARE ESTABLISHMENT,LD - South Locality - Cost of Care,LD - South Cambs - Care,Residential Care
Cambridgeshire County Council,14-Aug-20,51301421558,-674.10,VOYAGE,CARE ESTABLISHMENT,LD - South Locality - Cost of Care,LD - South Cambs - Care,Residential Care
Cambridgeshire County Council,14-Aug-20,51301421558,-674.10,VOYAGE,CARE ESTABLISHMENT,LD - South Locality - Cost of Care,LD - South Cambs - Care,Residential Care
Cambridgeshire County Council,14-Aug-20,51301421558,-674.10,VOYAGE,CARE ESTABLISHMENT,LD - South Locality - Cost of Care,LD - South Cambs - Care,Residential Care
Cambridgeshire County Council,14-Aug-20,51301421558,-674.10,VOYAGE,CARE ESTABLISHMENT,LD - South Locality - Cost of Care,LD - South Cambs - Care,Residential Care
Cambridgeshire County Council,14-Aug-20,51301421558,-674.10,VOYAGE,CARE ESTABLISHMENT,LD - South Locality - Cost of Care,LD - South Cambs - Care,Residential Care
Cambridgeshire County Council,14-Aug-20,51301421558,-674.10,VOYAGE,CARE ESTABLISHMENT,LD - South Locality - Cost of Care,LD - South Cambs - Care,Residential Care
Cambridgeshire County Council,14-Aug-20,51301421558,-674.10,VOYAGE,CARE ESTABLISHMENT,LD - South Locality - Cost of Care,LD - South Cambs - Care,Residential Care
Cambridgeshire County Council,14-Aug-20,51301421558,-674.10,VOYAGE,CARE ESTABLISHMENT,LD - South Locality - Cost of Care,LD - South Cambs - Care,Residential Care
Cambridgeshire County Council,14-Aug-20,51301421558,-674.10,VOYAGE,CARE ESTABLISHMENT,LD - South Locality - Cost of Care,LD - South Cambs - Care,Residential Care
Cambridgeshire County Council,14-Aug-20,51301421558,-674.10,VOYAGE,CARE ESTABLISHMENT,LD - South Locality - Cost of Care,LD - South Cambs - Care,Residential Care
Cambridgeshire County Council,14-Aug-20,51301421558,-674.10,VOYAGE,CARE ESTABLISHMENT,LD - South Locality - Cost of Care,LD - South Cambs - Care,Residential Care
Cambridgeshire County Council,14-Aug-20,51301421558,-674.10,VOYAGE,CARE ESTABLISHMENT,LD - South Locality - Cost of Care,LD - South Cambs - Care,Residential Care
Cambridgeshire County Council,14-Aug-20,51301421558,-674.10,VOYAGE,CARE ESTABLISHMENT,LD - South Locality - Cost of Care,LD - South Cambs - Care,Residential Care
Cambridgeshire County Council,14-Aug-20,51301421558,-674.10,VOYAGE,CARE ESTABLISHMENT,LD - South Locality - Cost of Care,LD - South Cambs - Care,Residential Care
Cambridgeshire County Council,14-Aug-20,51301421558,-674.10,VOYAGE,CARE ESTABLISHMENT,LD - South Locality - Cost of Care,LD - South Cambs - Care,Residential Care
Cambridgeshire County Council,14-Aug-20,51301421558,-674.10,VOYAGE,CARE ESTABLISHMENT,LD - South Locality - Cost of Care,LD - South Cambs - Care,Residential Care
Cambridgeshire County Council,14-Aug-20,51301421558,-674.10,VOYAGE,CARE ESTABLISHMENT,LD - South Locality - Cost of Care,LD - South Cambs - Care,Residential Care
Cambridgeshire County Council,14-Aug-20,51301421558,-674.10,VOYAGE,CARE ESTABLISHMENT,LD - South Locality - Cost of Care,LD - South Cambs - Care,Residential Care
Cambridgeshire County Council,14-Aug-20,51301421558,-674.10,VOYAGE,CARE ESTABLISHMENT,LD - South Locality - Cost of Care,LD - South Cambs - Care,Residential Care
Cambridgeshire County Council,14-Aug-20,51301421558,-674.10,VOYAGE,CARE ESTABLISHMENT,LD - South Locality - Cost of Care,LD - South Cambs - Care,Residential Care
Cambridgeshire County Council,14-Aug-20,51301421558,-674.10,VOYAGE,CARE ESTABLISHMENT,LD - South Locality - Cost of Care,LD - South Cambs - Care,Residential Care
Cambridgeshire County Council,14-Aug-20,51301421558,-674.10,VOYAGE,CARE ESTABLISHMENT,LD - South Locality - Cost of Care,LD - South Cambs - Care,Residential Care
Cambridgeshire County Council,14-Aug-20,51301421558,-674.10,VOYAGE,CARE ESTABLISHMENT,LD - South Locality - Cost of Care,LD - South Cambs - Care,Residential Care
Cambridgeshire County Council,14-Aug-20,51301421558,-674.10,VOYAGE,CARE ESTABLISHMENT,LD - South Locality - Cost of Care,LD - South Cambs - Care,Residential Care
Cambridgeshire County Council,14-Aug-20,51301421558,-674.10,VOYAGE,CARE ESTABLISHMENT,LD - South Locality - Cost of Care,LD - South Cambs - Care,Residential Care
Cambridgeshire County Council,14-Aug-20,51301421558,-674.10,VOYAGE,CARE ESTABLISHMENT,LD - South Locality - Cost of Care,LD - South Cambs - Care,Residential Care
Cambridgeshire County Council,14-Aug-20,51301421558,-674.10,VOYAGE,CARE ESTABLISHMENT,LD - South Locality - Cost of Care,LD - South Cambs - Care,Residential Care
Cambridgeshire County Council,14-Aug-20,51301421558,-674.10,VOYAGE,CARE ESTABLISHMENT,LD - South Locality - Cost of Care,LD - South Cambs - Care,Residential Care
Cambridgeshire County Council,14-Aug-20,51301421558,-674.10,VOYAGE,CARE ESTABLISHMENT,LD - South Locality - Cost of Care,LD - South Cambs - Care,Residential Care
Cambridgeshire County Council,14-Aug-20,51301421558,-674.10,VOYAGE,CARE ESTABLISHMENT,LD - South Locality - Cost of Care,LD - South Cambs - Care,Residential Care
Cambridgeshire County Council,14-Aug-20,51301421558,-674.10,VOYAGE,CARE ESTABLISHMENT,LD - South Locality - Cost of Care,LD - South Cambs - Care,Residential Care
Cambridgeshire County Council,14-Aug-20,51301421558,-674.10,VOYAGE,CARE ESTABLISHMENT,LD - South Locality - Cost of Care,LD - South Cambs - Care,Residential Care
Cambridgeshire County Council,14-Aug-20,51301421558,-674.10,VOYAGE,CARE ESTABLISHMENT,LD - South Locality - Cost of Care,LD - South Cambs - Care,Residential Care
Cambridgeshire County Council,14-Aug-20,51301421558,-674.10,VOYAGE,CARE ESTABLISHMENT,LD - South Locality - Cost of Care,LD - South Cambs - Care,Residential Care
Cambridgeshire County Council,26-Aug-20,51301425188,-670.31,YMCA Trinity Group,COMPANY,Unaccompanied Asylum Seeking Children,Unaccompanied Asylum Seeking Children >18 Leaving Care,Living Spport Grants - Financial Assistance 18+
Cambridgeshire County Council,06-Aug-20,51301414898,-660.97,THE AVENUES TRUST LTD,TRUST (OTHER),LD - South Locality - Cost of Care,LD - South Cambs - Care,Domiciliary Care
Cambridgeshire County Council,20-Aug-20,51301422328,-660.96,Opus Energy LTD,COMPANY,Corporate Offices,March Business Centre,Electricity
Cambridgeshire County Council,06-Aug-20,51301415653,-659.30,GLENNFIELD CARE CENTRE (OP),CARE ESTABLISHMENT,OPMH - Under 65,Older People Mental Health - Under 65's,Residential Care
Cambridgeshire County Council,06-Aug-20,51301415653,-659.30,GLENNFIELD CARE CENTRE (OP),CARE ESTABLISHMENT,OPMH - Under 65,Older People Mental Health - Under 65's,Residential Care
Cambridgeshire County Council,06-Aug-20,51301415653,-659.30,GLENNFIELD CARE CENTRE (OP),CARE ESTABLISHMENT,OPMH - Under 65,Older People Mental Health - Under 65's,Residential Care
Cambridgeshire County Council,06-Aug-20,51301415653,-659.30,GLENNFIELD CARE CENTRE (OP),CARE ESTABLISHMENT,OPMH - Under 65,Older People Mental Health - Under 65's,Residential Care
Cambridgeshire County Council,06-Aug-20,51301415653,-659.30,GLENNFIELD CARE CENTRE (OP),CARE ESTABLISHMENT,OPMH - Under 65,Older People Mental Health - Under 65's,Residential Care
Cambridgeshire County Council,14-Aug-20,51301421530,-656.46,73 HIGH ROAD,CARE ESTABLISHMENT,LD - South Locality - Cost of Care,LD - South Cambs - Care,Supported Living
Cambridgeshire County Council,06-Aug-20,51301415346,-650.00,THE ELMS NURSING HOME,CARE ESTABLISHMENT,OP - Fenland Locality - Cost of Care,Older People - Fenland - Care,Residential Care
Cambridgeshire County Council,06-Aug-20,51301415523,-650.00,THE ELMS NURSING HOME,CARE ESTABLISHMENT,OP - Fenland Locality - Cost of Care,Older People - Fenland - Care,Residential Care
Cambridgeshire County Council,06-Aug-20,51301415346,-650.00,THE ELMS NURSING HOME,CARE ESTABLISHMENT,OP - Fenland Locality - Cost of Care,Older People - Fenland - Care,Residential Care
Cambridgeshire County Council,06-Aug-20,51301415346,-650.00,THE ELMS NURSING HOME,CARE ESTABLISHMENT,OP - Fenland Locality - Cost of Care,Older People - Fenland - Care,Residential Care
Cambridgeshire County Council,06-Aug-20,51301415523,-650.00,THE ELMS NURSING HOME,CARE ESTABLISHMENT,OP - Fenland Locality - Cost of Care,Older People - Fenland - Care,Residential Care
Cambridgeshire County Council,06-Aug-20,51301415346,-650.00,THE ELMS NURSING HOME,CARE ESTABLISHMENT,OP - Fenland Locality - Cost of Care,Older People - Fenland - Care,Residential Care
Cambridgeshire County Council,06-Aug-20,51301415346,-650.00,THE ELMS NURSING HOME,CARE ESTABLISHMENT,OP - Fenland Locality - Cost of Care,Older People - Fenland - Care,Residential Care
Cambridgeshire County Council,06-Aug-20,51301415346,-650.00,THE ELMS NURSING HOME,CARE ESTABLISHMENT,OP - Fenland Locality - Cost of Care,Older People - Fenland - Care,Residential Care
Cambridgeshire County Council,06-Aug-20,51301415523,-650.00,THE ELMS NURSING HOME,CARE ESTABLISHMENT,OP - Fenland Locality - Cost of Care,Older People - Fenland - Care,Residential Care
Cambridgeshire County Council,06-Aug-20,51301415523,-650.00,THE ELMS NURSING HOME,CARE ESTABLISHMENT,OP - Fenland Locality - Cost of Care,Older People - Fenland - Care,Residential Care
Cambridgeshire County Council,06-Aug-20,51301415523,-650.00,THE ELMS NURSING HOME,CARE ESTABLISHMENT,OP - Fenland Locality - Cost of Care,Older People - Fenland - Care,Residential Care
Cambridgeshire County Council,06-Aug-20,51301415523,-650.00,THE ELMS NURSING HOME,CARE ESTABLISHMENT,OP - Fenland Locality - Cost of Care,Older People - Fenland - Care,Residential Care
Cambridgeshire County Council,06-Aug-20,51301415523,-650.00,THE ELMS NURSING HOME,CARE ESTABLISHMENT,OP - Fenland Locality - Cost of Care,Older People - Fenland - Care,Residential Care
Cambridgeshire County Council,06-Aug-20,51301415346,-650.00,THE ELMS NURSING HOME,CARE ESTABLISHMENT,OP - Fenland Locality - Cost of Care,Older People - Fenland - Care,Residential Care
Cambridgeshire County Council,06-Aug-20,51301415703,-650.00,THE HILLINGS LIMITED,CARE ESTABLISHMENT,OP - Hunts Locality - Cost of Care,Hunts OP Team - Care,Residential Care
Cambridgeshire County Council,06-Aug-20,51301415703,-650.00,THE HILLINGS LIMITED,CARE ESTABLISHMENT,OP - Hunts Locality - Cost of Care,Hunts OP Team - Care,Residential Care
Cambridgeshire County Council,06-Aug-20,51301415703,-650.00,THE HILLINGS LIMITED,CARE ESTABLISHMENT,OP - Hunts Locality - Cost of Care,Hunts OP Team - Care,Residential Care
Cambridgeshire County Council,26-Aug-20,51301425191,-648.69,YMCA Trinity Group,COMPANY,Unaccompanied Asylum Seeking Children,Unaccompanied Asylum Seeking Children >18 Leaving Care,Living Spport Grants - Financial Assistance 18+
Cambridgeshire County Council,06-Aug-20,51301416351,-644.88,Fuchsia Homecare Cambridge,COMPANY,OP - East Cambs Locality - Cost of Care,East Cambs - O P Team - Care,Domiciliary Care
Cambridgeshire County Council,06-Aug-20,51301416351,-644.88,Fuchsia Homecare Cambridge,COMPANY,OP - East Cambs Locality - Cost of Care,East Cambs - O P Team - Care,Domiciliary Care
Cambridgeshire County Council,06-Aug-20,51301416351,-644.88,Fuchsia Homecare Cambridge,COMPANY,OP - East Cambs Locality - Cost of Care,East Cambs - O P Team - Care,Domiciliary Care
Cambridgeshire County Council,06-Aug-20,51301416351,-644.88,Fuchsia Homecare Cambridge,COMPANY,OP - East Cambs Locality - Cost of Care,East Cambs - O P Team - Care,Domiciliary Care
Cambridgeshire County Council,06-Aug-20,51301414881,-641.13,THE AVENUES TRUST LTD,TRUST (OTHER),LD - South Locality - Cost of Care,LD - South Cambs - Care,Domiciliary Care
Cambridgeshire County Council,06-Aug-20,51301417611,-640.84,MIDFIELD LODGE CARE CENTRE,CARE ESTABLISHMENT,OP - City & South Locality - Cost of Care,Older People - City & South - Care,Nursing Care
Cambridgeshire County Council,06-Aug-20,51301417611,-640.84,MIDFIELD LODGE CARE CENTRE,CARE ESTABLISHMENT,OP - City & South Locality - Cost of Care,Older People - City & South - Care,Nursing Care
Cambridgeshire County Council,06-Aug-20,51301417611,-640.84,MIDFIELD LODGE CARE CENTRE,CARE ESTABLISHMENT,OP - City & South Locality - Cost of Care,Older People - City & South - Care,Nursing Care
Cambridgeshire County Council,06-Aug-20,51301417611,-640.84,MIDFIELD LODGE CARE CENTRE,CARE ESTABLISHMENT,OP - City & South Locality - Cost of Care,Older People - City & South - Care,Nursing Care
Cambridgeshire County Council,06-Aug-20,51301417611,-640.84,MIDFIELD LODGE CARE CENTRE,CARE ESTABLISHMENT,OP - City & South Locality - Cost of Care,Older People - City & South - Care,Nursing Care
Cambridgeshire County Council,06-Aug-20,51301417611,-640.84,MIDFIELD LODGE CARE CENTRE,CARE ESTABLISHMENT,OP - City & South Locality - Cost of Care,Older People - City & South - Care,Nursing Care
Cambridgeshire County Council,06-Aug-20,51301414280,-631.84,SYMONDS HOUSE NURSING HOME,CARE ESTABLISHMENT,OP - City & South Locality - Cost of Care,Older People - City & South - Care,Nursing Care
Cambridgeshire County Council,06-Aug-20,51301414280,-631.84,SYMONDS HOUSE NURSING HOME,CARE ESTABLISHMENT,OP - City & South Locality - Cost of Care,Older People - City & South - Care,Nursing Care
Cambridgeshire County Council,06-Aug-20,51301414280,-631.84,SYMONDS HOUSE NURSING HOME,CARE ESTABLISHMENT,OP - City & South Locality - Cost of Care,Older People - City & South - Care,Nursing Care
Cambridgeshire County Council,06-Aug-20,51301414394,-631.00,HATLEY COURT HAVEN LTD,CARE ESTABLISHMENT,OP - East Cambs Locality - Cost of Care,East Cambs - O P Team - Care,Residential Care
Cambridgeshire County Council,06-Aug-20,51301417118,-625.00,ALIWAL HEALTHCARE LTD,CARE ESTABLISHMENT,OPMH - Hunts & Fens,Older People Mental Health Fenland,Residential Care
Cambridgeshire County Council,06-Aug-20,51301417118,-625.00,ALIWAL HEALTHCARE LTD,CARE ESTABLISHMENT,OPMH - Hunts & Fens,Older People Mental Health Fenland,Residential Care
Cambridgeshire County Council,06-Aug-20,51301417118,-625.00,ALIWAL HEALTHCARE LTD,CARE ESTABLISHMENT,OPMH - Hunts & Fens,Older People Mental Health Fenland,Residential Care
Cambridgeshire County Council,06-Aug-20,51301415099,-623.44,CAERUS CARE LTD,CARE ESTABLISHMENT,LD - Fenland Locality - Cost of Care,LD - Fenland  - Care,Supported Living
Cambridgeshire County Council,07-Aug-20,51301419226,-618.00,ARIA COURT,CARE ESTABLISHMENT,OP - Fenland Locality - Cost of Care,Older People - Fenland - Care,Residential Care
Cambridgeshire County Council,07-Aug-20,51301419226,-618.00,ARIA COURT,CARE ESTABLISHMENT,OP - Fenland Locality - Cost of Care,Older People - Fenland - Care,Residential Care
Cambridgeshire County Council,07-Aug-20,51301419226,-618.00,ARIA COURT,CARE ESTABLISHMENT,OP - Fenland Locality - Cost of Care,Older People - Fenland - Care,Residential Care
Cambridgeshire County Council,07-Aug-20,51301419226,-618.00,ARIA COURT,CARE ESTABLISHMENT,OP - Fenland Locality - Cost of Care,Older People - Fenland - Care,Residential Care
Cambridgeshire County Council,07-Aug-20,51301419226,-618.00,ARIA COURT,CARE ESTABLISHMENT,OP - Fenland Locality - Cost of Care,Older People - Fenland - Care,Residential Care
Cambridgeshire County Council,07-Aug-20,51301419226,-618.00,ARIA COURT,CARE ESTABLISHMENT,OP - Fenland Locality - Cost of Care,Older People - Fenland - Care,Residential Care
Cambridgeshire County Council,07-Aug-20,51301419226,-618.00,ARIA COURT,CARE ESTABLISHMENT,OP - Fenland Locality - Cost of Care,Older People - Fenland - Care,Residential Care
Cambridgeshire County Council,07-Aug-20,51301419226,-618.00,ARIA COURT,CARE ESTABLISHMENT,OP - Fenland Locality - Cost of Care,Older People - Fenland - Care,Residential Care
Cambridgeshire County Council,07-Aug-20,51301419226,-618.00,ARIA COURT,CARE ESTABLISHMENT,OP - Fenland Locality - Cost of Care,Older People - Fenland - Care,Residential Care
Cambridgeshire County Council,07-Aug-20,51301419226,-618.00,ARIA COURT,CARE ESTABLISHMENT,OP - Fenland Locality - Cost of Care,Older People - Fenland - Care,Residential Care
Cambridgeshire County Council,07-Aug-20,51301419226,-618.00,ARIA COURT,CARE ESTABLISHMENT,OP - Fenland Locality - Cost of Care,Older People - Fenland - Care,Residential Care
Cambridgeshire County Council,06-Aug-20,51301402132,-612.15,WERRINGTON LODGE CARE HOME,CARE ESTABLISHMENT,OPMH - Hunts & Fens,Older People Mental Health Fenland,Nursing Care
Cambridgeshire County Council,06-Aug-20,51301402132,-612.15,WERRINGTON LODGE CARE HOME,CARE ESTABLISHMENT,OPMH - Hunts & Fens,Older People Mental Health Fenland,Nursing Care
Cambridgeshire County Council,06-Aug-20,51301402132,-612.15,WERRINGTON LODGE CARE HOME,CARE ESTABLISHMENT,OPMH - Hunts & Fens,Older People Mental Health Fenland,Nursing Care
Cambridgeshire County Council,06-Aug-20,51301402132,-612.15,WERRINGTON LODGE CARE HOME,CARE ESTABLISHMENT,OPMH - Hunts & Fens,Older People Mental Health Fenland,Nursing Care
Cambridgeshire County Council,06-Aug-20,51301402132,-612.15,WERRINGTON LODGE CARE HOME,CARE ESTABLISHMENT,OPMH - Hunts & Fens,Older People Mental Health Fenland,Nursing Care
Cambridgeshire County Council,06-Aug-20,51301402132,-612.15,WERRINGTON LODGE CARE HOME,CARE ESTABLISHMENT,OPMH - Hunts & Fens,Older People Mental Health Fenland,Nursing Care
Cambridgeshire County Council,06-Aug-20,51301402132,-612.15,WERRINGTON LODGE CARE HOME,CARE ESTABLISHMENT,OPMH - Hunts & Fens,Older People Mental Health Fenland,Nursing Care
Cambridgeshire County Council,06-Aug-20,51301402132,-612.15,WERRINGTON LODGE CARE HOME,CARE ESTABLISHMENT,OPMH - Hunts & Fens,Older People Mental Health Fenland,Nursing Care
Cambridgeshire County Council,06-Aug-20,51301402132,-612.15,WERRINGTON LODGE CARE HOME,CARE ESTABLISHMENT,OPMH - Hunts & Fens,Older People Mental Health Fenland,Nursing Care
Cambridgeshire County Council,06-Aug-20,51301402132,-612.15,WERRINGTON LODGE CARE HOME,CARE ESTABLISHMENT,OPMH - Hunts & Fens,Older People Mental Health Fenland,Nursing Care
Cambridgeshire County Council,06-Aug-20,51301402132,-612.15,WERRINGTON LODGE CARE HOME,CARE ESTABLISHMENT,OPMH - Hunts & Fens,Older People Mental Health Fenland,Nursing Care
Cambridgeshire County Council,06-Aug-20,51301402132,-612.15,WERRINGTON LODGE CARE HOME,CARE ESTABLISHMENT,OPMH - Hunts & Fens,Older People Mental Health Fenland,Nursing Care
Cambridgeshire County Council,06-Aug-20,51301402132,-612.15,WERRINGTON LODGE CARE HOME,CARE ESTABLISHMENT,OPMH - Hunts & Fens,Older People Mental Health Fenland,Nursing Care
Cambridgeshire County Council,06-Aug-20,51301402132,-612.15,WERRINGTON LODGE CARE HOME,CARE ESTABLISHMENT,OPMH - Hunts & Fens,Older People Mental Health Fenland,Nursing Care
Cambridgeshire County Council,06-Aug-20,51301402132,-612.15,WERRINGTON LODGE CARE HOME,CARE ESTABLISHMENT,OPMH - Hunts & Fens,Older People Mental Health Fenland,Nursing Care
Cambridgeshire County Council,06-Aug-20,51301402132,-612.15,WERRINGTON LODGE CARE HOME,CARE ESTABLISHMENT,OPMH - Hunts & Fens,Older People Mental Health Fenland,Nursing Care
Cambridgeshire County Council,06-Aug-20,51301402132,-612.15,WERRINGTON LODGE CARE HOME,CARE ESTABLISHMENT,OPMH - Hunts & Fens,Older People Mental Health Fenland,Nursing Care
Cambridgeshire County Council,06-Aug-20,51301402132,-612.15,WERRINGTON LODGE CARE HOME,CARE ESTABLISHMENT,OPMH - Hunts & Fens,Older People Mental Health Fenland,Nursing Care
Cambridgeshire County Council,06-Aug-20,51301402132,-612.15,WERRINGTON LODGE CARE HOME,CARE ESTABLISHMENT,OPMH - Hunts & Fens,Older People Mental Health Fenland,Nursing Care
Cambridgeshire County Council,06-Aug-20,51301402132,-612.15,WERRINGTON LODGE CARE HOME,CARE ESTABLISHMENT,OPMH - Hunts & Fens,Older People Mental Health Fenland,Nursing Care
Cambridgeshire County Council,06-Aug-20,51301402132,-612.15,WERRINGTON LODGE CARE HOME,CARE ESTABLISHMENT,OPMH - Hunts & Fens,Older People Mental Health Fenland,Nursing Care
Cambridgeshire County Council,06-Aug-20,51301402132,-612.15,WERRINGTON LODGE CARE HOME,CARE ESTABLISHMENT,OPMH - Hunts & Fens,Older People Mental Health Fenland,Nursing Care
Cambridgeshire County Council,06-Aug-20,51301402132,-612.15,WERRINGTON LODGE CARE HOME,CARE ESTABLISHMENT,OPMH - Hunts & Fens,Older People Mental Health Fenland,Nursing Care
Cambridgeshire County Council,06-Aug-20,51301402132,-612.15,WERRINGTON LODGE CARE HOME,CARE ESTABLISHMENT,OPMH - Hunts & Fens,Older People Mental Health Fenland,Nursing Care
Cambridgeshire County Council,06-Aug-20,51301402132,-612.15,WERRINGTON LODGE CARE HOME,CARE ESTABLISHMENT,OPMH - Hunts & Fens,Older People Mental Health Fenland,Nursing Care
Cambridgeshire County Council,06-Aug-20,51301402132,-612.15,WERRINGTON LODGE CARE HOME,CARE ESTABLISHMENT,OPMH - Hunts & Fens,Older People Mental Health Fenland,Nursing Care
Cambridgeshire County Council,06-Aug-20,51301402132,-612.15,WERRINGTON LODGE CARE HOME,CARE ESTABLISHMENT,OPMH - Hunts & Fens,Older People Mental Health Fenland,Nursing Care
Cambridgeshire County Council,06-Aug-20,51301402132,-612.15,WERRINGTON LODGE CARE HOME,CARE ESTABLISHMENT,OPMH - Hunts & Fens,Older People Mental Health Fenland,Nursing Care
Cambridgeshire County Council,06-Aug-20,51301402132,-612.15,WERRINGTON LODGE CARE HOME,CARE ESTABLISHMENT,OPMH - Hunts & Fens,Older People Mental Health Fenland,Nursing Care
Cambridgeshire County Council,06-Aug-20,51301402132,-612.15,WERRINGTON LODGE CARE HOME,CARE ESTABLISHMENT,OPMH - Hunts & Fens,Older People Mental Health Fenland,Nursing Care
Cambridgeshire County Council,06-Aug-20,51301402132,-612.15,WERRINGTON LODGE CARE HOME,CARE ESTABLISHMENT,OPMH - Hunts & Fens,Older People Mental Health Fenland,Nursing Care
Cambridgeshire County Council,06-Aug-20,51301402132,-612.15,WERRINGTON LODGE CARE HOME,CARE ESTABLISHMENT,OPMH - Hunts & Fens,Older People Mental Health Fenland,Nursing Care
Cambridgeshire County Council,06-Aug-20,51301402132,-612.15,WERRINGTON LODGE CARE HOME,CARE ESTABLISHMENT,OPMH - Hunts & Fens,Older People Mental Health Fenland,Nursing Care
Cambridgeshire County Council,06-Aug-20,51301402132,-612.15,WERRINGTON LODGE CARE HOME,CARE ESTABLISHMENT,OPMH - Hunts & Fens,Older People Mental Health Fenland,Nursing Care
Cambridgeshire County Council,06-Aug-20,51301402132,-612.15,WERRINGTON LODGE CARE HOME,CARE ESTABLISHMENT,OPMH - Hunts & Fens,Older People Mental Health Fenland,Nursing Care
Cambridgeshire County Council,06-Aug-20,51301402132,-612.15,WERRINGTON LODGE CARE HOME,CARE ESTABLISHMENT,OPMH - Hunts & Fens,Older People Mental Health Fenland,Nursing Care
Cambridgeshire County Council,06-Aug-20,51301402132,-612.15,WERRINGTON LODGE CARE HOME,CARE ESTABLISHMENT,OPMH - Hunts & Fens,Older People Mental Health Fenland,Nursing Care
Cambridgeshire County Council,06-Aug-20,51301402132,-612.15,WERRINGTON LODGE CARE HOME,CARE ESTABLISHMENT,OPMH - Hunts & Fens,Older People Mental Health Fenland,Nursing Care
Cambridgeshire County Council,06-Aug-20,51301402132,-612.15,WERRINGTON LODGE CARE HOME,CARE ESTABLISHMENT,OPMH - Hunts & Fens,Older People Mental Health Fenland,Nursing Care
Cambridgeshire County Council,06-Aug-20,51301402132,-612.15,WERRINGTON LODGE CARE HOME,CARE ESTABLISHMENT,OPMH - Hunts & Fens,Older People Mental Health Fenland,Nursing Care
Cambridgeshire County Council,06-Aug-20,51301402132,-612.15,WERRINGTON LODGE CARE HOME,CARE ESTABLISHMENT,OPMH - Hunts & Fens,Older People Mental Health Fenland,Nursing Care
Cambridgeshire County Council,06-Aug-20,51301402132,-612.15,WERRINGTON LODGE CARE HOME,CARE ESTABLISHMENT,OPMH - Hunts & Fens,Older People Mental Health Fenland,Nursing Care
Cambridgeshire County Council,06-Aug-20,51301402132,-612.15,WERRINGTON LODGE CARE HOME,CARE ESTABLISHMENT,OPMH - Hunts & Fens,Older People Mental Health Fenland,Nursing Care
Cambridgeshire County Council,06-Aug-20,51301402132,-612.15,WERRINGTON LODGE CARE HOME,CARE ESTABLISHMENT,OPMH - Hunts & Fens,Older People Mental Health Fenland,Nursing Care
Cambridgeshire County Council,06-Aug-20,51301416313,-612.00,MEADOWS HOMECARE SERVICES,CARE ESTABLISHMENT,OP - City & South Locality - Cost of Care,Older People - City & South - Care,Domiciliary Care
Cambridgeshire County Council,06-Aug-20,51301415163,-604.89,CAERUS CARE LTD,CARE ESTABLISHMENT,LD - Fenland Locality - Cost of Care,LD - Fenland  - Care,Supported Living
Cambridgeshire County Council,06-Aug-20,51301415036,-600.00,LYNCROFT RESIDENTIAL HOME,CARE ESTABLISHMENT,Physical Disablity - Cost of Care,Countywide PD Service - Care,Short Term Other
Cambridgeshire County Council,06-Aug-20,51301414455,-600.00,COTTENHAM COURT NURSING HOME,CARE ESTABLISHMENT,OP - City & South Locality - Cost of Care,Older People - City & South - Care,Residential Care
Cambridgeshire County Council,06-Aug-20,51301414455,-600.00,COTTENHAM COURT NURSING HOME,CARE ESTABLISHMENT,OP - City & South Locality - Cost of Care,Older People - City & South - Care,Residential Care
Cambridgeshire County Council,06-Aug-20,51301415763,-600.00,ARIA COURT,CARE ESTABLISHMENT,OP - Fenland Locality - Cost of Care,Older People - Fenland - Care,Nursing Care
Cambridgeshire County Council,14-Aug-20,51301421451,-600.00,OAKLANDS CARE HOME,CARE ESTABLISHMENT,Strategic Management - Adults,Adults Assistant Director,Nursing Care
Cambridgeshire County Council,17-Aug-20,51301421998,-597.14,YMCA Trinity Group,COMPANY,Unaccompanied Asylum Seeking Children,Unaccompanied Asylum Seeking Children >18 Leaving Care,Living Spport Grants - Financial Assistance 18+
Cambridgeshire County Council,11-Aug-20,51301419873,-587.12,Redacted Personal Data,INDIVIDUAL,OP - City & South Locality - Cost of Care,Older People - City & South - Care,Direct Payments
Cambridgeshire County Council,11-Aug-20,51301419873,-587.12,Redacted Personal Data,INDIVIDUAL,OP - City & South Locality - Cost of Care,Older People - City & South - Care,Direct Payments
Cambridgeshire County Council,11-Aug-20,51301419873,-587.12,Redacted Personal Data,INDIVIDUAL,OP - City & South Locality - Cost of Care,Older People - City & South - Care,Direct Payments
Cambridgeshire County Council,11-Aug-20,51301419873,-587.12,Redacted Personal Data,INDIVIDUAL,OP - City & South Locality - Cost of Care,Older People - City & South - Care,Direct Payments
Cambridgeshire County Council,11-Aug-20,51301419873,-587.12,Redacted Personal Data,INDIVIDUAL,OP - City & South Locality - Cost of Care,Older People - City & South - Care,Direct Payments
Cambridgeshire County Council,11-Aug-20,51301419873,-587.12,Redacted Personal Data,INDIVIDUAL,OP - City & South Locality - Cost of Care,Older People - City & South - Care,Direct Payments
Cambridgeshire County Council,11-Aug-20,51301419873,-587.12,Redacted Personal Data,INDIVIDUAL,OP - City & South Locality - Cost of Care,Older People - City & South - Care,Direct Payments
Cambridgeshire County Council,14-Aug-20,51301421531,-581.42,73 HIGH ROAD,CARE ESTABLISHMENT,LD - South Locality - Cost of Care,LD - South Cambs - Care,Supported Living
Cambridgeshire County Council,14-Aug-20,51301421531,-581.42,73 HIGH ROAD,CARE ESTABLISHMENT,LD - South Locality - Cost of Care,LD - South Cambs - Care,Supported Living
Cambridgeshire County Council,14-Aug-20,51301421531,-581.42,73 HIGH ROAD,CARE ESTABLISHMENT,LD - South Locality - Cost of Care,LD - South Cambs - Care,Supported Living
Cambridgeshire County Council,14-Aug-20,51301421531,-581.42,73 HIGH ROAD,CARE ESTABLISHMENT,LD - South Locality - Cost of Care,LD - South Cambs - Care,Supported Living
Cambridgeshire County Council,14-Aug-20,51301421531,-581.42,73 HIGH ROAD,CARE ESTABLISHMENT,LD - South Locality - Cost of Care,LD - South Cambs - Care,Supported Living
Cambridgeshire County Council,14-Aug-20,51301421531,-581.42,73 HIGH ROAD,CARE ESTABLISHMENT,LD - South Locality - Cost of Care,LD - South Cambs - Care,Supported Living
Cambridgeshire County Council,14-Aug-20,51301421531,-581.42,73 HIGH ROAD,CARE ESTABLISHMENT,LD - South Locality - Cost of Care,LD - South Cambs - Care,Supported Living
Cambridgeshire County Council,14-Aug-20,51301421531,-581.42,73 HIGH ROAD,CARE ESTABLISHMENT,LD - South Locality - Cost of Care,LD - South Cambs - Care,Supported Living
Cambridgeshire County Council,14-Aug-20,51301421531,-581.42,73 HIGH ROAD,CARE ESTABLISHMENT,LD - South Locality - Cost of Care,LD - South Cambs - Care,Supported Living
Cambridgeshire County Council,14-Aug-20,51301421531,-581.42,73 HIGH ROAD,CARE ESTABLISHMENT,LD - South Locality - Cost of Care,LD - South Cambs - Care,Supported Living
Cambridgeshire County Council,14-Aug-20,51301421531,-581.42,73 HIGH ROAD,CARE ESTABLISHMENT,LD - South Locality - Cost of Care,LD - South Cambs - Care,Supported Living
Cambridgeshire County Council,14-Aug-20,51301421531,-581.42,73 HIGH ROAD,CARE ESTABLISHMENT,LD - South Locality - Cost of Care,LD - South Cambs - Care,Supported Living
Cambridgeshire County Council,14-Aug-20,51301421531,-581.42,73 HIGH ROAD,CARE ESTABLISHMENT,LD - South Locality - Cost of Care,LD - South Cambs - Care,Supported Living
Cambridgeshire County Council,14-Aug-20,51301421531,-581.42,73 HIGH ROAD,CARE ESTABLISHMENT,LD - South Locality - Cost of Care,LD - South Cambs - Care,Supported Living
Cambridgeshire County Council,14-Aug-20,51301421531,-581.42,73 HIGH ROAD,CARE ESTABLISHMENT,LD - South Locality - Cost of Care,LD - South Cambs - Care,Supported Living
Cambridgeshire County Council,14-Aug-20,51301421531,-581.42,73 HIGH ROAD,CARE ESTABLISHMENT,LD - South Locality - Cost of Care,LD - South Cambs - Care,Supported Living
Cambridgeshire County Council,14-Aug-20,51301421531,-581.42,73 HIGH ROAD,CARE ESTABLISHMENT,LD - South Locality - Cost of Care,LD - South Cambs - Care,Supported Living
Cambridgeshire County Council,14-Aug-20,51301421531,-581.42,73 HIGH ROAD,CARE ESTABLISHMENT,LD - South Locality - Cost of Care,LD - South Cambs - Care,Supported Living
Cambridgeshire County Council,14-Aug-20,51301421531,-581.42,73 HIGH ROAD,CARE ESTABLISHMENT,LD - South Locality - Cost of Care,LD - South Cambs - Care,Supported Living
Cambridgeshire County Council,14-Aug-20,51301421531,-581.42,73 HIGH ROAD,CARE ESTABLISHMENT,LD - South Locality - Cost of Care,LD - South Cambs - Care,Supported Living
Cambridgeshire County Council,14-Aug-20,51301421531,-581.42,73 HIGH ROAD,CARE ESTABLISHMENT,LD - South Locality - Cost of Care,LD - South Cambs - Care,Supported Living
Cambridgeshire County Council,14-Aug-20,51301421531,-581.42,73 HIGH ROAD,CARE ESTABLISHMENT,LD - South Locality - Cost of Care,LD - South Cambs - Care,Supported Living
Cambridgeshire County Council,14-Aug-20,51301421531,-581.42,73 HIGH ROAD,CARE ESTABLISHMENT,LD - South Locality - Cost of Care,LD - South Cambs - Care,Supported Living
Cambridgeshire County Council,14-Aug-20,51301421531,-581.42,73 HIGH ROAD,CARE ESTABLISHMENT,LD - South Locality - Cost of Care,LD - South Cambs - Care,Supported Living
Cambridgeshire County Council,14-Aug-20,51301421531,-581.42,73 HIGH ROAD,CARE ESTABLISHMENT,LD - South Locality - Cost of Care,LD - South Cambs - Care,Supported Living
Cambridgeshire County Council,14-Aug-20,51301421531,-581.42,73 HIGH ROAD,CARE ESTABLISHMENT,LD - South Locality - Cost of Care,LD - South Cambs - Care,Supported Living
Cambridgeshire County Council,14-Aug-20,51301421531,-581.42,73 HIGH ROAD,CARE ESTABLISHMENT,LD - South Locality - Cost of Care,LD - South Cambs - Care,Supported Living
Cambridgeshire County Council,14-Aug-20,51301421531,-581.42,73 HIGH ROAD,CARE ESTABLISHMENT,LD - South Locality - Cost of Care,LD - South Cambs - Care,Supported Living
Cambridgeshire County Council,14-Aug-20,51301421531,-581.42,73 HIGH ROAD,CARE ESTABLISHMENT,LD - South Locality - Cost of Care,LD - South Cambs - Care,Supported Living
Cambridgeshire County Council,14-Aug-20,51301421531,-581.42,73 HIGH ROAD,CARE ESTABLISHMENT,LD - South Locality - Cost of Care,LD - South Cambs - Care,Supported Living
Cambridgeshire County Council,14-Aug-20,51301421531,-581.42,73 HIGH ROAD,CARE ESTABLISHMENT,LD - South Locality - Cost of Care,LD - South Cambs - Care,Supported Living
Cambridgeshire County Council,14-Aug-20,51301421531,-581.42,73 HIGH ROAD,CARE ESTABLISHMENT,LD - South Locality - Cost of Care,LD - South Cambs - Care,Supported Living
Cambridgeshire County Council,14-Aug-20,51301421531,-581.42,73 HIGH ROAD,CARE ESTABLISHMENT,LD - South Locality - Cost of Care,LD - South Cambs - Care,Supported Living
Cambridgeshire County Council,14-Aug-20,51301421531,-581.42,73 HIGH ROAD,CARE ESTABLISHMENT,LD - South Locality - Cost of Care,LD - South Cambs - Care,Supported Living
Cambridgeshire County Council,14-Aug-20,51301421531,-581.42,73 HIGH ROAD,CARE ESTABLISHMENT,LD - South Locality - Cost of Care,LD - South Cambs - Care,Supported Living
Cambridgeshire County Council,14-Aug-20,51301421531,-581.42,73 HIGH ROAD,CARE ESTABLISHMENT,LD - South Locality - Cost of Care,LD - South Cambs - Care,Supported Living
Cambridgeshire County Council,14-Aug-20,51301421531,-581.42,73 HIGH ROAD,CARE ESTABLISHMENT,LD - South Locality - Cost of Care,LD - South Cambs - Care,Supported Living
Cambridgeshire County Council,14-Aug-20,51301421531,-581.42,73 HIGH ROAD,CARE ESTABLISHMENT,LD - South Locality - Cost of Care,LD - South Cambs - Care,Supported Living
Cambridgeshire County Council,14-Aug-20,51301421531,-581.42,73 HIGH ROAD,CARE ESTABLISHMENT,LD - South Locality - Cost of Care,LD - South Cambs - Care,Supported Living
Cambridgeshire County Council,14-Aug-20,51301421531,-581.42,73 HIGH ROAD,CARE ESTABLISHMENT,LD - South Locality - Cost of Care,LD - South Cambs - Care,Supported Living
Cambridgeshire County Council,14-Aug-20,51301421531,-581.42,73 HIGH ROAD,CARE ESTABLISHMENT,LD - South Locality - Cost of Care,LD - South Cambs - Care,Supported Living
Cambridgeshire County Council,14-Aug-20,51301421531,-581.42,73 HIGH ROAD,CARE ESTABLISHMENT,LD - South Locality - Cost of Care,LD - South Cambs - Care,Supported Living
Cambridgeshire County Council,14-Aug-20,51301421531,-581.42,73 HIGH ROAD,CARE ESTABLISHMENT,LD - South Locality - Cost of Care,LD - South Cambs - Care,Supported Living
Cambridgeshire County Council,14-Aug-20,51301421531,-581.42,73 HIGH ROAD,CARE ESTABLISHMENT,LD - South Locality - Cost of Care,LD - South Cambs - Care,Supported Living
Cambridgeshire County Council,14-Aug-20,51301421531,-581.42,73 HIGH ROAD,CARE ESTABLISHMENT,LD - South Locality - Cost of Care,LD - South Cambs - Care,Supported Living
Cambridgeshire County Council,21-Aug-20,51301424399,-575.77,KEMPS PLACE,CARE ESTABLISHMENT,AMH - Specialist & Primary,Mental Health - Specialist & Primary,Residential Care
Cambridgeshire County Council,21-Aug-20,51301424399,-575.77,KEMPS PLACE,CARE ESTABLISHMENT,AMH - Specialist & Primary,Mental Health - Specialist & Primary,Residential Care
Cambridgeshire County Council,21-Aug-20,51301424399,-575.77,KEMPS PLACE,CARE ESTABLISHMENT,AMH - Specialist & Primary,Mental Health - Specialist & Primary,Residential Care
Cambridgeshire County Council,21-Aug-20,51301424399,-575.77,KEMPS PLACE,CARE ESTABLISHMENT,AMH - Specialist & Primary,Mental Health - Specialist & Primary,Residential Care
Cambridgeshire County Council,21-Aug-20,51301424399,-575.77,KEMPS PLACE,CARE ESTABLISHMENT,AMH - Specialist & Primary,Mental Health - Specialist & Primary,Residential Care
Cambridgeshire County Council,21-Aug-20,51301424399,-575.77,KEMPS PLACE,CARE ESTABLISHMENT,AMH - Specialist & Primary,Mental Health - Specialist & Primary,Residential Care
Cambridgeshire County Council,21-Aug-20,51301424399,-575.77,KEMPS PLACE,CARE ESTABLISHMENT,AMH - Specialist & Primary,Mental Health - Specialist & Primary,Residential Care
Cambridgeshire County Council,21-Aug-20,51301424399,-575.77,KEMPS PLACE,CARE ESTABLISHMENT,AMH - Specialist & Primary,Mental Health - Specialist & Primary,Residential Care
Cambridgeshire County Council,21-Aug-20,51301424399,-575.77,KEMPS PLACE,CARE ESTABLISHMENT,AMH - Specialist & Primary,Mental Health - Specialist & Primary,Residential Care
Cambridgeshire County Council,21-Aug-20,51301424399,-575.77,KEMPS PLACE,CARE ESTABLISHMENT,AMH - Specialist & Primary,Mental Health - Specialist & Primary,Residential Care
Cambridgeshire County Council,21-Aug-20,51301424399,-575.77,KEMPS PLACE,CARE ESTABLISHMENT,AMH - Specialist & Primary,Mental Health - Specialist & Primary,Residential Care
Cambridgeshire County Council,21-Aug-20,51301424399,-575.77,KEMPS PLACE,CARE ESTABLISHMENT,AMH - Specialist & Primary,Mental Health - Specialist & Primary,Residential Care
Cambridgeshire County Council,21-Aug-20,51301424399,-575.77,KEMPS PLACE,CARE ESTABLISHMENT,AMH - Specialist & Primary,Mental Health - Specialist & Primary,Residential Care
Cambridgeshire County Council,21-Aug-20,51301424399,-575.77,KEMPS PLACE,CARE ESTABLISHMENT,AMH - Specialist & Primary,Mental Health - Specialist & Primary,Residential Care
Cambridgeshire County Council,21-Aug-20,51301424399,-575.77,KEMPS PLACE,CARE ESTABLISHMENT,AMH - Specialist & Primary,Mental Health - Specialist & Primary,Residential Care
Cambridgeshire County Council,21-Aug-20,51301424399,-575.77,KEMPS PLACE,CARE ESTABLISHMENT,AMH - Specialist & Primary,Mental Health - Specialist & Primary,Residential Care
Cambridgeshire County Council,21-Aug-20,51301424399,-575.77,KEMPS PLACE,CARE ESTABLISHMENT,AMH - Specialist & Primary,Mental Health - Specialist & Primary,Residential Care
Cambridgeshire County Council,21-Aug-20,51301424399,-575.77,KEMPS PLACE,CARE ESTABLISHMENT,AMH - Specialist & Primary,Mental Health - Specialist & Primary,Residential Care
Cambridgeshire County Council,21-Aug-20,51301424399,-575.77,KEMPS PLACE,CARE ESTABLISHMENT,AMH - Specialist & Primary,Mental Health - Specialist & Primary,Residential Care
Cambridgeshire County Council,21-Aug-20,51301424402,-575.43,GREENSLEEVES HOMES  TRUST - ROSE COTTACE,CARE ESTABLISHMENT,OP - Hunts Locality - Cost of Care,Hunts OP Team - Care,Residential Care
Cambridgeshire County Council,06-Aug-20,51301402197,-575.00,THE TUDORS RESIDENTIAL HOME,CARE ESTABLISHMENT,OP - Hunts Locality - Cost of Care,Hunts OP Team - Care,Residential Care
Cambridgeshire County Council,06-Aug-20,51301402197,-575.00,THE TUDORS RESIDENTIAL HOME,CARE ESTABLISHMENT,OP - Hunts Locality - Cost of Care,Hunts OP Team - Care,Residential Care
Cambridgeshire County Council,06-Aug-20,51301402197,-575.00,THE TUDORS RESIDENTIAL HOME,CARE ESTABLISHMENT,OP - Hunts Locality - Cost of Care,Hunts OP Team - Care,Residential Care
Cambridgeshire County Council,06-Aug-20,51301402197,-575.00,THE TUDORS RESIDENTIAL HOME,CARE ESTABLISHMENT,OP - Hunts Locality - Cost of Care,Hunts OP Team - Care,Residential Care
Cambridgeshire County Council,06-Aug-20,51301402197,-575.00,THE TUDORS RESIDENTIAL HOME,CARE ESTABLISHMENT,OP - Hunts Locality - Cost of Care,Hunts OP Team - Care,Residential Care
Cambridgeshire County Council,06-Aug-20,51301402197,-575.00,THE TUDORS RESIDENTIAL HOME,CARE ESTABLISHMENT,OP - Hunts Locality - Cost of Care,Hunts OP Team - Care,Residential Care
Cambridgeshire County Council,06-Aug-20,51301414299,-571.16,WINSTON HOUSE(2CARE),CARE ESTABLISHMENT,AMH - Specialist & Primary,Mental Health - Specialist & Primary,Residential Care
Cambridgeshire County Council,06-Aug-20,51301414299,-571.16,WINSTON HOUSE(2CARE),CARE ESTABLISHMENT,AMH - Specialist & Primary,Mental Health - Specialist & Primary,Residential Care
Cambridgeshire County Council,06-Aug-20,51301414299,-571.16,WINSTON HOUSE(2CARE),CARE ESTABLISHMENT,AMH - Specialist & Primary,Mental Health - Specialist & Primary,Residential Care
Cambridgeshire County Council,06-Aug-20,51301414299,-571.16,WINSTON HOUSE(2CARE),CARE ESTABLISHMENT,AMH - Specialist & Primary,Mental Health - Specialist & Primary,Residential Care
Cambridgeshire County Council,06-Aug-20,51301417443,-568.06,ROSE LODGE,CARE ESTABLISHMENT,OPMH - Hunts & Fens,Older People Mental Health Fenland,Nursing Care
Cambridgeshire County Council,06-Aug-20,51301415667,-567.30,ETHELDRED HOUSE,CARE ESTABLISHMENT,OP - East Cambs Locality - Cost of Care,East Cambs - O P Team - Care,Nursing Care
Cambridgeshire County Council,06-Aug-20,51301415653,-565.11,GLENNFIELD CARE CENTRE (OP),CARE ESTABLISHMENT,OPMH - Under 65,Older People Mental Health - Under 65's,Residential Care
Cambridgeshire County Council,28-Aug-20,51301426043,-564.29,UK Care Partnership Ltd,CARE ESTABLISHMENT,Unaccompanied Asylum Seeking Children,Unaccompanied Asylum Seeking Children <18,Asylum Seekers
Cambridgeshire County Council,07-Aug-20,51301419221,-555.96,ICENI HOUSE,CARE ESTABLISHMENT,Physical Disablity - Cost of Care,Countywide PD Service - Care,Residential Care
Cambridgeshire County Council,07-Aug-20,51301419221,-555.96,ICENI HOUSE,CARE ESTABLISHMENT,Physical Disablity - Cost of Care,Countywide PD Service - Care,Residential Care
Cambridgeshire County Council,07-Aug-20,51301419221,-555.96,ICENI HOUSE,CARE ESTABLISHMENT,Physical Disablity - Cost of Care,Countywide PD Service - Care,Residential Care
Cambridgeshire County Council,07-Aug-20,51301419221,-555.96,ICENI HOUSE,CARE ESTABLISHMENT,Physical Disablity - Cost of Care,Countywide PD Service - Care,Residential Care
Cambridgeshire County Council,06-Aug-20,51301415339,-555.00,THE HERMITAGE WHITTLESEY LLP,CARE ESTABLISHMENT,OP - Fenland Locality - Cost of Care,Older People - Fenland - Care,Residential Care
Cambridgeshire County Council,06-Aug-20,51301415339,-555.00,THE HERMITAGE WHITTLESEY LLP,CARE ESTABLISHMENT,OP - Fenland Locality - Cost of Care,Older People - Fenland - Care,Residential Care
Cambridgeshire County Council,06-Aug-20,51301415339,-555.00,THE HERMITAGE WHITTLESEY LLP,CARE ESTABLISHMENT,OP - Fenland Locality - Cost of Care,Older People - Fenland - Care,Residential Care
Cambridgeshire County Council,06-Aug-20,51301415339,-555.00,THE HERMITAGE WHITTLESEY LLP,CARE ESTABLISHMENT,OP - Fenland Locality - Cost of Care,Older People - Fenland - Care,Residential Care
Cambridgeshire County Council,06-Aug-20,51301415339,-555.00,THE HERMITAGE WHITTLESEY LLP,CARE ESTABLISHMENT,OP - Fenland Locality - Cost of Care,Older People - Fenland - Care,Residential Care
Cambridgeshire County Council,06-Aug-20,51301415339,-555.00,THE HERMITAGE WHITTLESEY LLP,CARE ESTABLISHMENT,OP - Fenland Locality - Cost of Care,Older People - Fenland - Care,Residential Care
Cambridgeshire County Council,06-Aug-20,51301415339,-555.00,THE HERMITAGE WHITTLESEY LLP,CARE ESTABLISHMENT,OP - Fenland Locality - Cost of Care,Older People - Fenland - Care,Residential Care
Cambridgeshire County Council,14-Aug-20,51301421464,-552.74,Redacted Personal Data,INDIVIDUAL,Physical Disablity - Cost of Care,Countywide PD Service - Care,Direct Payments
Cambridgeshire County Council,14-Aug-20,51301421464,-552.74,Redacted Personal Data,INDIVIDUAL,Physical Disablity - Cost of Care,Countywide PD Service - Care,Direct Payments
Cambridgeshire County Council,14-Aug-20,51301421464,-552.74,Redacted Personal Data,INDIVIDUAL,Physical Disablity - Cost of Care,Countywide PD Service - Care,Direct Payments
Cambridgeshire County Council,14-Aug-20,51301421464,-552.74,Redacted Personal Data,INDIVIDUAL,Physical Disablity - Cost of Care,Countywide PD Service - Care,Direct Payments
Cambridgeshire County Council,14-Aug-20,51301421464,-552.74,Redacted Personal Data,INDIVIDUAL,Physical Disablity - Cost of Care,Countywide PD Service - Care,Direct Payments
Cambridgeshire County Council,14-Aug-20,51301421464,-552.74,Redacted Personal Data,INDIVIDUAL,Physical Disablity - Cost of Care,Countywide PD Service - Care,Direct Payments
Cambridgeshire County Council,14-Aug-20,51301421464,-552.74,Redacted Personal Data,INDIVIDUAL,Physical Disablity - Cost of Care,Countywide PD Service - Care,Direct Payments
Cambridgeshire County Council,14-Aug-20,51301421464,-552.74,Redacted Personal Data,INDIVIDUAL,Physical Disablity - Cost of Care,Countywide PD Service - Care,Direct Payments
Cambridgeshire County Council,06-Aug-20,51301414363,-550.00,LYNCROFT RESIDENTIAL HOME,CARE ESTABLISHMENT,OP - Fenland Locality - Cost of Care,Older People - Fenland - Care,Residential Care
Cambridgeshire County Council,06-Aug-20,51301417611,-549.29,MIDFIELD LODGE CARE CENTRE,CARE ESTABLISHMENT,OP - City & South Locality - Cost of Care,Older People - City & South - Care,Nursing Care
Cambridgeshire County Council,06-Aug-20,51301414971,-545.04,CARETECH COMMUNITY SERVICES,CARE ESTABLISHMENT,LD - Young Adults Team,LD - Young Adults - Care,Supported Living
Cambridgeshire County Council,06-Aug-20,51301414971,-545.04,CARETECH COMMUNITY SERVICES,CARE ESTABLISHMENT,LD - Young Adults Team,LD - Young Adults - Care,Supported Living
Cambridgeshire County Council,06-Aug-20,51301414971,-545.04,CARETECH COMMUNITY SERVICES,CARE ESTABLISHMENT,LD - Young Adults Team,LD - Young Adults - Care,Supported Living
Cambridgeshire County Council,06-Aug-20,51301414971,-545.04,CARETECH COMMUNITY SERVICES,CARE ESTABLISHMENT,LD - Young Adults Team,LD - Young Adults - Care,Supported Living
Cambridgeshire County Council,26-Aug-20,51301425185,-540.57,YMCA Trinity Group,COMPANY,Unaccompanied Asylum Seeking Children,Unaccompanied Asylum Seeking Children >18 Leaving Care,Living Spport Grants - Financial Assistance 18+
Cambridgeshire County Council,06-Aug-20,51301417097,-539.43,H Plus Care Ltd,CARE ESTABLISHMENT,OPMH - City & South,Older People Mental Health City & South,Nursing Care
Cambridgeshire County Council,14-Aug-20,51301421531,-536.70,73 HIGH ROAD,CARE ESTABLISHMENT,LD - South Locality - Cost of Care,LD - South Cambs - Care,Supported Living
Cambridgeshire County Council,14-Aug-20,51301421531,-536.70,73 HIGH ROAD,CARE ESTABLISHMENT,LD - South Locality - Cost of Care,LD - South Cambs - Care,Supported Living
Cambridgeshire County Council,14-Aug-20,51301421531,-536.70,73 HIGH ROAD,CARE ESTABLISHMENT,LD - South Locality - Cost of Care,LD - South Cambs - Care,Supported Living
Cambridgeshire County Council,14-Aug-20,51301421531,-536.70,73 HIGH ROAD,CARE ESTABLISHMENT,LD - South Locality - Cost of Care,LD - South Cambs - Care,Supported Living
Cambridgeshire County Council,14-Aug-20,51301421531,-536.70,73 HIGH ROAD,CARE ESTABLISHMENT,LD - South Locality - Cost of Care,LD - South Cambs - Care,Supported Living
Cambridgeshire County Council,14-Aug-20,51301421531,-536.70,73 HIGH ROAD,CARE ESTABLISHMENT,LD - South Locality - Cost of Care,LD - South Cambs - Care,Supported Living
Cambridgeshire County Council,14-Aug-20,51301421531,-536.70,73 HIGH ROAD,CARE ESTABLISHMENT,LD - South Locality - Cost of Care,LD - South Cambs - Care,Supported Living
Cambridgeshire County Council,14-Aug-20,51301421531,-536.70,73 HIGH ROAD,CARE ESTABLISHMENT,LD - South Locality - Cost of Care,LD - South Cambs - Care,Supported Living
Cambridgeshire County Council,14-Aug-20,51301421531,-536.70,73 HIGH ROAD,CARE ESTABLISHMENT,LD - South Locality - Cost of Care,LD - South Cambs - Care,Supported Living
Cambridgeshire County Council,14-Aug-20,51301421531,-536.70,73 HIGH ROAD,CARE ESTABLISHMENT,LD - South Locality - Cost of Care,LD - South Cambs - Care,Supported Living
Cambridgeshire County Council,14-Aug-20,51301421531,-536.70,73 HIGH ROAD,CARE ESTABLISHMENT,LD - South Locality - Cost of Care,LD - South Cambs - Care,Supported Living
Cambridgeshire County Council,14-Aug-20,51301421531,-536.70,73 HIGH ROAD,CARE ESTABLISHMENT,LD - South Locality - Cost of Care,LD - South Cambs - Care,Supported Living
Cambridgeshire County Council,14-Aug-20,51301421531,-536.70,73 HIGH ROAD,CARE ESTABLISHMENT,LD - South Locality - Cost of Care,LD - South Cambs - Care,Supported Living
Cambridgeshire County Council,14-Aug-20,51301421531,-536.70,73 HIGH ROAD,CARE ESTABLISHMENT,LD - South Locality - Cost of Care,LD - South Cambs - Care,Supported Living
Cambridgeshire County Council,14-Aug-20,51301421531,-536.70,73 HIGH ROAD,CARE ESTABLISHMENT,LD - South Locality - Cost of Care,LD - South Cambs - Care,Supported Living
Cambridgeshire County Council,14-Aug-20,51301421531,-536.70,73 HIGH ROAD,CARE ESTABLISHMENT,LD - South Locality - Cost of Care,LD - South Cambs - Care,Supported Living
Cambridgeshire County Council,14-Aug-20,51301421531,-536.70,73 HIGH ROAD,CARE ESTABLISHMENT,LD - South Locality - Cost of Care,LD - South Cambs - Care,Supported Living
Cambridgeshire County Council,14-Aug-20,51301421531,-536.70,73 HIGH ROAD,CARE ESTABLISHMENT,LD - South Locality - Cost of Care,LD - South Cambs - Care,Supported Living
Cambridgeshire County Council,14-Aug-20,51301421531,-536.70,73 HIGH ROAD,CARE ESTABLISHMENT,LD - South Locality - Cost of Care,LD - South Cambs - Care,Supported Living
Cambridgeshire County Council,14-Aug-20,51301421531,-536.70,73 HIGH ROAD,CARE ESTABLISHMENT,LD - South Locality - Cost of Care,LD - South Cambs - Care,Supported Living
Cambridgeshire County Council,14-Aug-20,51301421531,-536.70,73 HIGH ROAD,CARE ESTABLISHMENT,LD - South Locality - Cost of Care,LD - South Cambs - Care,Supported Living
Cambridgeshire County Council,14-Aug-20,51301421531,-536.70,73 HIGH ROAD,CARE ESTABLISHMENT,LD - South Locality - Cost of Care,LD - South Cambs - Care,Supported Living
Cambridgeshire County Council,14-Aug-20,51301421531,-536.70,73 HIGH ROAD,CARE ESTABLISHMENT,LD - South Locality - Cost of Care,LD - South Cambs - Care,Supported Living
Cambridgeshire County Council,14-Aug-20,51301421531,-536.70,73 HIGH ROAD,CARE ESTABLISHMENT,LD - South Locality - Cost of Care,LD - South Cambs - Care,Supported Living
Cambridgeshire County Council,14-Aug-20,51301421531,-536.70,73 HIGH ROAD,CARE ESTABLISHMENT,LD - South Locality - Cost of Care,LD - South Cambs - Care,Supported Living
Cambridgeshire County Council,14-Aug-20,51301421531,-536.70,73 HIGH ROAD,CARE ESTABLISHMENT,LD - South Locality - Cost of Care,LD - South Cambs - Care,Supported Living
Cambridgeshire County Council,14-Aug-20,51301421531,-536.70,73 HIGH ROAD,CARE ESTABLISHMENT,LD - South Locality - Cost of Care,LD - South Cambs - Care,Supported Living
Cambridgeshire County Council,14-Aug-20,51301421531,-536.70,73 HIGH ROAD,CARE ESTABLISHMENT,LD - South Locality - Cost of Care,LD - South Cambs - Care,Supported Living
Cambridgeshire County Council,14-Aug-20,51301421531,-536.70,73 HIGH ROAD,CARE ESTABLISHMENT,LD - South Locality - Cost of Care,LD - South Cambs - Care,Supported Living
Cambridgeshire County Council,14-Aug-20,51301421531,-536.70,73 HIGH ROAD,CARE ESTABLISHMENT,LD - South Locality - Cost of Care,LD - South Cambs - Care,Supported Living
Cambridgeshire County Council,14-Aug-20,51301421531,-536.70,73 HIGH ROAD,CARE ESTABLISHMENT,LD - South Locality - Cost of Care,LD - South Cambs - Care,Supported Living
Cambridgeshire County Council,14-Aug-20,51301421531,-536.70,73 HIGH ROAD,CARE ESTABLISHMENT,LD - South Locality - Cost of Care,LD - South Cambs - Care,Supported Living
Cambridgeshire County Council,14-Aug-20,51301421531,-536.70,73 HIGH ROAD,CARE ESTABLISHMENT,LD - South Locality - Cost of Care,LD - South Cambs - Care,Supported Living
Cambridgeshire County Council,14-Aug-20,51301421531,-536.70,73 HIGH ROAD,CARE ESTABLISHMENT,LD - South Locality - Cost of Care,LD - South Cambs - Care,Supported Living
Cambridgeshire County Council,14-Aug-20,51301421531,-536.70,73 HIGH ROAD,CARE ESTABLISHMENT,LD - South Locality - Cost of Care,LD - South Cambs - Care,Supported Living
Cambridgeshire County Council,14-Aug-20,51301421531,-536.70,73 HIGH ROAD,CARE ESTABLISHMENT,LD - South Locality - Cost of Care,LD - South Cambs - Care,Supported Living
Cambridgeshire County Council,14-Aug-20,51301421531,-536.70,73 HIGH ROAD,CARE ESTABLISHMENT,LD - South Locality - Cost of Care,LD - South Cambs - Care,Supported Living
Cambridgeshire County Council,14-Aug-20,51301421531,-536.70,73 HIGH ROAD,CARE ESTABLISHMENT,LD - South Locality - Cost of Care,LD - South Cambs - Care,Supported Living
Cambridgeshire County Council,14-Aug-20,51301421531,-536.70,73 HIGH ROAD,CARE ESTABLISHMENT,LD - South Locality - Cost of Care,LD - South Cambs - Care,Supported Living
Cambridgeshire County Council,14-Aug-20,51301421531,-536.70,73 HIGH ROAD,CARE ESTABLISHMENT,LD - South Locality - Cost of Care,LD - South Cambs - Care,Supported Living
Cambridgeshire County Council,14-Aug-20,51301421531,-536.70,73 HIGH ROAD,CARE ESTABLISHMENT,LD - South Locality - Cost of Care,LD - South Cambs - Care,Supported Living
Cambridgeshire County Council,14-Aug-20,51301421531,-536.70,73 HIGH ROAD,CARE ESTABLISHMENT,LD - South Locality - Cost of Care,LD - South Cambs - Care,Supported Living
Cambridgeshire County Council,14-Aug-20,51301421531,-536.70,73 HIGH ROAD,CARE ESTABLISHMENT,LD - South Locality - Cost of Care,LD - South Cambs - Care,Supported Living
Cambridgeshire County Council,14-Aug-20,51301421531,-536.70,73 HIGH ROAD,CARE ESTABLISHMENT,LD - South Locality - Cost of Care,LD - South Cambs - Care,Supported Living
Cambridgeshire County Council,14-Aug-20,51301421531,-536.70,73 HIGH ROAD,CARE ESTABLISHMENT,LD - South Locality - Cost of Care,LD - South Cambs - Care,Supported Living
Cambridgeshire County Council,12-Aug-20,51301420676,-534.60,Redacted Personal Data,INDIVIDUAL,OP - City & South Locality - Cost of Care,Older People - City & South - Care,Direct Payments
Cambridgeshire County Council,06-Aug-20,51301415099,-534.38,CAERUS CARE LTD,CARE ESTABLISHMENT,LD - Fenland Locality - Cost of Care,LD - Fenland  - Care,Supported Living
Cambridgeshire County Council,14-Aug-20,51301421558,-531.94,VOYAGE,CARE ESTABLISHMENT,LD - South Locality - Cost of Care,LD - South Cambs - Care,Residential Care
Cambridgeshire County Council,06-Aug-20,51301414142,-526.05,TRIPLE HOME CARE LTD,CARE ESTABLISHMENT,OP - Hunts Locality - Cost of Care,Hunts OP Team - Care,Domiciliary Care
Cambridgeshire County Council,11-Aug-20,51301419876,-525.42,Redacted Personal Data,INDIVIDUAL,OP - City & South Locality - Cost of Care,Older People - City & South - Care,Direct Payments
Cambridgeshire County Council,11-Aug-20,51301419876,-525.42,Redacted Personal Data,INDIVIDUAL,OP - City & South Locality - Cost of Care,Older People - City & South - Care,Direct Payments
Cambridgeshire County Council,11-Aug-20,51301419876,-525.42,Redacted Personal Data,INDIVIDUAL,OP - City & South Locality - Cost of Care,Older People - City & South - Care,Direct Payments
Cambridgeshire County Council,11-Aug-20,51301419876,-525.42,Redacted Personal Data,INDIVIDUAL,OP - City & South Locality - Cost of Care,Older People - City & South - Care,Direct Payments
Cambridgeshire County Council,11-Aug-20,51301419876,-525.42,Redacted Personal Data,INDIVIDUAL,OP - City & South Locality - Cost of Care,Older People - City & South - Care,Direct Payments
Cambridgeshire County Council,11-Aug-20,51301419876,-525.42,Redacted Personal Data,INDIVIDUAL,OP - City & South Locality - Cost of Care,Older People - City & South - Care,Direct Payments
Cambridgeshire County Council,11-Aug-20,51301419876,-525.42,Redacted Personal Data,INDIVIDUAL,OP - City & South Locality - Cost of Care,Older People - City & South - Care,Direct Payments
Cambridgeshire County Council,06-Aug-20,51301414486,-524.60,SYMONDS HOUSE NURSING HOME,CARE ESTABLISHMENT,OP - City & South Locality - Cost of Care,Older People - City & South - Care,Nursing Care
Cambridgeshire County Council,06-Aug-20,51301414316,-520.00,LYNCROFT RESIDENTIAL HOME,CARE ESTABLISHMENT,OP - Fenland Locality - Cost of Care,Older People - Fenland - Care,Residential Care
Cambridgeshire County Council,20-Aug-20,51301424106,-519.25,AVAILL HEALTHCARE,CARE ESTABLISHMENT,OPMH - City & South,Older People Mental Health City & South,Domiciliary Care
Cambridgeshire County Council,20-Aug-20,51301424106,-519.25,AVAILL HEALTHCARE,CARE ESTABLISHMENT,OPMH - City & South,Older People Mental Health City & South,Domiciliary Care
Cambridgeshire County Council,20-Aug-20,51301424106,-519.25,AVAILL HEALTHCARE,CARE ESTABLISHMENT,OPMH - City & South,Older People Mental Health City & South,Domiciliary Care
Cambridgeshire County Council,20-Aug-20,51301424106,-519.25,AVAILL HEALTHCARE,CARE ESTABLISHMENT,OPMH - City & South,Older People Mental Health City & South,Domiciliary Care
Cambridgeshire County Council,20-Aug-20,51301424106,-519.25,AVAILL HEALTHCARE,CARE ESTABLISHMENT,OPMH - City & South,Older People Mental Health City & South,Domiciliary Care
Cambridgeshire County Council,20-Aug-20,51301424106,-519.25,AVAILL HEALTHCARE,CARE ESTABLISHMENT,OPMH - City & South,Older People Mental Health City & South,Domiciliary Care
Cambridgeshire County Council,20-Aug-20,51301424106,-519.25,AVAILL HEALTHCARE,CARE ESTABLISHMENT,OPMH - City & South,Older People Mental Health City & South,Domiciliary Care
Cambridgeshire County Council,20-Aug-20,51301424106,-519.25,AVAILL HEALTHCARE,CARE ESTABLISHMENT,OPMH - City & South,Older People Mental Health City & South,Domiciliary Care
Cambridgeshire County Council,20-Aug-20,51301424106,-519.25,AVAILL HEALTHCARE,CARE ESTABLISHMENT,OPMH - City & South,Older People Mental Health City & South,Domiciliary Care
Cambridgeshire County Council,20-Aug-20,51301424106,-519.25,AVAILL HEALTHCARE,CARE ESTABLISHMENT,OPMH - City & South,Older People Mental Health City & South,Domiciliary Care
Cambridgeshire County Council,20-Aug-20,51301424106,-519.25,AVAILL HEALTHCARE,CARE ESTABLISHMENT,OPMH - City & South,Older People Mental Health City & South,Domiciliary Care
Cambridgeshire County Council,20-Aug-20,51301424106,-519.25,AVAILL HEALTHCARE,CARE ESTABLISHMENT,OPMH - City & South,Older People Mental Health City & South,Domiciliary Care
Cambridgeshire County Council,20-Aug-20,51301424106,-519.25,AVAILL HEALTHCARE,CARE ESTABLISHMENT,OPMH - City & South,Older People Mental Health City & South,Domiciliary Care
Cambridgeshire County Council,20-Aug-20,51301424106,-519.25,AVAILL HEALTHCARE,CARE ESTABLISHMENT,OPMH - City & South,Older People Mental Health City & South,Domiciliary Care
Cambridgeshire County Council,20-Aug-20,51301424106,-519.25,AVAILL HEALTHCARE,CARE ESTABLISHMENT,OPMH - City & South,Older People Mental Health City & South,Domiciliary Care
Cambridgeshire County Council,20-Aug-20,51301424106,-519.25,AVAILL HEALTHCARE,CARE ESTABLISHMENT,OPMH - City & South,Older People Mental Health City & South,Domiciliary Care
Cambridgeshire County Council,20-Aug-20,51301424106,-519.25,AVAILL HEALTHCARE,CARE ESTABLISHMENT,OPMH - City & South,Older People Mental Health City & South,Domiciliary Care
Cambridgeshire County Council,20-Aug-20,51301424106,-519.25,AVAILL HEALTHCARE,CARE ESTABLISHMENT,OPMH - City & South,Older People Mental Health City & South,Domiciliary Care
Cambridgeshire County Council,20-Aug-20,51301424106,-519.25,AVAILL HEALTHCARE,CARE ESTABLISHMENT,OPMH - City & South,Older People Mental Health City & South,Domiciliary Care
Cambridgeshire County Council,12-Aug-20,51301420400,-518.33,Redacted Personal Data,SERVICE USER,Physical Disablity - Cost of Care,Countywide PD Service - Care,Direct Payments
Cambridgeshire County Council,12-Aug-20,51301420400,-518.33,Redacted Personal Data,SERVICE USER,Physical Disablity - Cost of Care,Countywide PD Service - Care,Direct Payments
Cambridgeshire County Council,12-Aug-20,51301420400,-518.33,Redacted Personal Data,SERVICE USER,Physical Disablity - Cost of Care,Countywide PD Service - Care,Direct Payments
Cambridgeshire County Council,12-Aug-20,51301420400,-518.33,Redacted Personal Data,SERVICE USER,Physical Disablity - Cost of Care,Countywide PD Service - Care,Direct Payments
Cambridgeshire County Council,12-Aug-20,51301420400,-518.33,Redacted Personal Data,SERVICE USER,Physical Disablity - Cost of Care,Countywide PD Service - Care,Direct Payments
Cambridgeshire County Council,12-Aug-20,51301420400,-518.33,Redacted Personal Data,SERVICE USER,Physical Disablity - Cost of Care,Countywide PD Service - Care,Direct Payments
Cambridgeshire County Council,12-Aug-20,51301420400,-518.33,Redacted Personal Data,SERVICE USER,Physical Disablity - Cost of Care,Countywide PD Service - Care,Direct Payments
Cambridgeshire County Council,12-Aug-20,51301420400,-518.33,Redacted Personal Data,SERVICE USER,Physical Disablity - Cost of Care,Countywide PD Service - Care,Direct Payments
Cambridgeshire County Council,12-Aug-20,51301420400,-518.33,Redacted Personal Data,SERVICE USER,Physical Disablity - Cost of Care,Countywide PD Service - Care,Direct Payments
Cambridgeshire County Council,12-Aug-20,51301420400,-518.33,Redacted Personal Data,SERVICE USER,Physical Disablity - Cost of Care,Countywide PD Service - Care,Direct Payments
Cambridgeshire County Council,14-Aug-20,51301421512,-515.97,VOYAGE,CARE ESTABLISHMENT,LD - South Locality - Cost of Care,LD - South Cambs - Care,Domiciliary Care
Cambridgeshire County Council,14-Aug-20,51301421512,-515.97,VOYAGE,CARE ESTABLISHMENT,LD - South Locality - Cost of Care,LD - South Cambs - Care,Domiciliary Care
Cambridgeshire County Council,14-Aug-20,51301421512,-515.97,VOYAGE,CARE ESTABLISHMENT,LD - South Locality - Cost of Care,LD - South Cambs - Care,Domiciliary Care
Cambridgeshire County Council,14-Aug-20,51301421512,-515.97,VOYAGE,CARE ESTABLISHMENT,LD - South Locality - Cost of Care,LD - South Cambs - Care,Domiciliary Care
Cambridgeshire County Council,14-Aug-20,51301421512,-515.97,VOYAGE,CARE ESTABLISHMENT,LD - South Locality - Cost of Care,LD - South Cambs - Care,Domiciliary Care
Cambridgeshire County Council,14-Aug-20,51301421512,-515.97,VOYAGE,CARE ESTABLISHMENT,LD - South Locality - Cost of Care,LD - South Cambs - Care,Domiciliary Care
Cambridgeshire County Council,14-Aug-20,51301421512,-515.97,VOYAGE,CARE ESTABLISHMENT,LD - South Locality - Cost of Care,LD - South Cambs - Care,Domiciliary Care
Cambridgeshire County Council,14-Aug-20,51301421512,-515.97,VOYAGE,CARE ESTABLISHMENT,LD - South Locality - Cost of Care,LD - South Cambs - Care,Domiciliary Care
Cambridgeshire County Council,14-Aug-20,51301421512,-515.97,VOYAGE,CARE ESTABLISHMENT,LD - South Locality - Cost of Care,LD - South Cambs - Care,Domiciliary Care
Cambridgeshire County Council,14-Aug-20,51301421512,-515.97,VOYAGE,CARE ESTABLISHMENT,LD - South Locality - Cost of Care,LD - South Cambs - Care,Domiciliary Care
Cambridgeshire County Council,14-Aug-20,51301421512,-515.97,VOYAGE,CARE ESTABLISHMENT,LD - South Locality - Cost of Care,LD - South Cambs - Care,Domiciliary Care
Cambridgeshire County Council,14-Aug-20,51301421512,-515.97,VOYAGE,CARE ESTABLISHMENT,LD - South Locality - Cost of Care,LD - South Cambs - Care,Domiciliary Care
Cambridgeshire County Council,14-Aug-20,51301421512,-515.97,VOYAGE,CARE ESTABLISHMENT,LD - South Locality - Cost of Care,LD - South Cambs - Care,Domiciliary Care
Cambridgeshire County Council,14-Aug-20,51301421512,-515.97,VOYAGE,CARE ESTABLISHMENT,LD - South Locality - Cost of Care,LD - South Cambs - Care,Domiciliary Care
Cambridgeshire County Council,14-Aug-20,51301421512,-515.97,VOYAGE,CARE ESTABLISHMENT,LD - South Locality - Cost of Care,LD - South Cambs - Care,Domiciliary Care
Cambridgeshire County Council,14-Aug-20,51301421512,-515.97,VOYAGE,CARE ESTABLISHMENT,LD - South Locality - Cost of Care,LD - South Cambs - Care,Domiciliary Care
Cambridgeshire County Council,14-Aug-20,51301421512,-515.97,VOYAGE,CARE ESTABLISHMENT,LD - South Locality - Cost of Care,LD - South Cambs - Care,Domiciliary Care
Cambridgeshire County Council,14-Aug-20,51301421512,-515.97,VOYAGE,CARE ESTABLISHMENT,LD - South Locality - Cost of Care,LD - South Cambs - Care,Domiciliary Care
Cambridgeshire County Council,14-Aug-20,51301421512,-515.97,VOYAGE,CARE ESTABLISHMENT,LD - South Locality - Cost of Care,LD - South Cambs - Care,Domiciliary Care
Cambridgeshire County Council,14-Aug-20,51301421512,-515.97,VOYAGE,CARE ESTABLISHMENT,LD - South Locality - Cost of Care,LD - South Cambs - Care,Domiciliary Care
Cambridgeshire County Council,14-Aug-20,51301421512,-515.97,VOYAGE,CARE ESTABLISHMENT,LD - South Locality - Cost of Care,LD - South Cambs - Care,Domiciliary Care
Cambridgeshire County Council,14-Aug-20,51301421512,-515.97,VOYAGE,CARE ESTABLISHMENT,LD - South Locality - Cost of Care,LD - South Cambs - Care,Domiciliary Care
Cambridgeshire County Council,14-Aug-20,51301421512,-515.97,VOYAGE,CARE ESTABLISHMENT,LD - South Locality - Cost of Care,LD - South Cambs - Care,Domiciliary Care
Cambridgeshire County Council,14-Aug-20,51301421512,-515.97,VOYAGE,CARE ESTABLISHMENT,LD - South Locality - Cost of Care,LD - South Cambs - Care,Domiciliary Care
Cambridgeshire County Council,14-Aug-20,51301421512,-515.97,VOYAGE,CARE ESTABLISHMENT,LD - South Locality - Cost of Care,LD - South Cambs - Care,Domiciliary Care
Cambridgeshire County Council,14-Aug-20,51301421512,-515.97,VOYAGE,CARE ESTABLISHMENT,LD - South Locality - Cost of Care,LD - South Cambs - Care,Domiciliary Care
Cambridgeshire County Council,14-Aug-20,51301421512,-515.97,VOYAGE,CARE ESTABLISHMENT,LD - South Locality - Cost of Care,LD - South Cambs - Care,Domiciliary Care
Cambridgeshire County Council,14-Aug-20,51301421512,-515.97,VOYAGE,CARE ESTABLISHMENT,LD - South Locality - Cost of Care,LD - South Cambs - Care,Domiciliary Care
Cambridgeshire County Council,14-Aug-20,51301421512,-515.97,VOYAGE,CARE ESTABLISHMENT,LD - South Locality - Cost of Care,LD - South Cambs - Care,Domiciliary Care
Cambridgeshire County Council,14-Aug-20,51301421512,-515.97,VOYAGE,CARE ESTABLISHMENT,LD - South Locality - Cost of Care,LD - South Cambs - Care,Domiciliary Care
Cambridgeshire County Council,14-Aug-20,51301421512,-515.97,VOYAGE,CARE ESTABLISHMENT,LD - South Locality - Cost of Care,LD - South Cambs - Care,Domiciliary Care
Cambridgeshire County Council,14-Aug-20,51301421512,-515.97,VOYAGE,CARE ESTABLISHMENT,LD - South Locality - Cost of Care,LD - South Cambs - Care,Domiciliary Care
Cambridgeshire County Council,14-Aug-20,51301421512,-515.97,VOYAGE,CARE ESTABLISHMENT,LD - South Locality - Cost of Care,LD - South Cambs - Care,Domiciliary Care
Cambridgeshire County Council,14-Aug-20,51301421512,-515.97,VOYAGE,CARE ESTABLISHMENT,LD - South Locality - Cost of Care,LD - South Cambs - Care,Domiciliary Care
Cambridgeshire County Council,14-Aug-20,51301421512,-515.97,VOYAGE,CARE ESTABLISHMENT,LD - South Locality - Cost of Care,LD - South Cambs - Care,Domiciliary Care
Cambridgeshire County Council,14-Aug-20,51301421512,-515.97,VOYAGE,CARE ESTABLISHMENT,LD - South Locality - Cost of Care,LD - South Cambs - Care,Domiciliary Care
Cambridgeshire County Council,14-Aug-20,51301421512,-515.97,VOYAGE,CARE ESTABLISHMENT,LD - South Locality - Cost of Care,LD - South Cambs - Care,Domiciliary Care
Cambridgeshire County Council,06-Aug-20,51301413878,500.64,CAMBRIDGESHIRE HOMECARE (J&M CARE LTD),CARE ESTABLISHMENT,OP - East Cambs Locality - Cost of Care,East Cambs - O P Team - Care,Domiciliary Care
Cambridgeshire County Council,06-Aug-20,51301413878,500.64,CAMBRIDGESHIRE HOMECARE (J&M CARE LTD),CARE ESTABLISHMENT,OP - East Cambs Locality - Cost of Care,East Cambs - O P Team - Care,Domiciliary Care
Cambridgeshire County Council,06-Aug-20,51301413878,500.64,CAMBRIDGESHIRE HOMECARE (J&M CARE LTD),CARE ESTABLISHMENT,OP - East Cambs Locality - Cost of Care,East Cambs - O P Team - Care,Domiciliary Care
Cambridgeshire County Council,06-Aug-20,51301413878,500.64,CAMBRIDGESHIRE HOMECARE (J&M CARE LTD),CARE ESTABLISHMENT,OP - East Cambs Locality - Cost of Care,East Cambs - O P Team - Care,Domiciliary Care
Cambridgeshire County Council,06-Aug-20,51301415451,500.83,CARETECH COMMUNITY SERVICES,CARE ESTABLISHMENT,LD - South Locality - Cost of Care,LD - South Cambs - Care,Residential Care
Cambridgeshire County Council,06-Aug-20,51301415451,500.83,CARETECH COMMUNITY SERVICES,CARE ESTABLISHMENT,LD - South Locality - Cost of Care,LD - South Cambs - Care,Residential Care
Cambridgeshire County Council,06-Aug-20,51301415451,500.83,CARETECH COMMUNITY SERVICES,CARE ESTABLISHMENT,LD - South Locality - Cost of Care,LD - South Cambs - Care,Residential Care
Cambridgeshire County Council,06-Aug-20,51301415451,500.83,CARETECH COMMUNITY SERVICES,CARE ESTABLISHMENT,LD - South Locality - Cost of Care,LD - South Cambs - Care,Residential Care
Cambridgeshire County Council,06-Aug-20,51301417475,500.94,THE CAMBRIDGE NURSING CENTRE,CARE ESTABLISHMENT,OPMH - City & South,Older People Mental Health E Cambs,Nursing Care
Cambridgeshire County Council,06-Aug-20,51301417475,500.94,THE CAMBRIDGE NURSING CENTRE,CARE ESTABLISHMENT,OPMH - City & South,Older People Mental Health E Cambs,Nursing Care
Cambridgeshire County Council,06-Aug-20,51301417475,500.94,THE CAMBRIDGE NURSING CENTRE,CARE ESTABLISHMENT,OPMH - City & South,Older People Mental Health E Cambs,Nursing Care
Cambridgeshire County Council,06-Aug-20,51301417475,500.94,THE CAMBRIDGE NURSING CENTRE,CARE ESTABLISHMENT,OPMH - City & South,Older People Mental Health E Cambs,Nursing Care
Cambridgeshire County Council,11-Aug-20,51301419998,500.95,Redacted Personal Data,INDIVIDUAL,LAC Transport,LAC Transport - Home to School,Social Care Transport
Cambridgeshire County Council,06-Aug-20,51301417037,501.14,GOLD CARE HOMES,CARE ESTABLISHMENT,AMH - Hunts & Fens,E Cambs & Fenland Mental Health Team,Residential Care
Cambridgeshire County Council,06-Aug-20,51301417037,501.14,GOLD CARE HOMES,CARE ESTABLISHMENT,AMH - Hunts & Fens,E Cambs & Fenland Mental Health Team,Residential Care
Cambridgeshire County Council,06-Aug-20,51301417037,501.14,GOLD CARE HOMES,CARE ESTABLISHMENT,AMH - Hunts & Fens,E Cambs & Fenland Mental Health Team,Residential Care
Cambridgeshire County Council,06-Aug-20,51301417037,501.14,GOLD CARE HOMES,CARE ESTABLISHMENT,AMH - Hunts & Fens,E Cambs & Fenland Mental Health Team,Residential Care
Cambridgeshire County Council,06-Aug-20,51301414877,501.71,THE HELPING HANDS GROUP,CARE ESTABLISHMENT,LD - Young Adults Team,LD - Young Adults - Special Needs,Supported Living
Cambridgeshire County Council,06-Aug-20,51301414877,501.71,THE HELPING HANDS GROUP,CARE ESTABLISHMENT,LD - Young Adults Team,LD - Young Adults - Special Needs,Supported Living
Cambridgeshire County Council,06-Aug-20,51301414877,501.71,THE HELPING HANDS GROUP,CARE ESTABLISHMENT,LD - Young Adults Team,LD - Young Adults - Special Needs,Supported Living
Cambridgeshire County Council,06-Aug-20,51301414877,501.71,THE HELPING HANDS GROUP,CARE ESTABLISHMENT,LD - Young Adults Team,LD - Young Adults - Special Needs,Supported Living
Cambridgeshire County Council,07-Aug-20,51301419240,502.17,BROOKFIELD CARE (Radis Commnity Care),CARE ESTABLISHMENT,OP - Hunts Locality - Cost of Care,Hunts OP Team - Care,Domiciliary Care
Cambridgeshire County Council,07-Aug-20,51301419240,502.17,BROOKFIELD CARE (Radis Commnity Care),CARE ESTABLISHMENT,OP - Hunts Locality - Cost of Care,Hunts OP Team - Care,Domiciliary Care
Cambridgeshire County Council,07-Aug-20,51301419223,502.45,LITTLEPORT GRANGE,CARE ESTABLISHMENT,OPMH - City & South,Older People Mental Health E Cambs,Residential Care
Cambridgeshire County Council,07-Aug-20,51301419223,502.45,LITTLEPORT GRANGE,CARE ESTABLISHMENT,OPMH - City & South,Older People Mental Health E Cambs,Residential Care
Cambridgeshire County Council,07-Aug-20,51301419223,502.45,LITTLEPORT GRANGE,CARE ESTABLISHMENT,OPMH - City & South,Older People Mental Health E Cambs,Residential Care
Cambridgeshire County Council,07-Aug-20,51301419223,502.45,LITTLEPORT GRANGE,CARE ESTABLISHMENT,OPMH - City & South,Older People Mental Health E Cambs,Residential Care
Cambridgeshire County Council,07-Aug-20,51301419223,502.45,LITTLEPORT GRANGE,CARE ESTABLISHMENT,OPMH - City & South,Older People Mental Health E Cambs,Residential Care
Cambridgeshire County Council,06-Aug-20,51301415664,503.00,GLENNFIELD CARE CENTRE (OP),CARE ESTABLISHMENT,OP - Fenland Locality - Cost of Care,Older People - Fenland - Care,Residential Care
Cambridgeshire County Council,06-Aug-20,51301415664,503.00,GLENNFIELD CARE CENTRE (OP),CARE ESTABLISHMENT,OP - Fenland Locality - Cost of Care,Older People - Fenland - Care,Residential Care
Cambridgeshire County Council,06-Aug-20,51301415664,503.00,GLENNFIELD CARE CENTRE (OP),CARE ESTABLISHMENT,OP - Fenland Locality - Cost of Care,Older People - Fenland - Care,Residential Care
Cambridgeshire County Council,06-Aug-20,51301415664,503.00,GLENNFIELD CARE CENTRE (OP),CARE ESTABLISHMENT,OP - Fenland Locality - Cost of Care,Older People - Fenland - Care,Residential Care
Cambridgeshire County Council,03-Aug-20,51301406716,503.02,TIDEY ELECTRICAL LTD,TRADE SUPPLIER,CPSN Replacement,CPSN Replacement,IT Hardware
Cambridgeshire County Council,06-Aug-20,51301414303,503.15,FORD HOUSE CARE HOME,CARE ESTABLISHMENT,OP - Hunts Locality - Cost of Care,Hunts OP Team - Care,Nursing Care
Cambridgeshire County Council,06-Aug-20,51301414303,503.15,FORD HOUSE CARE HOME,CARE ESTABLISHMENT,OP - Hunts Locality - Cost of Care,Hunts OP Team - Care,Nursing Care
Cambridgeshire County Council,06-Aug-20,51301414303,503.15,FORD HOUSE CARE HOME,CARE ESTABLISHMENT,OP - Hunts Locality - Cost of Care,Hunts OP Team - Care,Nursing Care
Cambridgeshire County Council,06-Aug-20,51301414303,503.15,FORD HOUSE CARE HOME,CARE ESTABLISHMENT,OP - Hunts Locality - Cost of Care,Hunts OP Team - Care,Nursing Care
Cambridgeshire County Council,06-Aug-20,51301418425,504.00,Redacted Personal Data,SERVICE USER,Physical Disablity - Cost of Care,Countywide PD Service - Care,Direct Payments
Cambridgeshire County Council,06-Aug-20,51301418425,504.00,Redacted Personal Data,SERVICE USER,Physical Disablity - Cost of Care,Countywide PD Service - Care,Direct Payments
Cambridgeshire County Council,06-Aug-20,51301418425,504.00,Redacted Personal Data,SERVICE USER,Physical Disablity - Cost of Care,Countywide PD Service - Care,Direct Payments
Cambridgeshire County Council,06-Aug-20,51301418425,504.00,Redacted Personal Data,SERVICE USER,Physical Disablity - Cost of Care,Countywide PD Service - Care,Direct Payments
Cambridgeshire County Council,24-Aug-20,51301420075,504.00,"MRS A C WELTON, ACW CONSULTANCY",TRADE SUPPLIER,OP - City & South Locality - Staffing,Older People - City & South - Staffing,Professional Fees and Hired Services
Cambridgeshire County Council,10-Aug-20,51301419535,504.14,RIVERSIDE CARE & SUPPORT,CARE ESTABLISHMENT,LAC Placements,Placements - 16+,Childrens Lodgings
Cambridgeshire County Council,06-Aug-20,51301417092,504.78,South Street Care Home,CARE ESTABLISHMENT,AMH - Hunts & Fens,Hunts Mental Health Team,Residential Care
Cambridgeshire County Council,06-Aug-20,51301417092,504.78,South Street Care Home,CARE ESTABLISHMENT,AMH - Hunts & Fens,Hunts Mental Health Team,Residential Care
Cambridgeshire County Council,06-Aug-20,51301417100,504.78,South Street Care Home,CARE ESTABLISHMENT,AMH - Hunts & Fens,Hunts Mental Health Team,Residential Care
Cambridgeshire County Council,06-Aug-20,51301417100,504.78,South Street Care Home,CARE ESTABLISHMENT,AMH - Hunts & Fens,Hunts Mental Health Team,Residential Care
Cambridgeshire County Council,06-Aug-20,51301417100,504.78,South Street Care Home,CARE ESTABLISHMENT,AMH - Hunts & Fens,Hunts Mental Health Team,Residential Care
Cambridgeshire County Council,06-Aug-20,51301417092,504.78,South Street Care Home,CARE ESTABLISHMENT,AMH - Hunts & Fens,Hunts Mental Health Team,Residential Care
Cambridgeshire County Council,06-Aug-20,51301417092,504.78,South Street Care Home,CARE ESTABLISHMENT,AMH - Hunts & Fens,Hunts Mental Health Team,Residential Care
Cambridgeshire County Council,06-Aug-20,51301417100,504.78,South Street Care Home,CARE ESTABLISHMENT,AMH - Hunts & Fens,Hunts Mental Health Team,Residential Care
Cambridgeshire County Council,06-Aug-20,51301415487,504.79,KLAIR HOUSE,CARE ESTABLISHMENT,LD - East Locality - Cost of Care,LD - East Cambs - Care,Residential Care
Cambridgeshire County Council,06-Aug-20,51301415487,504.79,KLAIR HOUSE,CARE ESTABLISHMENT,LD - East Locality - Cost of Care,LD - East Cambs - Care,Residential Care
Cambridgeshire County Council,06-Aug-20,51301415487,504.79,KLAIR HOUSE,CARE ESTABLISHMENT,LD - East Locality - Cost of Care,LD - East Cambs - Care,Residential Care
Cambridgeshire County Council,06-Aug-20,51301415487,504.79,KLAIR HOUSE,CARE ESTABLISHMENT,LD - East Locality - Cost of Care,LD - East Cambs - Care,Residential Care
Cambridgeshire County Council,06-Aug-20,51301414542,505.32,WINSTON HOUSE(2CARE),CARE ESTABLISHMENT,AMH - City South,Cambridge South Mental Health,Residential Care
Cambridgeshire County Council,06-Aug-20,51301414542,505.32,WINSTON HOUSE(2CARE),CARE ESTABLISHMENT,AMH - City South,Cambridge South Mental Health,Residential Care
Cambridgeshire County Council,06-Aug-20,51301414542,505.32,WINSTON HOUSE(2CARE),CARE ESTABLISHMENT,AMH - City South,Cambridge South Mental Health,Residential Care
Cambridgeshire County Council,06-Aug-20,51301414542,505.32,WINSTON HOUSE(2CARE),CARE ESTABLISHMENT,AMH - City South,Cambridge South Mental Health,Residential Care
Cambridgeshire County Council,06-Aug-20,51301417147,505.58,MK WORLDWIDE LTD (T/A LEAD CARE),CARE ESTABLISHMENT,Physical Disablity - Cost of Care,Countywide PD Service - Care,Domiciliary Care
Cambridgeshire County Council,06-Aug-20,51301417147,505.58,MK WORLDWIDE LTD (T/A LEAD CARE),CARE ESTABLISHMENT,Physical Disablity - Cost of Care,Countywide PD Service - Care,Domiciliary Care
Cambridgeshire County Council,06-Aug-20,51301417147,505.58,MK WORLDWIDE LTD (T/A LEAD CARE),CARE ESTABLISHMENT,Physical Disablity - Cost of Care,Countywide PD Service - Care,Domiciliary Care
Cambridgeshire County Council,06-Aug-20,51301417147,505.58,MK WORLDWIDE LTD (T/A LEAD CARE),CARE ESTABLISHMENT,Physical Disablity - Cost of Care,Countywide PD Service - Care,Domiciliary Care
Cambridgeshire County Council,06-Aug-20,51301417234,505.58,MK WORLDWIDE LTD (T/A LEAD CARE),CARE ESTABLISHMENT,OP - City & South Locality - Cost of Care,Older People - City & South - Care,Domiciliary Care
Cambridgeshire County Council,06-Aug-20,51301417402,505.58,MK WORLDWIDE LTD (T/A LEAD CARE),CARE ESTABLISHMENT,OP - City & South Locality - Cost of Care,Older People - City & South - Care,Domiciliary Care
Cambridgeshire County Council,06-Aug-20,51301417234,505.58,MK WORLDWIDE LTD (T/A LEAD CARE),CARE ESTABLISHMENT,OP - City & South Locality - Cost of Care,Older People - City & South - Care,Domiciliary Care
Cambridgeshire County Council,06-Aug-20,51301417402,505.58,MK WORLDWIDE LTD (T/A LEAD CARE),CARE ESTABLISHMENT,OP - City & South Locality - Cost of Care,Older People - City & South - Care,Domiciliary Care
Cambridgeshire County Council,06-Aug-20,51301417402,505.58,MK WORLDWIDE LTD (T/A LEAD CARE),CARE ESTABLISHMENT,OP - City & South Locality - Cost of Care,Older People - City & South - Care,Domiciliary Care
Cambridgeshire County Council,06-Aug-20,51301417234,505.58,MK WORLDWIDE LTD (T/A LEAD CARE),CARE ESTABLISHMENT,OP - City & South Locality - Cost of Care,Older People - City & South - Care,Domiciliary Care
Cambridgeshire County Council,06-Aug-20,51301417234,505.58,MK WORLDWIDE LTD (T/A LEAD CARE),CARE ESTABLISHMENT,OP - City & South Locality - Cost of Care,Older People - City & South - Care,Domiciliary Care
Cambridgeshire County Council,06-Aug-20,51301417402,505.58,MK WORLDWIDE LTD (T/A LEAD CARE),CARE ESTABLISHMENT,OP - City & South Locality - Cost of Care,Older People - City & South - Care,Domiciliary Care
Cambridgeshire County Council,07-Aug-20,51301409880,506.16,SKAT Limited,COMPANY,EY - Oasis,Trumpington Park Early Years,Agency Staff
Cambridgeshire County Council,14-Aug-20,51301421180,506.16,LGSS LAW LTD,TRADE SUPPLIER,Capital Receipts Expenses,Capital Receipts Expenses,External Legal Fees
Cambridgeshire County Council,11-Aug-20,51301419881,506.37,Redacted Personal Data,INDIVIDUAL,OP - East Cambs Locality - Cost of Care,East Cambs - O P Team - Care,Direct Payments
Cambridgeshire County Council,06-Aug-20,51301415667,506.70,ETHELDRED HOUSE,CARE ESTABLISHMENT,OP - East Cambs Locality - Cost of Care,East Cambs - O P Team - Care,Nursing Care
Cambridgeshire County Council,06-Aug-20,51301415667,506.70,ETHELDRED HOUSE,CARE ESTABLISHMENT,OP - East Cambs Locality - Cost of Care,East Cambs - O P Team - Care,Nursing Care
Cambridgeshire County Council,10-Aug-20,51301407060,506.83,TMP (UK) LTD T/A TMP WORLDWIDE,TRADE SUPPLIER,"County Planning, Minerals & Waste","County Planning, Minerals & Waste",Advertising / Publicity (non Recruitment)
Cambridgeshire County Council,13-Aug-20,51301421099,506.83,TMP (UK) LTD T/A TMP WORLDWIDE,TRADE SUPPLIER,Highways General,Highways,Traffic Signs and Lines Maintenance
Cambridgeshire County Council,06-Aug-20,51301417074,507.01,CARE UK COMMUNITY PARTNERSHIPS LTD,CARE ESTABLISHMENT,OP - City & South Locality - Cost of Care,Older People - City & South - Care,Residential Care
Cambridgeshire County Council,06-Aug-20,51301417074,507.01,CARE UK COMMUNITY PARTNERSHIPS LTD,CARE ESTABLISHMENT,OP - City & South Locality - Cost of Care,Older People - City & South - Care,Residential Care
Cambridgeshire County Council,06-Aug-20,51301417074,507.01,CARE UK COMMUNITY PARTNERSHIPS LTD,CARE ESTABLISHMENT,OP - City & South Locality - Cost of Care,Older People - City & South - Care,Residential Care
Cambridgeshire County Council,06-Aug-20,51301417074,507.01,CARE UK COMMUNITY PARTNERSHIPS LTD,CARE ESTABLISHMENT,OP - City & South Locality - Cost of Care,Older People - City & South - Care,Residential Care
Cambridgeshire County Council,06-Aug-20,51301417505,507.96,THE CAMBRIDGE NURSING CENTRE,CARE ESTABLISHMENT,OP - City & South Locality - Cost of Care,Older People - City & South - Care,Nursing Care
Cambridgeshire County Council,06-Aug-20,51301417505,507.96,THE CAMBRIDGE NURSING CENTRE,CARE ESTABLISHMENT,OP - City & South Locality - Cost of Care,Older People - City & South - Care,Nursing Care
Cambridgeshire County Council,06-Aug-20,51301417505,507.96,THE CAMBRIDGE NURSING CENTRE,CARE ESTABLISHMENT,OP - City & South Locality - Cost of Care,Older People - City & South - Care,Nursing Care
Cambridgeshire County Council,06-Aug-20,51301417505,507.96,THE CAMBRIDGE NURSING CENTRE,CARE ESTABLISHMENT,OP - City & South Locality - Cost of Care,Older People - City & South - Care,Nursing Care
Cambridgeshire County Council,06-Aug-20,51301416186,508.13,AFFINITY TRUST,CARE ESTABLISHMENT,LD - Fenland Locality - Cost of Care,LD - Fenland  - Care,Domiciliary Care
Cambridgeshire County Council,06-Aug-20,51301416186,508.13,AFFINITY TRUST,CARE ESTABLISHMENT,LD - Fenland Locality - Cost of Care,LD - Fenland  - Care,Domiciliary Care
Cambridgeshire County Council,06-Aug-20,51301416186,508.13,AFFINITY TRUST,CARE ESTABLISHMENT,LD - Fenland Locality - Cost of Care,LD - Fenland  - Care,Domiciliary Care
Cambridgeshire County Council,06-Aug-20,51301416186,508.13,AFFINITY TRUST,CARE ESTABLISHMENT,LD - Fenland Locality - Cost of Care,LD - Fenland  - Care,Domiciliary Care
Cambridgeshire County Council,06-Aug-20,51301414296,508.63,VOYAGE,CARE ESTABLISHMENT,LD - East Locality - Cost of Care,LD - East Cambs - Care,Residential Care
Cambridgeshire County Council,06-Aug-20,51301414296,508.63,VOYAGE,CARE ESTABLISHMENT,LD - East Locality - Cost of Care,LD - East Cambs - Care,Residential Care
Cambridgeshire County Council,06-Aug-20,51301414296,508.63,VOYAGE,CARE ESTABLISHMENT,LD - East Locality - Cost of Care,LD - East Cambs - Care,Residential Care
Cambridgeshire County Council,06-Aug-20,51301414296,508.63,VOYAGE,CARE ESTABLISHMENT,LD - East Locality - Cost of Care,LD - East Cambs - Care,Residential Care
Cambridgeshire County Council,06-Aug-20,51301415665,509.00,ARIA COURT,CARE ESTABLISHMENT,OP - Fenland Locality - Cost of Care,Older People - Fenland - Care,Residential Care
Cambridgeshire County Council,06-Aug-20,51301415665,509.00,ARIA COURT,CARE ESTABLISHMENT,OP - Fenland Locality - Cost of Care,Older People - Fenland - Care,Residential Care
Cambridgeshire County Council,06-Aug-20,51301415665,509.00,ARIA COURT,CARE ESTABLISHMENT,OP - Fenland Locality - Cost of Care,Older People - Fenland - Care,Residential Care
Cambridgeshire County Council,06-Aug-20,51301415665,509.00,ARIA COURT,CARE ESTABLISHMENT,OP - Fenland Locality - Cost of Care,Older People - Fenland - Care,Residential Care
Cambridgeshire County Council,06-Aug-20,51301414292,509.00,OLIVEMEDE RESIDENTIAL HOME,CARE ESTABLISHMENT,OP - Hunts Locality - Cost of Care,Hunts OP Team - Care,Residential Care
Cambridgeshire County Council,06-Aug-20,51301414292,509.00,OLIVEMEDE RESIDENTIAL HOME,CARE ESTABLISHMENT,OP - Hunts Locality - Cost of Care,Hunts OP Team - Care,Residential Care
Cambridgeshire County Council,06-Aug-20,51301414292,509.00,OLIVEMEDE RESIDENTIAL HOME,CARE ESTABLISHMENT,OP - Hunts Locality - Cost of Care,Hunts OP Team - Care,Residential Care
Cambridgeshire County Council,06-Aug-20,51301414292,509.00,OLIVEMEDE RESIDENTIAL HOME,CARE ESTABLISHMENT,OP - Hunts Locality - Cost of Care,Hunts OP Team - Care,Residential Care
Cambridgeshire County Council,06-Aug-20,51301415632,509.00,LITTLEPORT GRANGE,CARE ESTABLISHMENT,OP - East Cambs Locality - Cost of Care,East Cambs - O P Team - Care,Residential Care
Cambridgeshire County Council,06-Aug-20,51301415632,509.00,LITTLEPORT GRANGE,CARE ESTABLISHMENT,OP - East Cambs Locality - Cost of Care,East Cambs - O P Team - Care,Residential Care
Cambridgeshire County Council,06-Aug-20,51301415632,509.00,LITTLEPORT GRANGE,CARE ESTABLISHMENT,OP - East Cambs Locality - Cost of Care,East Cambs - O P Team - Care,Residential Care
Cambridgeshire County Council,06-Aug-20,51301415632,509.00,LITTLEPORT GRANGE,CARE ESTABLISHMENT,OP - East Cambs Locality - Cost of Care,East Cambs - O P Team - Care,Residential Care
Cambridgeshire County Council,06-Aug-20,51301414357,509.00,LABURNUM LODGE,CARE ESTABLISHMENT,OP - East Cambs Locality - Cost of Care,East Cambs - O P Team - Care,Residential Care
Cambridgeshire County Council,06-Aug-20,51301414357,509.00,LABURNUM LODGE,CARE ESTABLISHMENT,OP - East Cambs Locality - Cost of Care,East Cambs - O P Team - Care,Residential Care
Cambridgeshire County Council,06-Aug-20,51301414357,509.00,LABURNUM LODGE,CARE ESTABLISHMENT,OP - East Cambs Locality - Cost of Care,East Cambs - O P Team - Care,Residential Care
Cambridgeshire County Council,06-Aug-20,51301414357,509.00,LABURNUM LODGE,CARE ESTABLISHMENT,OP - East Cambs Locality - Cost of Care,East Cambs - O P Team - Care,Residential Care
